Department Family,Entity,Date,Expense Type,Expense Area,Supplier,Transaction Number,Amount,Description
Department for Education,DfE Core,10/02/2021,Other Goods & Services,COMMUNICATIONS DIRECTORATE,HAVAS WORLDWIDE LONDON LTD,CORE-PINV-015072,27597.24,Research and Development
Department for Education,DfE Core,25/02/2021,"Marketing, Media and Comms",COMMUNICATIONS DIRECTORATE,OMD GROUP TA MANNING GOTTLIEB OMD LTD,CORE-PINV-016170,39.37,Digital media and web production
Department for Education,DfE Core,25/02/2021,"Marketing, Media and Comms",COMMUNICATIONS DIRECTORATE,OMD GROUP TA MANNING GOTTLIEB OMD LTD,CORE-PINV-016170,39764.17,Digital media and web production
Department for Education,DfE Core,03/02/2021,Grants expenditure,CHILDRENS SOCIAL CARE,PAUSE CREATING SPACE FOR CHANGE,CORE-MAIN-013285,83334.00,Grants to educational establishments or not for profit organisations including other businesses
Department for Education,DfE Core,03/02/2021,Grants expenditure,CHILDRENS SOCIAL CARE,NORTH YORKSHIRE COUNTY COUNCIL,CORE-MAIN-013286,960709.00,Grants to local authorities
Department for Education,DfE Core,02/02/2021,Other Goods & Services,CHILDRENS SOCIAL CARE,What Works for Children's Social Care,CORE-PINV-014643,19253.34,Research and Development
Department for Education,DfE Core,02/02/2021,Other Goods & Services,CHILDRENS SOCIAL CARE,What Works for Children's Social Care,CORE-PINV-014643,24468.64,Research and Development
Department for Education,DfE Core,02/02/2021,Other Goods & Services,CHILDRENS SOCIAL CARE,MUTUAL VENTURES LTD,CORE-PINV-014331,102608.40,Other Professional Services
Department for Education,DfE Core,11/02/2021,Grants expenditure,CHILDRENS SOCIAL CARE,DAYBREAK FAMILY GROUP CONFERENCES,CORE-MAIN-013541,44818.00,Grants to educational establishments or not for profit organisations including other businesses
Department for Education,DfE Core,11/02/2021,Grants expenditure,CHILDRENS SOCIAL CARE,What Works for Children's Social Care,CORE-MAIN-013543,600000.00,Grants to educational establishments or not for profit organisations including other businesses
Department for Education,DfE Core,11/02/2021,Grants expenditure,CHILDRENS SOCIAL CARE,DONCASTER CHILDRENS SERVICES TRUST,CORE-MAIN-013544,226642.00,Grants to educational establishments or not for profit organisations including other businesses
Department for Education,DfE Core,10/02/2021,Other Goods & Services,CHILDRENS SOCIAL CARE,University of Bedfordshire,CORE-PINV-015158,25466.75,Research and Development
Department for Education,DfE Core,26/02/2021,Grants expenditure,CHILDRENS SOCIAL CARE,DAYBREAK FAMILY GROUP CONFERENCES,CORE-MAIN-014564,44818.00,Grants to educational establishments or not for profit organisations including other businesses
Department for Education,DfE Core,26/02/2021,Grants expenditure,CHILDRENS SOCIAL CARE,FAMILY RIGHTS GROUP LTD,CORE-MAIN-014565,400000.00,Capital grants paid to third sector / not for profit organisation
Department for Education,DfE Core,26/02/2021,Grants expenditure,CHILDRENS SOCIAL CARE,NORTH YORKSHIRE COUNTY COUNCIL,CORE-MAIN-014566,300000.00,Grants to local authorities
Department for Education,DfE Core,26/02/2021,Grants expenditure,CHILDRENS SOCIAL CARE,WARWICKSHIRE COUNTY COUNCIL,CORE-MAIN-014567,486054.00,Grants to local authorities
Department for Education,DfE Core,26/02/2021,Grants expenditure,CHILDRENS SOCIAL CARE,WALSALL METRO BOROUGH COUNCIL,CORE-MAIN-014568,152935.00,Grants to local authorities
Department for Education,DfE Core,26/02/2021,Grants expenditure,CHILDRENS SOCIAL CARE,ROCHDALE BOROUGH COUNCIL,CORE-MAIN-014569,262500.00,Grants to local authorities
Department for Education,DfE Core,26/02/2021,Grants expenditure,CHILDRENS SOCIAL CARE,NEWCASTLE CITY COUNCIL,CORE-MAIN-014570,387500.00,Grants to local authorities
Department for Education,DfE Core,26/02/2021,Grants expenditure,CHILDRENS SOCIAL CARE,NORFOLK COUNTY COUNCIL,CORE-MAIN-014571,420000.00,Grants to local authorities
Department for Education,DfE Core,26/02/2021,Grants expenditure,CHILDRENS SOCIAL CARE,WARRINGTON BOROUGH COUNCIL,CORE-MAIN-014572,202500.00,Grants to local authorities
Department for Education,DfE Core,26/02/2021,Grants expenditure,CHILDRENS SOCIAL CARE,EARLY INTERVENTION FOUNDATION,CORE-MAIN-014573,157325.00,Grants to educational establishments or not for profit organisations including other businesses
Department for Education,DfE Core,26/02/2021,Grants expenditure,CHILDRENS SOCIAL CARE,DONCASTER CHILDRENS SERVICES TRUST,CORE-MAIN-014574,111908.00,Grants to educational establishments or not for profit organisations including other businesses
Department for Education,DfE Core,26/02/2021,Grants expenditure,CHILDRENS SOCIAL CARE,NORTH TYNESIDE METRO BOROUGH COUNCIL,CORE-MAIN-014575,129560.42,Grants to local authorities
Department for Education,DfE Core,26/02/2021,Grants expenditure,CHILDRENS SOCIAL CARE,COVENTRY CITY COUNCIL,CORE-MAIN-014576,639437.00,Grants to local authorities
Department for Education,DfE Core,26/02/2021,Grants expenditure,CHILDRENS SOCIAL CARE,Telford and Wrekin Council,CORE-MAIN-014577,714437.00,Grants to local authorities
Department for Education,DfE Core,26/02/2021,Grants expenditure,CHILDRENS SOCIAL CARE,REDCAR & CLEVELAND BOROUGH COUNCIL,CORE-MAIN-014578,202500.00,Grants to local authorities
Department for Education,DfE Core,26/02/2021,Grants expenditure,CHILDRENS SOCIAL CARE,Achieving for Children,CORE-MAIN-014579,90800.00,Grants to local authorities
Department for Education,DfE Core,26/02/2021,Grants expenditure,CHILDRENS SOCIAL CARE,CAMDEN LONDON BOROUGH COUNCIL,CORE-MAIN-014580,29231.00,Grants to local authorities
Department for Education,DfE Core,26/02/2021,Grants expenditure,CHILDRENS SOCIAL CARE,ESSEX COUNTY COUNCIL,CORE-MAIN-014581,26091.00,Grants to local authorities
Department for Education,DfE Core,26/02/2021,Grants expenditure,CHILDRENS SOCIAL CARE,LEEDS CITY COUNCIL,CORE-MAIN-014584,91800.00,Grants to local authorities
Department for Education,DfE Core,26/02/2021,Grants expenditure,CHILDRENS SOCIAL CARE,LINCOLNSHIRE COUNTY COUNCIL,CORE-MAIN-014585,63098.00,Grants to local authorities
Department for Education,DfE Core,26/02/2021,Grants expenditure,CHILDRENS SOCIAL CARE,ROYAL BOROUGH OF KENSINGTON & CHELSEA COUNCIL,CORE-MAIN-014588,140000.00,Grants to local authorities
Department for Education,DfE Core,23/02/2021,Other Goods & Services,CHILDRENS SOCIAL CARE,MUTUAL VENTURES LTD,CORE-PINV-015204,123181.20,Other Professional Services
Department for Education,DfE Core,23/02/2021,Other Goods & Services,CHILDRENS SOCIAL CARE,What Works for Children's Social Care,CORE-PINV-015471,24945.00,Research and Development
Department for Education,DfE Core,23/02/2021,Other Goods & Services,CHILDRENS SOCIAL CARE,What Works for Children's Social Care,CORE-PINV-015471,24468.64,Research and Development
Department for Education,DfE Core,26/02/2021,Other Goods & Services,CHILDRENS SOCIAL CARE,UNIVERSITY OF EAST ANGLIA,CORE-PINV-016328,37477.21,Research and Development
Department for Education,DfE Core,04/02/2021,Other Goods & Services,CHILDRENS SOCIAL CARE,BARNARDOS,CORE-PINV-014830,1050000.00,Other Professional Services
Department for Education,DfE Core,11/02/2021,Grants expenditure,CHILDRENS SOCIAL CARE,NSPCC,CORE-MAIN-013545,50000.00,Grants to educational establishments or not for profit organisations including other businesses
Department for Education,DfE Core,03/02/2021,Other Goods & Services,CHILDRENS SOCIAL CARE,Royal National Children's Springboard Foundation,CORE-PINV-014793,62500.00,Other Professional Services
Department for Education,DfE Core,26/02/2021,Grants expenditure,CHILDRENS SOCIAL CARE,NSPCC,CORE-MAIN-014590,100000.00,Grants to educational establishments or not for profit organisations including other businesses
Department for Education,DfE Core,23/02/2021,Other Goods & Services,CHILDRENS SOCIAL CARE,THE DARTINGTON HALL TRUST,CORE-PINV-015985,177287.25,Other Professional Services
Department for Education,DfE Core,03/02/2021,Grants expenditure,CHILDRENS SOCIAL CARE,TOGETHER FOR CHILDREN SUNDERLAND,CORE-MAIN-013290,103292.00,Grants to educational establishments or not for profit organisations including other businesses
Department for Education,DfE Core,03/02/2021,Grants expenditure,CHILDRENS SOCIAL CARE,Brighter Futures for Children Ltd,CORE-MAIN-013291,731516.00,Grants to educational establishments or not for profit organisations including other businesses
Department for Education,DfE Core,03/02/2021,Grants expenditure,CHILDRENS SOCIAL CARE,SURREY COUNTY COUNCIL,CORE-MAIN-013292,350000.00,Grants to local authorities
Department for Education,DfE Core,03/02/2021,Grants expenditure,CHILDRENS SOCIAL CARE,CROYDON LONDON BOROUGH COUNCIL,CORE-MAIN-013293,59027.70,Grants to local authorities
Department for Education,DfE Core,26/02/2021,Grants expenditure,CHILDRENS SOCIAL CARE,TOGETHER FOR CHILDREN SUNDERLAND,CORE-MAIN-014591,105445.00,Grants to educational establishments or not for profit organisations including other businesses
Department for Education,DfE Core,26/02/2021,Grants expenditure,CHILDRENS SOCIAL CARE,SANDWELL CHILDRENS TRUST,CORE-MAIN-014592,609840.00,Grants to educational establishments or not for profit organisations including other businesses
Department for Education,DfE Core,26/02/2021,Grants expenditure,CHILDRENS SOCIAL CARE,SLOUGH CHILDRENS SERVICES TRUST LTD,CORE-MAIN-014593,183203.92,Grants to educational establishments or not for profit organisations including other businesses
Department for Education,DfE Core,26/02/2021,Grants expenditure,CHILDRENS SOCIAL CARE,SLOUGH CHILDRENS SERVICES TRUST LTD,CORE-MAIN-014594,174710.77,Grants to educational establishments or not for profit organisations including other businesses
Department for Education,DfE Core,26/02/2021,Grants expenditure,CHILDRENS SOCIAL CARE,LOCAL GOVERNMENT ASSOCIATION,CORE-MAIN-014595,261580.00,Grants to educational establishments or not for profit organisations including other businesses
Department for Education,DfE Core,03/02/2021,Grants expenditure,CHILDRENS SOCIAL CARE,WIRRAL METRO BOROUGH COUNCIL,CORE-MAIN-013294,69285.14,Grants to local authorities
Department for Education,DfE Core,03/02/2021,Grants expenditure,CHILDRENS SOCIAL CARE,DERBY CITY COUNCIL,CORE-MAIN-013295,93100.14,Grants to local authorities
Department for Education,DfE Core,03/02/2021,Grants expenditure,CHILDRENS SOCIAL CARE,SOUTHWARK LONDON BOROUGH COUNCIL,CORE-MAIN-013296,59850.09,Grants to local authorities
Department for Education,DfE Core,03/02/2021,Grants expenditure,CHILDRENS SOCIAL CARE,NORTH TYNESIDE METRO BOROUGH COUNCIL,CORE-MAIN-013297,84233.43,Grants to local authorities
Department for Education,DfE Core,03/02/2021,Grants expenditure,CHILDRENS SOCIAL CARE,ISLINGTON LONDON BOROUGH COUNCIL,CORE-MAIN-013298,62066.76,Grants to local authorities
Department for Education,DfE Core,03/02/2021,Grants expenditure,CHILDRENS SOCIAL CARE,LEEDS CITY COUNCIL,CORE-MAIN-013299,124133.52,Grants to local authorities
Department for Education,DfE Core,03/02/2021,Grants expenditure,CHILDRENS SOCIAL CARE,Improvement/Development Agency,CORE-MAIN-013300,72000.00,Grants to educational establishments or not for profit organisations including other businesses
Department for Education,DfE Core,11/02/2021,Grants expenditure,CHILDRENS SOCIAL CARE,HAVERING LONDON BOROUGH COUNCIL,CORE-MAIN-013548,59387.00,Grants to local authorities
Department for Education,DfE Core,11/02/2021,Grants expenditure,CHILDRENS SOCIAL CARE,MEDWAY COUNCIL,CORE-MAIN-013549,90382.27,Grants to local authorities
Department for Education,DfE Core,11/02/2021,Grants expenditure,CHILDRENS SOCIAL CARE,EDGE HILL UNIVERSITY,CORE-MAIN-013550,75023.46,Grants to local authorities
Department for Education,DfE Core,09/02/2021,Other Goods & Services,CHILDRENS SOCIAL CARE,VSC Plus Limited,CORE-PINV-015080,101662.80,Other Professional Services
Department for Education,DfE Core,15/02/2021,Other Goods & Services,CHILDRENS SOCIAL CARE,SKILLS FOR CARE LTD,CORE-PINV-015488,694000.00,Other Professional Services
Department for Education,DfE Core,15/02/2021,Other Goods & Services,CHILDRENS SOCIAL CARE,SKILLS FOR CARE LTD,CORE-PINV-015489,79343.64,Other Professional Services
Department for Education,DfE Core,15/02/2021,Professional Services,CHILDRENS SOCIAL CARE,THE FRONTLINE ORGANISATION,CORE-PINV-015498,108860.00,EDUCATIONAL SERVICES
Department for Education,DfE Core,15/02/2021,Learning & Development,CHILDRENS SOCIAL CARE,THE FRONTLINE ORGANISATION,CORE-PINV-015499,599543.63,Training & Development costs
Department for Education,DfE Core,15/02/2021,Learning & Development,CHILDRENS SOCIAL CARE,THE FRONTLINE ORGANISATION,CORE-PINV-015499,93534.33,Training & Development costs
Department for Education,DfE Core,15/02/2021,Learning & Development,CHILDRENS SOCIAL CARE,THE FRONTLINE ORGANISATION,CORE-PINV-015500,695000.00,Training & Development costs
Department for Education,DfE Core,19/02/2021,Other Goods & Services,CHILDRENS SOCIAL CARE,THE DARTINGTON HALL TRUST,CORE-PINV-015900,306205.00,Other Professional Services
Department for Education,DfE Core,26/02/2021,Grants expenditure,CHILDRENS SOCIAL CARE,WIRRAL METRO BOROUGH COUNCIL,CORE-MAIN-014596,69131.66,Grants to local authorities
Department for Education,DfE Core,26/02/2021,Grants expenditure,CHILDRENS SOCIAL CARE,DERBY CITY COUNCIL,CORE-MAIN-014597,93100.14,Grants to local authorities
Department for Education,DfE Core,26/02/2021,Grants expenditure,CHILDRENS SOCIAL CARE,Buckinghamshire Council,CORE-MAIN-014598,48766.74,Grants to local authorities
Department for Education,DfE Core,26/02/2021,Grants expenditure,CHILDRENS SOCIAL CARE,BRACKNELL FOREST BOROUGH COUNCIL,CORE-MAIN-014599,42116.73,Grants to local authorities
Department for Education,DfE Core,26/02/2021,Grants expenditure,CHILDRENS SOCIAL CARE,Salford City Council,CORE-MAIN-014600,57964.15,Grants to local authorities
Department for Education,DfE Core,26/02/2021,Grants expenditure,CHILDRENS SOCIAL CARE,SOMERSET COUNTY COUNCIL,CORE-MAIN-014601,110833.50,Grants to local authorities
Department for Education,DfE Core,26/02/2021,Grants expenditure,CHILDRENS SOCIAL CARE,KENT COUNTY COUNCIL,CORE-MAIN-014602,44333.40,Grants to local authorities
Department for Education,DfE Core,26/02/2021,Grants expenditure,CHILDRENS SOCIAL CARE,HAMPSHIRE COUNTY COUNCIL,CORE-MAIN-014603,133000.20,Grants to local authorities
Department for Education,DfE Core,26/02/2021,Grants expenditure,CHILDRENS SOCIAL CARE,HAMMERSMITH & FULHAM LONDON BOROUGH COUNCIL,CORE-MAIN-014604,90883.47,Grants to local authorities
Department for Education,DfE Core,26/02/2021,Grants expenditure,CHILDRENS SOCIAL CARE,STOKE ON TRENT CITY COUNCIL,CORE-MAIN-014605,141866.88,Grants to local authorities
Department for Education,DfE Core,26/02/2021,Grants expenditure,CHILDRENS SOCIAL CARE,BRIGHTON & HOVE CITY COUNCIL,CORE-MAIN-014606,28816.71,Grants to local authorities
Department for Education,DfE Core,26/02/2021,Grants expenditure,CHILDRENS SOCIAL CARE,HERTFORDSHIRE COUNTY COUNCIL,CORE-MAIN-014607,44333.40,Grants to local authorities
Department for Education,DfE Core,26/02/2021,Grants expenditure,CHILDRENS SOCIAL CARE,ISLINGTON LONDON BOROUGH COUNCIL,CORE-MAIN-014608,62066.76,Grants to local authorities
Department for Education,DfE Core,26/02/2021,Grants expenditure,CHILDRENS SOCIAL CARE,PETERBOROUGH CITY COUNCIL,CORE-MAIN-014609,37825.73,Grants to local authorities
Department for Education,DfE Core,26/02/2021,Grants expenditure,CHILDRENS SOCIAL CARE,LANCASHIRE COUNTY COUNCIL,CORE-MAIN-014610,33250.05,Grants to local authorities
Department for Education,DfE Core,26/02/2021,Grants expenditure,CHILDRENS SOCIAL CARE,ESSEX COUNTY COUNCIL,CORE-MAIN-014611,86450.13,Grants to local authorities
Department for Education,DfE Core,26/02/2021,Grants expenditure,CHILDRENS SOCIAL CARE,HERTFORDSHIRE COUNTY COUNCIL,CORE-MAIN-014612,64405.00,Grants to local authorities
Department for Education,DfE Core,26/02/2021,Grants expenditure,CHILDRENS SOCIAL CARE,"Bournemouth, Christchurch and Poole Council",CORE-MAIN-014613,88040.32,Grants to local authorities
Department for Education,DfE Core,26/02/2021,Grants expenditure,CHILDRENS SOCIAL CARE,BROMLEY LONDON BOROUGH COUNCIL,CORE-MAIN-014614,46803.53,Grants to local authorities
Department for Education,DfE Core,26/02/2021,Grants expenditure,CHILDRENS SOCIAL CARE,ACHIEVING FOR CHILDREN,CORE-MAIN-014615,79151.00,Grants to local authorities
Department for Education,DfE Core,26/02/2021,Grants expenditure,CHILDRENS SOCIAL CARE,BRADFORD CITY COUNCIL,CORE-MAIN-014616,45754.00,Grants to local authorities
Department for Education,DfE Core,25/02/2021,Other Goods & Services,CHILDRENS SOCIAL CARE,DEPARTMENT OF HEALTH,CORE-PINV-016291,36705.60,Other Professional Services
Department for Education,DfE Core,26/02/2021,Professional Services,CHILDRENS SOCIAL CARE,THE FRONTLINE ORGANISATION,CORE-PINV-016319,108860.00,EDUCATIONAL SERVICES
Department for Education,DfE Core,03/02/2021,Legal,COMMUNICATIONS DIRECTORATE,THE GOVERNMENT LEGAL DEPARTMENT,CORE-PINV-007291,23890.80,Legal advisory services from the Government Legal Department including the provision of external specialist advice and opinion
Department for Education,DfE Core,03/02/2021,Other Goods & Services,Adoption and Children in Care Division,Mott MacDonald,CORE-PINV-014688,132416.95,Other Professional Services
Department for Education,DfE Core,04/02/2021,Consultancy,Adoption and Children in Care Division,FAMILY LIVES,CORE-PINV-014598,83745.65,IS/IT Services - Consultancy
Department for Education,DfE Core,11/02/2021,Grants expenditure,Adoption and Children in Care Division,DURHAM COUNTY COUNCIL,CORE-MAIN-013551,38343.00,Grants to local authorities
Department for Education,DfE Core,11/02/2021,Grants expenditure,Adoption and Children in Care Division,BREAK CHARITY,CORE-MAIN-013553,85541.24,Grants to educational establishments or not for profit organisations including other businesses
Department for Education,DfE Core,11/02/2021,Grants expenditure,Adoption and Children in Care Division,CAMBRIDGE EDUCATION,CUPS0020663,1303012.92,Grants to educational establishments or not for profit organisations including other businesses
Department for Education,DfE Core,11/02/2021,Other Goods & Services,Adoption and Children in Care Division,THE SHARE FOUNDATION,CORE-PINV-015274,80581.20,Other Professional Services
Department for Education,DfE Core,12/02/2021,Grants expenditure,Adoption and Children in Care Division,THE SHARE FOUNDATION 3RD PARTY TRUST,CORE-PINV-015093,68800.00,Grants to educational establishments or not for profit organisations including other businesses
Department for Education,DfE Core,12/02/2021,Other Goods & Services,Adoption and Children in Care Division,CORAM,CORE-PINV-015311,27000.00,Other Professional Services
Department for Education,DfE Core,19/02/2021,Other Goods & Services,Adoption and Children in Care Division,CORAM CHILDRENS LEGAL CENTRE LTD,CORE-PINV-015582,26383.56,Other Professional Services
Department for Education,DfE Core,19/02/2021,Other Goods & Services,Adoption and Children in Care Division,CORAM CHILDRENS LEGAL CENTRE LTD,CORE-PINV-015582,989.95,Other Professional Services
Department for Education,DfE Core,19/02/2021,Other Goods & Services,Adoption and Children in Care Division,CORAM CHILDRENS LEGAL CENTRE LTD,CORE-PINV-015583,25897.20,Other Professional Services
Department for Education,DfE Core,19/02/2021,Other Goods & Services,Adoption and Children in Care Division,CORAM CHILDRENS LEGAL CENTRE LTD,CORE-PINV-015583,1394.83,Other Professional Services
Department for Education,DfE Core,26/02/2021,Grants expenditure,Adoption and Children in Care Division,DONCASTER CHILDRENS SERVICES TRUST,CORE-MAIN-014617,27401.51,Grants to local authorities
Department for Education,DfE Core,26/02/2021,Grants expenditure,Adoption and Children in Care Division,KENT COUNTY COUNCIL,CORE-MAIN-014618,52681.00,Grants to local authorities
Department for Education,DfE Core,26/02/2021,Grants expenditure,Adoption and Children in Care Division,MANCHESTER CITY COUNCIL,CORE-MAIN-014619,49162.00,Grants to local authorities
Department for Education,DfE Core,26/02/2021,Grants expenditure,Adoption and Children in Care Division,CROYDON LONDON BOROUGH COUNCIL,CORE-MAIN-014621,28969.50,Grants to local authorities
Department for Education,DfE Core,26/02/2021,Grants expenditure,Adoption and Children in Care Division,BARKING & DAGENHAM LONDON BOROUGH COUNCIL,CORE-MAIN-014639,50841.75,Grants to local authorities
Department for Education,DfE Core,26/02/2021,Grants expenditure,Adoption and Children in Care Division,BARNET LONDON BOROUGH COUNCIL,CORE-MAIN-014640,42771.75,Grants to local authorities
Department for Education,DfE Core,26/02/2021,Grants expenditure,Adoption and Children in Care Division,BATH & NORTH EAST SOMERSET COUNCIL,CORE-MAIN-014642,29052.50,Grants to local authorities
Department for Education,DfE Core,26/02/2021,Grants expenditure,Adoption and Children in Care Division,BIRMINGHAM CITY COUNCIL,CORE-MAIN-014644,159788.75,Grants to local authorities
Department for Education,DfE Core,26/02/2021,Grants expenditure,Adoption and Children in Care Division,BLACKPOOL BOROUGH COUNCIL,CORE-MAIN-014646,30666.50,Grants to local authorities
Department for Education,DfE Core,26/02/2021,Grants expenditure,Adoption and Children in Care Division,BOLTON METRO BOROUGH COUNCIL,CORE-MAIN-014647,37122.50,Grants to local authorities
Department for Education,DfE Core,26/02/2021,Grants expenditure,Adoption and Children in Care Division,"Bournemouth, Christchurch and Poole Council",CORE-MAIN-014648,41157.75,Grants to local authorities
Department for Education,DfE Core,26/02/2021,Grants expenditure,Adoption and Children in Care Division,BRADFORD CITY COUNCIL,CORE-MAIN-014650,65368.00,Grants to local authorities
Department for Education,DfE Core,26/02/2021,Grants expenditure,Adoption and Children in Care Division,BRENT LONDON BOROUGH COUNCIL,CORE-MAIN-014651,50034.75,Grants to local authorities
Department for Education,DfE Core,26/02/2021,Grants expenditure,Adoption and Children in Care Division,BRIGHTON & HOVE CITY COUNCIL,CORE-MAIN-014652,76666.25,Grants to local authorities
Department for Education,DfE Core,26/02/2021,Grants expenditure,Adoption and Children in Care Division,BRISTOL CITY COUNCIL,CORE-MAIN-014653,107332.75,Grants to local authorities
Department for Education,DfE Core,26/02/2021,Grants expenditure,Adoption and Children in Care Division,BROMLEY LONDON BOROUGH COUNCIL,CORE-MAIN-014654,40350.75,Grants to local authorities
Department for Education,DfE Core,26/02/2021,Grants expenditure,Adoption and Children in Care Division,Buckinghamshire Council,CORE-MAIN-014655,42771.75,Grants to local authorities
Department for Education,DfE Core,26/02/2021,Grants expenditure,Adoption and Children in Care Division,CALDERDALE METRO BOROUGH COUNCIL,CORE-MAIN-014657,28245.50,Grants to local authorities
Department for Education,DfE Core,26/02/2021,Grants expenditure,Adoption and Children in Care Division,CAMBRIDGESHIRE COUNTY COUNCIL,CORE-MAIN-014658,52455.75,Grants to local authorities
Department for Education,DfE Core,26/02/2021,Grants expenditure,Adoption and Children in Care Division,CAMDEN LONDON BOROUGH COUNCIL,CORE-MAIN-014659,25017.50,Grants to local authorities
Department for Education,DfE Core,26/02/2021,Grants expenditure,Adoption and Children in Care Division,CHESHIRE EAST BOROUGH COUNCIL,CORE-MAIN-014661,28245.50,Grants to local authorities
Department for Education,DfE Core,26/02/2021,Grants expenditure,Adoption and Children in Care Division,CHESHIRE WEST & CHESTER COUNCIL,CORE-MAIN-014662,43578.75,Grants to local authorities
Department for Education,DfE Core,26/02/2021,Grants expenditure,Adoption and Children in Care Division,CITY OF YORK COUNCIL,CORE-MAIN-014663,29859.50,Grants to local authorities
Department for Education,DfE Core,26/02/2021,Grants expenditure,Adoption and Children in Care Division,CORNWALL COUNCIL,CORE-MAIN-014664,53263.00,Grants to local authorities
Department for Education,DfE Core,26/02/2021,Grants expenditure,Adoption and Children in Care Division,COVENTRY CITY COUNCIL,CORE-MAIN-014666,55684.00,Grants to local authorities
Department for Education,DfE Core,26/02/2021,Grants expenditure,Adoption and Children in Care Division,CROYDON LONDON BOROUGH COUNCIL,CORE-MAIN-014667,313928.25,Grants to local authorities
Department for Education,DfE Core,26/02/2021,Grants expenditure,Adoption and Children in Care Division,CUMBRIA COUNTY COUNCIL,CORE-MAIN-014668,38736.75,Grants to local authorities
Department for Education,DfE Core,26/02/2021,Grants expenditure,Adoption and Children in Care Division,DERBY CITY COUNCIL,CORE-MAIN-014670,40350.75,Grants to local authorities
Department for Education,DfE Core,26/02/2021,Grants expenditure,Adoption and Children in Care Division,DERBYSHIRE COUNTY COUNCIL,CORE-MAIN-014671,75859.25,Grants to local authorities
Department for Education,DfE Core,26/02/2021,Grants expenditure,Adoption and Children in Care Division,DEVON COUNTY COUNCIL,CORE-MAIN-014672,113788.75,Grants to local authorities
Department for Education,DfE Core,26/02/2021,Grants expenditure,Adoption and Children in Care Division,DONCASTER METRO BOROUGH COUNCIL,CORE-MAIN-014673,50841.75,Grants to local authorities
Department for Education,DfE Core,26/02/2021,Grants expenditure,Adoption and Children in Care Division,DORSET COUNCIL,CORE-MAIN-014674,54877.00,Grants to local authorities
Department for Education,DfE Core,26/02/2021,Grants expenditure,Adoption and Children in Care Division,DUDLEY METRO BOROUGH COUNCIL,CORE-MAIN-014675,67789.00,Grants to local authorities
Department for Education,DfE Core,26/02/2021,Grants expenditure,Adoption and Children in Care Division,DURHAM COUNTY COUNCIL,CORE-MAIN-014676,51648.75,Grants to local authorities
Department for Education,DfE Core,26/02/2021,Grants expenditure,Adoption and Children in Care Division,EALING LONDON BOROUGH COUNCIL,CORE-MAIN-014677,52455.75,Grants to local authorities
Department for Education,DfE Core,26/02/2021,Grants expenditure,Adoption and Children in Care Division,EAST RIDING OF YORKSHIRE COUNCIL,CORE-MAIN-014678,41157.75,Grants to local authorities
Department for Education,DfE Core,26/02/2021,Grants expenditure,Adoption and Children in Care Division,EAST SUSSEX COUNTY COUNCIL,CORE-MAIN-014679,74245.25,Grants to local authorities
Department for Education,DfE Core,26/02/2021,Grants expenditure,Adoption and Children in Care Division,ENFIELD LONDON BOROUGH COUNCIL,CORE-MAIN-014680,66175.00,Grants to local authorities
Department for Education,DfE Core,26/02/2021,Grants expenditure,Adoption and Children in Care Division,ESSEX COUNTY COUNCIL,CORE-MAIN-014681,137999.25,Grants to local authorities
Department for Education,DfE Core,26/02/2021,Grants expenditure,Adoption and Children in Care Division,GATESHEAD COUNCIL,CORE-MAIN-014682,57298.00,Grants to local authorities
Department for Education,DfE Core,26/02/2021,Grants expenditure,Adoption and Children in Care Division,Gloucestershire County Council,CORE-MAIN-014683,90385.50,Grants to local authorities
Department for Education,DfE Core,26/02/2021,Grants expenditure,Adoption and Children in Care Division,GREENWICH LONDON BOROUGH COUNCIL,CORE-MAIN-014684,79087.25,Grants to local authorities
Department for Education,DfE Core,26/02/2021,Grants expenditure,Adoption and Children in Care Division,HACKNEY LONDON BOROUGH COUNCIL,CORE-MAIN-014685,63754.00,Grants to local authorities
Department for Education,DfE Core,26/02/2021,Grants expenditure,Adoption and Children in Care Division,HAMMERSMITH & FULHAM LONDON BOROUGH COUNCIL,CORE-MAIN-014687,52455.75,Grants to local authorities
Department for Education,DfE Core,26/02/2021,Grants expenditure,Adoption and Children in Care Division,HAMPSHIRE COUNTY COUNCIL,CORE-MAIN-014688,171893.75,Grants to local authorities
Department for Education,DfE Core,26/02/2021,Grants expenditure,Adoption and Children in Care Division,HARINGEY LONDON BOROUGH COUNCIL,CORE-MAIN-014689,58105.00,Grants to local authorities
Department for Education,DfE Core,26/02/2021,Grants expenditure,Adoption and Children in Care Division,HARTLEPOOL BOROUGH COUNCIL,CORE-MAIN-014691,33087.50,Grants to local authorities
Department for Education,DfE Core,26/02/2021,Grants expenditure,Adoption and Children in Care Division,HAVERING LONDON BOROUGH COUNCIL,CORE-MAIN-014692,29859.50,Grants to local authorities
Department for Education,DfE Core,26/02/2021,Grants expenditure,Adoption and Children in Care Division,HEREFORDSHIRE COUNCIL,CORE-MAIN-014693,39543.75,Grants to local authorities
Department for Education,DfE Core,26/02/2021,Grants expenditure,Adoption and Children in Care Division,HERTFORDSHIRE COUNTY COUNCIL,CORE-MAIN-014694,138806.25,Grants to local authorities
Department for Education,DfE Core,26/02/2021,Grants expenditure,Adoption and Children in Care Division,HILLINGDON LONDON BOROUGH COUNCIL,CORE-MAIN-014695,49227.75,Grants to local authorities
Department for Education,DfE Core,26/02/2021,Grants expenditure,Adoption and Children in Care Division,HOUNSLOW LONDON BOROUGH COUNCIL,CORE-MAIN-014696,41157.75,Grants to local authorities
Department for Education,DfE Core,26/02/2021,Grants expenditure,Adoption and Children in Care Division,ISLINGTON LONDON BOROUGH COUNCIL,CORE-MAIN-014698,90385.50,Grants to local authorities
Department for Education,DfE Core,26/02/2021,Grants expenditure,Adoption and Children in Care Division,KENT COUNTY COUNCIL,CORE-MAIN-014699,272770.50,Grants to local authorities
Department for Education,DfE Core,26/02/2021,Grants expenditure,Adoption and Children in Care Division,KINGSTON UPON HULL CITY COUNCIL,CORE-MAIN-014700,66982.00,Grants to local authorities
Department for Education,DfE Core,26/02/2021,Grants expenditure,Adoption and Children in Care Division,KIRKLEES METRO COUNCIL,CORE-MAIN-014701,61333.00,Grants to local authorities
Department for Education,DfE Core,26/02/2021,Grants expenditure,Adoption and Children in Care Division,LAMBETH LONDON BOROUGH COUNCIL,CORE-MAIN-014703,78280.25,Grants to local authorities
Department for Education,DfE Core,26/02/2021,Grants expenditure,Adoption and Children in Care Division,LANCASHIRE COUNTY COUNCIL,CORE-MAIN-014704,129929.25,Grants to local authorities
Department for Education,DfE Core,26/02/2021,Grants expenditure,Adoption and Children in Care Division,LEEDS CITY COUNCIL,CORE-MAIN-014705,129122.25,Grants to local authorities
Department for Education,DfE Core,26/02/2021,Grants expenditure,Adoption and Children in Care Division,LEICESTER CITY COUNCIL,CORE-MAIN-014706,56491.00,Grants to local authorities
Department for Education,DfE Core,26/02/2021,Grants expenditure,Adoption and Children in Care Division,LEICESTERSHIRE COUNTY COUNCIL,CORE-MAIN-014707,34701.50,Grants to local authorities
Department for Education,DfE Core,26/02/2021,Grants expenditure,Adoption and Children in Care Division,LEWISHAM LONDON BOROUGH COUNCIL,CORE-MAIN-014708,101683.75,Grants to local authorities
Department for Education,DfE Core,26/02/2021,Grants expenditure,Adoption and Children in Care Division,LINCOLNSHIRE COUNTY COUNCIL,CORE-MAIN-014709,75052.25,Grants to local authorities
Department for Education,DfE Core,26/02/2021,Grants expenditure,Adoption and Children in Care Division,LIVERPOOL CITY COUNCIL,CORE-MAIN-014710,77473.25,Grants to local authorities
Department for Education,DfE Core,26/02/2021,Grants expenditure,Adoption and Children in Care Division,LONDON BOROUGH OF BEXLEY COUNCIL DCSF,CORE-MAIN-014711,39543.75,Grants to local authorities
Department for Education,DfE Core,26/02/2021,Grants expenditure,Adoption and Children in Care Division,London Borough of Tower Hamlets,CORE-MAIN-014714,57298.00,Grants to local authorities
Department for Education,DfE Core,26/02/2021,Grants expenditure,Adoption and Children in Care Division,LUTON BOROUGH COUNCIL,CORE-MAIN-014715,37929.50,Grants to local authorities
Department for Education,DfE Core,26/02/2021,Grants expenditure,Adoption and Children in Care Division,MANCHESTER CITY COUNCIL,CORE-MAIN-014716,132350.25,Grants to local authorities
Department for Education,DfE Core,26/02/2021,Grants expenditure,Adoption and Children in Care Division,MEDWAY COUNCIL,CORE-MAIN-014717,41157.75,Grants to local authorities
Department for Education,DfE Core,26/02/2021,Grants expenditure,Adoption and Children in Care Division,MERTON BOROUGH COUNCIL,CORE-MAIN-014718,34701.50,Grants to local authorities
Department for Education,DfE Core,26/02/2021,Grants expenditure,Adoption and Children in Care Division,Middlesbrough Council,CORE-MAIN-014719,41157.75,Grants to local authorities
Department for Education,DfE Core,26/02/2021,Grants expenditure,Adoption and Children in Care Division,MILTON KEYNES COUNCIL,CORE-MAIN-014720,39543.75,Grants to local authorities
Department for Education,DfE Core,26/02/2021,Grants expenditure,Adoption and Children in Care Division,NEWCASTLE CITY COUNCIL,CORE-MAIN-014721,61333.00,Grants to local authorities
Department for Education,DfE Core,26/02/2021,Grants expenditure,Adoption and Children in Care Division,NEWHAM LONDON BOROUGH COUNCIL,CORE-MAIN-014722,84736.50,Grants to local authorities
Department for Education,DfE Core,26/02/2021,Grants expenditure,Adoption and Children in Care Division,NORFOLK COUNTY COUNCIL,CORE-MAIN-014723,128315.00,Grants to local authorities
Department for Education,DfE Core,26/02/2021,Grants expenditure,Adoption and Children in Care Division,NORTH SOMERSET COUNCIL,CORE-MAIN-014726,29052.50,Grants to local authorities
Department for Education,DfE Core,26/02/2021,Grants expenditure,Adoption and Children in Care Division,NORTH TYNESIDE METRO BOROUGH COUNCIL,CORE-MAIN-014727,34701.50,Grants to local authorities
Department for Education,DfE Core,26/02/2021,Grants expenditure,Adoption and Children in Care Division,NORTH YORKSHIRE COUNTY COUNCIL,CORE-MAIN-014728,60526.00,Grants to local authorities
Department for Education,DfE Core,26/02/2021,Grants expenditure,Adoption and Children in Care Division,NORTHAMPTONSHIRE COUNTY COUNCIL,CORE-MAIN-014729,89578.50,Grants to local authorities
Department for Education,DfE Core,26/02/2021,Grants expenditure,Adoption and Children in Care Division,NORTHUMBERLAND COUNTY COUNCIL,CORE-MAIN-014730,33894.50,Grants to local authorities
Department for Education,DfE Core,26/02/2021,Grants expenditure,Adoption and Children in Care Division,Nottingham City Council,CORE-MAIN-014731,54877.00,Grants to local authorities
Department for Education,DfE Core,26/02/2021,Grants expenditure,Adoption and Children in Care Division,NOTTINGHAMSHIRE COUNTY COUNCIL,CORE-MAIN-014732,96841.50,Grants to local authorities
Department for Education,DfE Core,26/02/2021,Grants expenditure,Adoption and Children in Care Division,OLDHAM METRO BOROUGH COUNCIL,CORE-MAIN-014733,29052.50,Grants to local authorities
Department for Education,DfE Core,26/02/2021,Grants expenditure,Adoption and Children in Care Division,Oxfordshire County Council,CORE-MAIN-014734,67789.00,Grants to local authorities
Department for Education,DfE Core,26/02/2021,Grants expenditure,Adoption and Children in Care Division,PETERBOROUGH CITY COUNCIL,CORE-MAIN-014735,47613.75,Grants to local authorities
Department for Education,DfE Core,26/02/2021,Grants expenditure,Adoption and Children in Care Division,PLYMOUTH CITY COUNCIL,CORE-MAIN-014736,45192.75,Grants to local authorities
Department for Education,DfE Core,26/02/2021,Grants expenditure,Adoption and Children in Care Division,PORTSMOUTH CITY COUNCIL,CORE-MAIN-014737,58912.00,Grants to local authorities
Department for Education,DfE Core,26/02/2021,Grants expenditure,Adoption and Children in Care Division,Reading Borough Council,CORE-MAIN-014738,29052.50,Grants to local authorities
Department for Education,DfE Core,26/02/2021,Grants expenditure,Adoption and Children in Care Division,REDBRIDGE LONDON BOROUGH COUNCIL,CORE-MAIN-014739,60526.00,Grants to local authorities
Department for Education,DfE Core,26/02/2021,Grants expenditure,Adoption and Children in Care Division,ROCHDALE BOROUGH COUNCIL,CORE-MAIN-014741,30666.50,Grants to local authorities
Department for Education,DfE Core,26/02/2021,Grants expenditure,Adoption and Children in Care Division,ROTHERHAM BOROUGH COUNCIL,CORE-MAIN-014742,44385.75,Grants to local authorities
Department for Education,DfE Core,26/02/2021,Grants expenditure,Adoption and Children in Care Division,Salford City Council,CORE-MAIN-014747,39543.75,Grants to local authorities
Department for Education,DfE Core,26/02/2021,Grants expenditure,Adoption and Children in Care Division,Sandwell Metro Borough Council,CORE-MAIN-014748,50841.75,Grants to local authorities
Department for Education,DfE Core,26/02/2021,Grants expenditure,Adoption and Children in Care Division,Sefton Metropolitan Borough Council,CORE-MAIN-014749,50841.75,Grants to local authorities
Department for Education,DfE Core,26/02/2021,Grants expenditure,Adoption and Children in Care Division,SHEFFIELD CITY COUNCIL,CORE-MAIN-014750,70210.25,Grants to local authorities
Department for Education,DfE Core,26/02/2021,Grants expenditure,Adoption and Children in Care Division,SOLIHULL METRO BOROUGH COUNCIL,CORE-MAIN-014753,33894.50,Grants to local authorities
Department for Education,DfE Core,26/02/2021,Grants expenditure,Adoption and Children in Care Division,SOMERSET COUNTY COUNCIL,CORE-MAIN-014754,54877.00,Grants to local authorities
Department for Education,DfE Core,26/02/2021,Grants expenditure,Adoption and Children in Care Division,SOUTH GLOUCESTERSHIRE COUNCIL,CORE-MAIN-014755,38736.75,Grants to local authorities
Department for Education,DfE Core,26/02/2021,Grants expenditure,Adoption and Children in Care Division,SOUTH TYNESIDE COUNCIL,CORE-MAIN-014756,29052.50,Grants to local authorities
Department for Education,DfE Core,26/02/2021,Grants expenditure,Adoption and Children in Care Division,SOUTHAMPTON CITY COUNCIL,CORE-MAIN-014757,45999.75,Grants to local authorities
Department for Education,DfE Core,26/02/2021,Grants expenditure,Adoption and Children in Care Division,SOUTHEND ON SEA BOROUGH COUNCIL,CORE-MAIN-014758,42771.75,Grants to local authorities
Department for Education,DfE Core,26/02/2021,Grants expenditure,Adoption and Children in Care Division,SOUTHWARK LONDON BOROUGH COUNCIL,CORE-MAIN-014759,101683.75,Grants to local authorities
Department for Education,DfE Core,26/02/2021,Grants expenditure,Adoption and Children in Care Division,ST HELENS METRO BOROUGH COUNCIL,CORE-MAIN-014760,34701.50,Grants to local authorities
Department for Education,DfE Core,26/02/2021,Grants expenditure,Adoption and Children in Care Division,Staffordshire County Council,CORE-MAIN-014761,89578.50,Grants to local authorities
Department for Education,DfE Core,26/02/2021,Grants expenditure,Adoption and Children in Care Division,STOCKPORT METRO BOROUGH COUNCIL,CORE-MAIN-014762,42771.75,Grants to local authorities
Department for Education,DfE Core,26/02/2021,Grants expenditure,Adoption and Children in Care Division,STOKE ON TRENT CITY COUNCIL,CORE-MAIN-014764,25017.50,Grants to local authorities
Department for Education,DfE Core,26/02/2021,Grants expenditure,Adoption and Children in Care Division,SUFFOLK COUNTY COUNCIL,CORE-MAIN-014765,83122.25,Grants to local authorities
Department for Education,DfE Core,26/02/2021,Grants expenditure,Adoption and Children in Care Division,SUNDERLAND CITY METRO BOROUGH COUNCIL,CORE-MAIN-014766,39543.75,Grants to local authorities
Department for Education,DfE Core,26/02/2021,Grants expenditure,Adoption and Children in Care Division,SURREY COUNTY COUNCIL,CORE-MAIN-014767,171893.75,Grants to local authorities
Department for Education,DfE Core,26/02/2021,Grants expenditure,Adoption and Children in Care Division,SWINDON BOROUGH COUNCIL,CORE-MAIN-014768,54877.00,Grants to local authorities
Department for Education,DfE Core,26/02/2021,Grants expenditure,Adoption and Children in Care Division,TAMESIDE METRO BOROUGH COUNCIL,CORE-MAIN-014769,42771.75,Grants to local authorities
Department for Education,DfE Core,26/02/2021,Grants expenditure,Adoption and Children in Care Division,THURROCK BOROUGH COUNCIL,CORE-MAIN-014771,42771.75,Grants to local authorities
Department for Education,DfE Core,26/02/2021,Grants expenditure,Adoption and Children in Care Division,TORBAY COUNCIL,CORE-MAIN-014772,29052.50,Grants to local authorities
Department for Education,DfE Core,26/02/2021,Grants expenditure,Adoption and Children in Care Division,Trafford Borough Council,CORE-MAIN-014773,35508.50,Grants to local authorities
Department for Education,DfE Core,26/02/2021,Grants expenditure,Adoption and Children in Care Division,Wakefield City Council,CORE-MAIN-014774,41157.75,Grants to local authorities
Department for Education,DfE Core,26/02/2021,Grants expenditure,Adoption and Children in Care Division,WALSALL METRO BOROUGH COUNCIL,CORE-MAIN-014775,49227.75,Grants to local authorities
Department for Education,DfE Core,26/02/2021,Grants expenditure,Adoption and Children in Care Division,WALTHAM FOREST LONDON BOROUGH COUNCIL,CORE-MAIN-014776,53263.00,Grants to local authorities
Department for Education,DfE Core,26/02/2021,Grants expenditure,Adoption and Children in Care Division,Wandsworth Borough Council,CORE-MAIN-014777,28245.50,Grants to local authorities
Department for Education,DfE Core,26/02/2021,Grants expenditure,Adoption and Children in Care Division,WARWICKSHIRE COUNTY COUNCIL,CORE-MAIN-014779,129122.25,Grants to local authorities
Department for Education,DfE Core,26/02/2021,Grants expenditure,Adoption and Children in Care Division,WEST BERKSHIRE COUNCIL,CORE-MAIN-014780,33087.50,Grants to local authorities
Department for Education,DfE Core,26/02/2021,Grants expenditure,Adoption and Children in Care Division,West Sussex County Council,CORE-MAIN-014781,89578.50,Grants to local authorities
Department for Education,DfE Core,26/02/2021,Grants expenditure,Adoption and Children in Care Division,WESTMINSTER CITY COUNCIL,CORE-MAIN-014782,35508.50,Grants to local authorities
Department for Education,DfE Core,26/02/2021,Grants expenditure,Adoption and Children in Care Division,WIGAN METRO BOROUGH COUNCIL,CORE-MAIN-014783,38736.75,Grants to local authorities
Department for Education,DfE Core,26/02/2021,Grants expenditure,Adoption and Children in Care Division,WILTSHIRE COUNTY COUNCIL,CORE-MAIN-014784,48420.75,Grants to local authorities
Department for Education,DfE Core,26/02/2021,Grants expenditure,Adoption and Children in Care Division,WIRRAL METRO BOROUGH COUNCIL,CORE-MAIN-014785,63754.00,Grants to local authorities
Department for Education,DfE Core,26/02/2021,Grants expenditure,Adoption and Children in Care Division,WOLVERHAMPTON CITY COUNCIL,CORE-MAIN-014787,50034.75,Grants to local authorities
Department for Education,DfE Core,26/02/2021,Grants expenditure,Adoption and Children in Care Division,WORCESTERSHIRE COUNTY COUNCIL,CORE-MAIN-014788,70210.25,Grants to local authorities
Department for Education,DfE Core,26/02/2021,Grants expenditure,Adoption and Children in Care Division,BIRMINGHAM CITY COUNCIL,CORE-MAIN-014794,56288.40,Grants to local authorities
Department for Education,DfE Core,26/02/2021,Grants expenditure,Adoption and Children in Care Division,BRISTOL CITY COUNCIL,CORE-MAIN-014803,26334.82,Grants to local authorities
Department for Education,DfE Core,26/02/2021,Grants expenditure,Adoption and Children in Care Division,CROYDON LONDON BOROUGH COUNCIL,CORE-MAIN-014817,50651.38,Grants to local authorities
Department for Education,DfE Core,26/02/2021,Grants expenditure,Adoption and Children in Care Division,DEVON COUNTY COUNCIL,CORE-MAIN-014822,32645.34,Grants to local authorities
Department for Education,DfE Core,26/02/2021,Grants expenditure,Adoption and Children in Care Division,ESSEX COUNTY COUNCIL,CORE-MAIN-014831,51744.89,Grants to local authorities
Department for Education,DfE Core,26/02/2021,Grants expenditure,Adoption and Children in Care Division,HAMPSHIRE COUNTY COUNCIL,CORE-MAIN-014838,42489.86,Grants to local authorities
Department for Education,DfE Core,26/02/2021,Grants expenditure,Adoption and Children in Care Division,HERTFORDSHIRE COUNTY COUNCIL,CORE-MAIN-014844,41227.61,Grants to local authorities
Department for Education,DfE Core,26/02/2021,Grants expenditure,Adoption and Children in Care Division,KENT COUNTY COUNCIL,CORE-MAIN-014849,90953.49,Grants to local authorities
Department for Education,DfE Core,26/02/2021,Grants expenditure,Adoption and Children in Care Division,LANCASHIRE COUNTY COUNCIL,CORE-MAIN-014854,35758.59,Grants to local authorities
Department for Education,DfE Core,26/02/2021,Grants expenditure,Adoption and Children in Care Division,LEEDS CITY COUNCIL,CORE-MAIN-014855,28775.33,Grants to local authorities
Department for Education,DfE Core,26/02/2021,Grants expenditure,Adoption and Children in Care Division,MANCHESTER CITY COUNCIL,CORE-MAIN-014866,39123.85,Grants to local authorities
Department for Education,DfE Core,26/02/2021,Grants expenditure,Adoption and Children in Care Division,NORFOLK COUNTY COUNCIL,CORE-MAIN-014873,39881.36,Grants to local authorities
Department for Education,DfE Core,26/02/2021,Grants expenditure,Adoption and Children in Care Division,NORTHAMPTONSHIRE COUNTY COUNCIL,CORE-MAIN-014879,33318.84,Grants to local authorities
Department for Education,DfE Core,26/02/2021,Grants expenditure,Adoption and Children in Care Division,NOTTINGHAMSHIRE COUNTY COUNCIL,CORE-MAIN-014882,28606.58,Grants to local authorities
Department for Education,DfE Core,26/02/2021,Grants expenditure,Adoption and Children in Care Division,Staffordshire County Council,CORE-MAIN-014911,27849.82,Grants to local authorities
Department for Education,DfE Core,26/02/2021,Grants expenditure,Adoption and Children in Care Division,SURREY COUNTY COUNCIL,CORE-MAIN-014917,31972.58,Grants to local authorities
Department for Education,DfE Core,26/02/2021,Grants expenditure,Adoption and Children in Care Division,West Sussex County Council,CORE-MAIN-014931,27008.32,Grants to local authorities
Department for Education,DfE Core,23/02/2021,Other Goods & Services,Adoption and Children in Care Division,SPECTRA FIRST LTD,CORE-PINV-015983,82325.31,Other Professional Services
Department for Education,DfE Core,25/02/2021,Grants expenditure,Adoption and Children in Care Division,THE SHARE FOUNDATION 3RD PARTY TRUST,CORE-PINV-015948,173000.00,Grants to educational establishments or not for profit organisations including other businesses
Department for Education,DfE Core,19/02/2021,"Marketing, Media and Comms",CHILDRENS SOCIAL CARE,SCROLL PROJECTS LTD,CORE-PINV-015882,90168.60,"Publicity, advertising, media advertising campaigns (excluding recruitment adverts)"
Department for Education,DfE Core,19/02/2021,Other Goods & Services,CHILDRENS SOCIAL CARE,FARSIGHT CONSULTING LIMITED,CORE-PINV-015561,97956.60,Other Professional Services
Department for Education,DfE Core,08/02/2021,Other Goods & Services,STRATEGY SOCIAL MOBILITY OPPOTUNITY AREAS,The Warden and Fellows of Nuffield College in the University of Oxford,CORE-PINV-015092,52119.00,Research and Development
Department for Education,DfE Core,02/02/2021,Other Goods & Services,Children's Social Care - Practice,FosterTalk Limited,CORE-PINV-014350,25000.00,Other Professional Services
Department for Education,DfE Core,11/02/2021,Grants expenditure,Children's Social Care - Practice,HAMPSHIRE COUNTY COUNCIL,CORE-MAIN-013554,71230.00,Grants to local authorities
Department for Education,DfE Core,17/02/2021,Other Goods & Services,Children's Social Care - Practice,FARSIGHT CONSULTING LIMITED,CORE-PINV-015562,82237.50,Other Professional Services
Department for Education,DfE Core,17/02/2021,Other Goods & Services,Children's Social Care - Practice,FARSIGHT CONSULTING LIMITED,CORE-PINV-015556,71088.00,Other Professional Services
Department for Education,DfE Core,01/02/2021,Grants expenditure,STRATEGY SOCIAL MOBILITY OPPOTUNITY AREAS,HMCTS HM COURTS & TRIBUNALS SERVICE,CORE-PINV-014659,267600.00,Grants paid to other Government Departments
Department for Education,DfE Core,01/02/2021,Grants expenditure,STRATEGY SOCIAL MOBILITY OPPOTUNITY AREAS,HMCTS HM COURTS & TRIBUNALS SERVICE,CORE-PINV-014660,239128.00,Grants paid to other Government Departments
Department for Education,DfE Core,01/02/2021,Grants expenditure,STRATEGY SOCIAL MOBILITY OPPOTUNITY AREAS,HMCTS HM COURTS & TRIBUNALS SERVICE,CORE-PINV-014667,150788.00,Grants paid to other Government Departments
Department for Education,DfE Core,01/02/2021,Grants expenditure,STRATEGY SOCIAL MOBILITY OPPOTUNITY AREAS,HMCTS HM COURTS & TRIBUNALS SERVICE,CORE-PINV-014668,54180.00,Grants paid to other Government Departments
Department for Education,DfE Core,01/02/2021,Grants expenditure,STRATEGY SOCIAL MOBILITY OPPOTUNITY AREAS,HMCTS HM COURTS & TRIBUNALS SERVICE,CORE-PINV-014669,66836.00,Grants paid to other Government Departments
Department for Education,DfE Core,01/02/2021,Grants expenditure,STRATEGY SOCIAL MOBILITY OPPOTUNITY AREAS,HMCTS HM COURTS & TRIBUNALS SERVICE,CORE-PINV-014672,353455.00,Grants paid to other Government Departments
Department for Education,DfE Core,01/02/2021,Other Goods & Services,STRATEGY SOCIAL MOBILITY OPPOTUNITY AREAS,NATIONAL AUTISTIC SOCIETY,CORE-PINV-014332,154813.00,Other Professional Services
Department for Education,DfE Core,02/02/2021,Other Goods & Services,STRATEGY SOCIAL MOBILITY OPPOTUNITY AREAS,NASEN,CORE-PINV-014724,260354.00,Other Professional Services
Department for Education,DfE Core,04/02/2021,Other Goods & Services,STRATEGY SOCIAL MOBILITY OPPOTUNITY AREAS,CONTACT,CORE-PINV-014992,159710.08,Other Professional Services
Department for Education,DfE Core,05/02/2021,Other Goods & Services,STRATEGY SOCIAL MOBILITY OPPOTUNITY AREAS,Mott MacDonald,CORE-PINV-014123,225615.53,Other Professional Services
Department for Education,DfE Core,11/02/2021,Grants expenditure,STRATEGY SOCIAL MOBILITY OPPOTUNITY AREAS,THE FAMILY FUND TRUST,CORE-MAIN-013555,2701000.00,Grants to educational establishments or not for profit organisations including other businesses
Department for Education,DfE Core,12/02/2021,Other Goods & Services,STRATEGY SOCIAL MOBILITY OPPOTUNITY AREAS,NATIONAL AUTISTIC SOCIETY,CORE-PINV-015074,50766.00,Other Professional Services
Department for Education,DfE Core,16/02/2021,Other Goods & Services,STRATEGY SOCIAL MOBILITY OPPOTUNITY AREAS,NASEN,CORE-PINV-015551,83217.72,Other Professional Services
Department for Education,DfE Core,23/02/2021,Other Goods & Services,STRATEGY SOCIAL MOBILITY OPPOTUNITY AREAS,Mott MacDonald,CORE-PINV-015982,226395.92,Other Professional Services
Department for Education,DfE Core,23/02/2021,Grants expenditure,STRATEGY SOCIAL MOBILITY OPPOTUNITY AREAS,HMCTS HM COURTS & TRIBUNALS SERVICE,CORE-PINV-016027,97734.00,Grants paid to other Government Departments
Department for Education,DfE Core,23/02/2021,Grants expenditure,STRATEGY SOCIAL MOBILITY OPPOTUNITY AREAS,HMCTS HM COURTS & TRIBUNALS SERVICE,CORE-PINV-016028,239907.00,Grants paid to other Government Departments
Department for Education,DfE Core,23/02/2021,Grants expenditure,STRATEGY SOCIAL MOBILITY OPPOTUNITY AREAS,HMCTS HM COURTS & TRIBUNALS SERVICE,CORE-PINV-016036,33330.00,Grants paid to other Government Departments
Department for Education,DfE Core,23/02/2021,Grants expenditure,STRATEGY SOCIAL MOBILITY OPPOTUNITY AREAS,HMCTS HM COURTS & TRIBUNALS SERVICE,CORE-PINV-016037,111100.00,Grants paid to other Government Departments
Department for Education,DfE Core,23/02/2021,Grants expenditure,STRATEGY SOCIAL MOBILITY OPPOTUNITY AREAS,HMCTS HM COURTS & TRIBUNALS SERVICE,CORE-PINV-016038,139380.00,Grants paid to other Government Departments
Department for Education,DfE Core,23/02/2021,Grants expenditure,STRATEGY SOCIAL MOBILITY OPPOTUNITY AREAS,HMCTS HM COURTS & TRIBUNALS SERVICE,CORE-PINV-016039,33330.00,Grants paid to other Government Departments
Department for Education,DfE Core,23/02/2021,Grants expenditure,STRATEGY SOCIAL MOBILITY OPPOTUNITY AREAS,HMCTS HM COURTS & TRIBUNALS SERVICE,CORE-PINV-016040,55550.00,Grants paid to other Government Departments
Department for Education,DfE Core,23/02/2021,Grants expenditure,STRATEGY SOCIAL MOBILITY OPPOTUNITY AREAS,HMCTS HM COURTS & TRIBUNALS SERVICE,CORE-PINV-016041,379470.00,Grants paid to other Government Departments
Department for Education,DfE Core,23/02/2021,Grants expenditure,STRATEGY SOCIAL MOBILITY OPPOTUNITY AREAS,HMCTS HM COURTS & TRIBUNALS SERVICE,CORE-PINV-016042,302835.00,Grants paid to other Government Departments
Department for Education,DfE Core,23/02/2021,Grants expenditure,STRATEGY SOCIAL MOBILITY OPPOTUNITY AREAS,HMCTS HM COURTS & TRIBUNALS SERVICE,CORE-PINV-016043,327456.00,Grants paid to other Government Departments
Department for Education,DfE Core,23/02/2021,Grants expenditure,STRATEGY SOCIAL MOBILITY OPPOTUNITY AREAS,HMCTS HM COURTS & TRIBUNALS SERVICE,CORE-PINV-016044,45632.00,Grants paid to other Government Departments
Department for Education,DfE Core,23/02/2021,Grants expenditure,STRATEGY SOCIAL MOBILITY OPPOTUNITY AREAS,HMCTS HM COURTS & TRIBUNALS SERVICE,CORE-PCR-000561,-477220.00,Grants paid to other Government Departments
Department for Education,DfE Core,23/02/2021,Grants expenditure,STRATEGY SOCIAL MOBILITY OPPOTUNITY AREAS,HMCTS HM COURTS & TRIBUNALS SERVICE,CORE-PCR-000563,-66836.00,Grants paid to other Government Departments
Department for Education,DfE Core,23/02/2021,Grants expenditure,STRATEGY SOCIAL MOBILITY OPPOTUNITY AREAS,HMCTS HM COURTS & TRIBUNALS SERVICE,CORE-PCR-000564,-51471.00,Grants paid to other Government Departments
Department for Education,DfE Core,23/02/2021,Grants expenditure,STRATEGY SOCIAL MOBILITY OPPOTUNITY AREAS,HMCTS HM COURTS & TRIBUNALS SERVICE,CORE-PCR-000565,-453805.00,Grants paid to other Government Departments
Department for Education,DfE Core,23/02/2021,Grants expenditure,STRATEGY SOCIAL MOBILITY OPPOTUNITY AREAS,HMCTS HM COURTS & TRIBUNALS SERVICE,CORE-PCR-000566,-242572.00,Grants paid to other Government Departments
Department for Education,DfE Core,23/02/2021,Grants expenditure,STRATEGY SOCIAL MOBILITY OPPOTUNITY AREAS,HMCTS HM COURTS & TRIBUNALS SERVICE,CORE-PCR-000567,-431104.00,Grants paid to other Government Departments
Department for Education,DfE Core,23/02/2021,Grants expenditure,STRATEGY SOCIAL MOBILITY OPPOTUNITY AREAS,HMCTS HM COURTS & TRIBUNALS SERVICE,CORE-PCR-000569,-353455.00,Grants paid to other Government Departments
Department for Education,DfE Core,23/02/2021,Grants expenditure,STRATEGY SOCIAL MOBILITY OPPOTUNITY AREAS,HMCTS HM COURTS & TRIBUNALS SERVICE,CORE-PCR-000570,-66836.00,Grants paid to other Government Departments
Department for Education,DfE Core,23/02/2021,Grants expenditure,STRATEGY SOCIAL MOBILITY OPPOTUNITY AREAS,HMCTS HM COURTS & TRIBUNALS SERVICE,CORE-PCR-000571,-54180.00,Grants paid to other Government Departments
Department for Education,DfE Core,23/02/2021,Grants expenditure,STRATEGY SOCIAL MOBILITY OPPOTUNITY AREAS,HMCTS HM COURTS & TRIBUNALS SERVICE,CORE-PCR-000572,-150788.00,Grants paid to other Government Departments
Department for Education,DfE Core,23/02/2021,Grants expenditure,STRATEGY SOCIAL MOBILITY OPPOTUNITY AREAS,HMCTS HM COURTS & TRIBUNALS SERVICE,CORE-PCR-000573,-239128.00,Grants paid to other Government Departments
Department for Education,DfE Core,23/02/2021,Grants expenditure,STRATEGY SOCIAL MOBILITY OPPOTUNITY AREAS,HMCTS HM COURTS & TRIBUNALS SERVICE,CORE-PCR-000574,-267600.00,Grants paid to other Government Departments
Department for Education,DfE Core,23/02/2021,Grants expenditure,STRATEGY SOCIAL MOBILITY OPPOTUNITY AREAS,HMCTS HM COURTS & TRIBUNALS SERVICE,CORE-PCR-000584,-33330.00,Grants paid to other Government Departments
Department for Education,DfE Core,23/02/2021,Grants expenditure,STRATEGY SOCIAL MOBILITY OPPOTUNITY AREAS,HMCTS HM COURTS & TRIBUNALS SERVICE,CORE-PCR-000585,-111100.00,Grants paid to other Government Departments
Department for Education,DfE Core,23/02/2021,Grants expenditure,STRATEGY SOCIAL MOBILITY OPPOTUNITY AREAS,HMCTS HM COURTS & TRIBUNALS SERVICE,CORE-PCR-000586,-139380.00,Grants paid to other Government Departments
Department for Education,DfE Core,23/02/2021,Grants expenditure,STRATEGY SOCIAL MOBILITY OPPOTUNITY AREAS,HMCTS HM COURTS & TRIBUNALS SERVICE,CORE-PCR-000587,-33330.00,Grants paid to other Government Departments
Department for Education,DfE Core,23/02/2021,Grants expenditure,STRATEGY SOCIAL MOBILITY OPPOTUNITY AREAS,HMCTS HM COURTS & TRIBUNALS SERVICE,CORE-PCR-000588,-55550.00,Grants paid to other Government Departments
Department for Education,DfE Core,23/02/2021,Grants expenditure,STRATEGY SOCIAL MOBILITY OPPOTUNITY AREAS,HMCTS HM COURTS & TRIBUNALS SERVICE,CORE-PCR-000589,-379470.00,Grants paid to other Government Departments
Department for Education,DfE Core,23/02/2021,Grants expenditure,STRATEGY SOCIAL MOBILITY OPPOTUNITY AREAS,HMCTS HM COURTS & TRIBUNALS SERVICE,CORE-PCR-000590,-302835.00,Grants paid to other Government Departments
Department for Education,DfE Core,23/02/2021,Grants expenditure,STRATEGY SOCIAL MOBILITY OPPOTUNITY AREAS,HMCTS HM COURTS & TRIBUNALS SERVICE,CORE-PCR-000591,-327456.00,Grants paid to other Government Departments
Department for Education,DfE Core,23/02/2021,Grants expenditure,STRATEGY SOCIAL MOBILITY OPPOTUNITY AREAS,HMCTS HM COURTS & TRIBUNALS SERVICE,CORE-PCR-000592,-45632.00,Grants paid to other Government Departments
Department for Education,DfE Core,17/02/2021,Other Goods & Services,STRATEGY SOCIAL MOBILITY OPPOTUNITY AREAS,EDUCATION DEVELOPMENT TRUST,CORE-PINV-015804,47516.51,Other Professional Services
Department for Education,DfE Core,17/02/2021,Professional Services,ASSESSMENT AND CURRICULUM AND GENERAL QUALIFICATIONS,MATHEMATICS IN EDUCATION & INDUSTRY,CORE-PINV-015683,754597.00,EDUCATIONAL SERVICES
Department for Education,DfE Core,18/02/2021,Professional Services Consultancy and Contingent Labour,ASSESSMENT AND CURRICULUM AND GENERAL QUALIFICATIONS,Tribal Education Limited,CORE-PINV-014985,329522.46,Costs related to temporary workers
Department for Education,DfE Core,26/02/2021,Grants expenditure,ASSESSMENT AND CURRICULUM AND GENERAL QUALIFICATIONS,ALL SOULS CE PRIMARY SCHOOL,CORE-MAIN-014940,223706.00,Grants to educational establishments or not for profit organisations including other businesses
Department for Education,DfE Core,26/02/2021,Grants expenditure,ASSESSMENT AND CURRICULUM AND GENERAL QUALIFICATIONS,CORNERSTONE ACADEMY TRUST,CORE-MAIN-014941,164138.36,Grants to educational establishments or not for profit organisations including other businesses
Department for Education,DfE Core,26/02/2021,Grants expenditure,ASSESSMENT AND CURRICULUM AND GENERAL QUALIFICATIONS,BURLEY & WOODHEAD CE PRIMARY SCHOOL,CORE-MAIN-014942,37373.27,Grants to educational establishments or not for profit organisations including other businesses
Department for Education,DfE Core,26/02/2021,Grants expenditure,ASSESSMENT AND CURRICULUM AND GENERAL QUALIFICATIONS,WANDLE TEACHING SCHOOL ALLIANCE,CORE-MAIN-014943,185669.20,Grants to educational establishments or not for profit organisations including other businesses
Department for Education,DfE Core,26/02/2021,Grants expenditure,ASSESSMENT AND CURRICULUM AND GENERAL QUALIFICATIONS,Childer Thornton Primary School,CORE-MAIN-014944,159682.53,Grants to educational establishments or not for profit organisations including other businesses
Department for Education,DfE Core,26/02/2021,Grants expenditure,ASSESSMENT AND CURRICULUM AND GENERAL QUALIFICATIONS,Elmhurst Primary School,CORE-MAIN-014945,47805.13,Grants to educational establishments or not for profit organisations including other businesses
Department for Education,DfE Core,26/02/2021,Grants expenditure,ASSESSMENT AND CURRICULUM AND GENERAL QUALIFICATIONS,NEW WAVE FEDERATION,CORE-MAIN-014946,163165.08,Grants to educational establishments or not for profit organisations including other businesses
Department for Education,DfE Core,26/02/2021,Grants expenditure,ASSESSMENT AND CURRICULUM AND GENERAL QUALIFICATIONS,The Wensum Trust,CORE-MAIN-014947,171292.75,Grants to educational establishments or not for profit organisations including other businesses
Department for Education,DfE Core,26/02/2021,Grants expenditure,ASSESSMENT AND CURRICULUM AND GENERAL QUALIFICATIONS,Flying High Trust,CORE-MAIN-014948,155191.03,Grants to educational establishments or not for profit organisations including other businesses
Department for Education,DfE Core,26/02/2021,Grants expenditure,ASSESSMENT AND CURRICULUM AND GENERAL QUALIFICATIONS,Ilsham Church of England Academy,CORE-MAIN-014949,141068.95,Grants to educational establishments or not for profit organisations including other businesses
Department for Education,DfE Core,26/02/2021,Grants expenditure,ASSESSMENT AND CURRICULUM AND GENERAL QUALIFICATIONS,Jerry Clay Academy,CORE-MAIN-014950,76828.49,Grants to educational establishments or not for profit organisations including other businesses
Department for Education,DfE Core,26/02/2021,Grants expenditure,ASSESSMENT AND CURRICULUM AND GENERAL QUALIFICATIONS,Kingsnorth Church of England Primary School,CORE-MAIN-014951,76975.25,Grants to educational establishments or not for profit organisations including other businesses
Department for Education,DfE Core,26/02/2021,Grants expenditure,ASSESSMENT AND CURRICULUM AND GENERAL QUALIFICATIONS,Lacey Green Primary Academy,CORE-MAIN-014952,122164.00,Grants to educational establishments or not for profit organisations including other businesses
Department for Education,DfE Core,26/02/2021,Grants expenditure,ASSESSMENT AND CURRICULUM AND GENERAL QUALIFICATIONS,YORKSHIRE ENDEAVOUR ACADEMY TRUST,CORE-MAIN-014953,63557.36,Grants to educational establishments or not for profit organisations including other businesses
Department for Education,DfE Core,26/02/2021,Grants expenditure,ASSESSMENT AND CURRICULUM AND GENERAL QUALIFICATIONS,LITTLE SUTTON PRIMARY SCHOOL,CORE-MAIN-014954,120196.51,Grants to educational establishments or not for profit organisations including other businesses
Department for Education,DfE Core,26/02/2021,Grants expenditure,ASSESSMENT AND CURRICULUM AND GENERAL QUALIFICATIONS,MANGOTSFIELD CE PRIMARY SCHOOL,CORE-MAIN-014955,77503.26,Grants to educational establishments or not for profit organisations including other businesses
Department for Education,DfE Core,26/02/2021,Grants expenditure,ASSESSMENT AND CURRICULUM AND GENERAL QUALIFICATIONS,ORGILL PRIMARY SCHOOL,CORE-MAIN-014956,86809.58,Grants to educational establishments or not for profit organisations including other businesses
Department for Education,DfE Core,26/02/2021,Grants expenditure,ASSESSMENT AND CURRICULUM AND GENERAL QUALIFICATIONS,OUTWOOD GRANGE SERVICES LTD,CORE-MAIN-014957,171007.88,Grants to educational establishments or not for profit organisations including other businesses
Department for Education,DfE Core,26/02/2021,Grants expenditure,ASSESSMENT AND CURRICULUM AND GENERAL QUALIFICATIONS,Ramsbury English Hub,CORE-MAIN-014958,70963.26,Grants to educational establishments or not for profit organisations including other businesses
Department for Education,DfE Core,26/02/2021,Grants expenditure,ASSESSMENT AND CURRICULUM AND GENERAL QUALIFICATIONS,ROADE PRIMARY SCHOOL,CORE-MAIN-014959,93688.22,Grants to educational establishments or not for profit organisations including other businesses
Department for Education,DfE Core,26/02/2021,Grants expenditure,ASSESSMENT AND CURRICULUM AND GENERAL QUALIFICATIONS,Springhill Catholic Primary School,CORE-MAIN-014960,147537.99,Grants to educational establishments or not for profit organisations including other businesses
Department for Education,DfE Core,26/02/2021,Grants expenditure,ASSESSMENT AND CURRICULUM AND GENERAL QUALIFICATIONS,LIGHTHOUSE SCHOOLS PARTNERSHIP ST PETERS TEACHING SCHOOL,CORE-MAIN-014961,127552.66,Grants to educational establishments or not for profit organisations including other businesses
Department for Education,DfE Core,26/02/2021,Grants expenditure,ASSESSMENT AND CURRICULUM AND GENERAL QUALIFICATIONS,LEARNING UNLIMITED TEACHING SCHOOL ALLIANCE,CORE-MAIN-014962,182474.42,Grants to educational establishments or not for profit organisations including other businesses
Department for Education,DfE Core,26/02/2021,Grants expenditure,ASSESSMENT AND CURRICULUM AND GENERAL QUALIFICATIONS,THE GREETLAND ACADEMY TEAMWORKS TEACHING SCHOOL ALLIANCE,CORE-MAIN-014963,42605.27,Grants to educational establishments or not for profit organisations including other businesses
Department for Education,DfE Core,26/02/2021,Grants expenditure,ASSESSMENT AND CURRICULUM AND GENERAL QUALIFICATIONS,Westgarth Primary School,CORE-MAIN-014965,115948.33,Grants to educational establishments or not for profit organisations including other businesses
Department for Education,DfE Core,26/02/2021,Grants expenditure,ASSESSMENT AND CURRICULUM AND GENERAL QUALIFICATIONS,Whiston Worry Goose Junior and Infant School,CORE-MAIN-014966,152971.33,Grants to educational establishments or not for profit organisations including other businesses
Department for Education,DfE Core,26/02/2021,Grants expenditure,ASSESSMENT AND CURRICULUM AND GENERAL QUALIFICATIONS,Witham St Hughs Academy,CORE-MAIN-014967,188599.59,Grants to educational establishments or not for profit organisations including other businesses
Department for Education,DfE Core,26/02/2021,Grants expenditure,ASSESSMENT AND CURRICULUM AND GENERAL QUALIFICATIONS,ST JOHN BOSCO CATHOLIC PRIMARY SCHOOL TS ACCOUNT,CORE-MAIN-014968,150987.00,Grants to educational establishments or not for profit organisations including other businesses
Department for Education,DfE Core,26/02/2021,Grants expenditure,ASSESSMENT AND CURRICULUM AND GENERAL QUALIFICATIONS,BLACKPOOL BOROUGH COUNCIL,CORE-MAIN-014969,194233.04,Grants to educational establishments or not for profit organisations including other businesses
Department for Education,DfE Core,26/02/2021,Grants expenditure,ASSESSMENT AND CURRICULUM AND GENERAL QUALIFICATIONS,ST MICHAELS C OF E PRIMARY SCHOOL,CORE-MAIN-014970,352890.39,Grants to educational establishments or not for profit organisations including other businesses
Department for Education,DfE Core,11/02/2021,Grants expenditure,ASSESSMENT AND CURRICULUM AND GENERAL QUALIFICATIONS,UNIVERSITY OF CAMBRIDGE,CUPS0020628,1263376.66,Grants to educational establishments or not for profit organisations including other businesses
Department for Education,DfE Core,11/02/2021,Grants expenditure,ASSESSMENT AND CURRICULUM AND GENERAL QUALIFICATIONS,UNIVERSITY OF CAMBRIDGE,CUPS0020629,-1052813.88,Grants to educational establishments or not for profit organisations including other businesses
Department for Education,DfE Core,03/02/2021,Professional Services,ASSESSMENT AND CURRICULUM AND GENERAL QUALIFICATIONS,STEM LEARNING LTD,CORE-PINV-014208,366248.00,EDUCATIONAL SERVICES
Department for Education,DfE Core,11/02/2021,Learning & Development,ASSESSMENT AND CURRICULUM AND GENERAL QUALIFICATIONS,IOP INSTITUTE OF PHYSICS,CORE-PINV-015392,139869.00,Training & Development costs
Department for Education,DfE Core,23/02/2021,Professional Services,ASSESSMENT AND CURRICULUM AND GENERAL QUALIFICATIONS,STEM LEARNING LTD,CORE-PINV-015994,54687.51,EDUCATIONAL SERVICES
Department for Education,DfE Core,23/02/2021,Professional Services,ASSESSMENT AND CURRICULUM AND GENERAL QUALIFICATIONS,STEM LEARNING LTD,CORE-PINV-015995,189999.00,EDUCATIONAL SERVICES
Department for Education,DfE Core,23/02/2021,Professional Services,ASSESSMENT AND CURRICULUM AND GENERAL QUALIFICATIONS,STEM LEARNING LTD,CORE-PINV-015996,43368.85,EDUCATIONAL SERVICES
Department for Education,DfE Core,11/02/2021,Grants expenditure,SEND AND DISADVANTAGE GROUP,DIANA AWARD,CORE-MAIN-013556,77333.00,Grants to educational establishments or not for profit organisations including other businesses
Department for Education,DfE Core,11/02/2021,Grants expenditure,SEND AND DISADVANTAGE GROUP,ANNE FRANK TRUST,CORE-MAIN-013557,68595.00,Grants to educational establishments or not for profit organisations including other businesses
Department for Education,DfE Core,11/02/2021,Grants expenditure,SEND AND DISADVANTAGE GROUP,NCB,CORE-MAIN-013558,61612.50,Grants to educational establishments or not for profit organisations including other businesses
Department for Education,DfE Core,11/02/2021,Grants expenditure,Life Skills Division,YOUTH SPORT TRUST,CORE-MAIN-013559,90000.00,Grants to educational establishments or not for profit organisations including other businesses
Department for Education,DfE Core,04/02/2021,Grants expenditure,SEND AND DISADVANTAGE GROUP,EDENRED,CORE-PINV-014646,43066660.00,Grants to educational establishments or not for profit organisations including other businesses
Department for Education,DfE Core,05/02/2021,Other Goods & Services,SEND AND DISADVANTAGE GROUP,FAMILY ACTION,CORE-PINV-015036,1383059.59,Other Professional Services
Department for Education,DfE Core,05/02/2021,Other Goods & Services,SEND AND DISADVANTAGE GROUP,FAMILY ACTION,CORE-PINV-015035,76018.12,Other Professional Services
Department for Education,DfE Core,26/02/2021,Grants expenditure,School Safeguarding and Pastoral Care ,GRASSLOT INFANT SCHOOL,CORE-MAIN-014972,30372.00,"Grants paid to organisations including agencies, arms length bodies and educational establishments"
Department for Education,DfE Core,26/02/2021,Grants expenditure,EY AND SCHOOLS STRATEGY TOTAL,I CAN,CORE-MAIN-014973,71654.25,Grants to educational establishments or not for profit organisations including other businesses
Department for Education,DfE Core,26/02/2021,Grants expenditure,EY AND SCHOOLS STRATEGY TOTAL,NASEN,CORE-MAIN-014974,169726.00,Grants to educational establishments or not for profit organisations including other businesses
Department for Education,DfE Core,26/02/2021,Grants expenditure,EY AND SCHOOLS STRATEGY TOTAL,Pre-School Learning Alliance,CORE-MAIN-014975,123416.00,Grants to educational establishments or not for profit organisations including other businesses
Department for Education,DfE Core,26/02/2021,Grants expenditure,EY AND SCHOOLS STRATEGY TOTAL,INSTITUTE OF WELLBEING LTD,CORE-MAIN-014976,132750.00,Grants to educational establishments or not for profit organisations including other businesses
Department for Education,DfE Core,26/02/2021,Grants expenditure,EY AND SCHOOLS STRATEGY TOTAL,COUNCIL FOR DISABLED CHILDREN,CORE-MAIN-014977,202000.00,Grants to educational establishments or not for profit organisations including other businesses
Department for Education,DfE Core,26/02/2021,Grants expenditure,EY AND SCHOOLS STRATEGY TOTAL,COUNCIL FOR DISABLED CHILDREN,CORE-MAIN-014978,95499.00,Grants to educational establishments or not for profit organisations including other businesses
Department for Education,DfE Core,26/02/2021,Grants expenditure,EY AND SCHOOLS STRATEGY TOTAL,I CAN,CORE-MAIN-014979,78260.00,Grants to educational establishments or not for profit organisations including other businesses
Department for Education,DfE Core,25/02/2021,Other Goods & Services,EY AND SCHOOLS STRATEGY TOTAL,Renaissance Learning UK Ltd,CORE-PINV-016304,21034.35,Research and Development
Department for Education,DfE Core,26/02/2021,Grants expenditure,ASSESSMENT AND CURRICULUM AND GENERAL QUALIFICATIONS,CHOIR SCHOOLS ASSOCIATION BURSARY TRUST LTD,CORE-MAIN-014980,747960.75,Grants to educational establishments or not for profit organisations including other businesses
Department for Education,DfE Core,16/02/2021,Contractors,ASSESSMENT AND CURRICULUM AND GENERAL QUALIFICATIONS,UNIVERSITY COLLEGE LONDON,CORE-PINV-015620,44022.33,Funding to deliver policies (excluding consultancy) paid to third parties via a service delivery contract
Department for Education,DfE Core,26/02/2021,Grants expenditure,ASSESSMENT AND CURRICULUM AND GENERAL QUALIFICATIONS,THE HOLOCAUST EDUCATIONAL TRUST,CORE-MAIN-014981,338271.00,Grants to educational establishments or not for profit organisations including other businesses
Department for Education,DfE Core,01/02/2021,Other Goods & Services,TEACHERS AND TEACHING,GOVERNMENT ACTUARYS DEPT,CORE-PINV-014690,35087.56,Other Professional Services
Department for Education,DfE Core,03/02/2021,Grants expenditure,EY AND SCHOOLS STRATEGY TOTAL,PACEY,CORE-MAIN-013400,61151.64,Grants to educational establishments or not for profit organisations including other businesses
Department for Education,DfE Core,09/02/2021,Other Goods & Services,EY AND SCHOOLS STRATEGY TOTAL,Hempsall Consultancies Ltd.,CORE-PINV-014957,50100.00,Other Professional Services
Department for Education,DfE Core,16/02/2021,Other Goods & Services,EY AND SCHOOLS STRATEGY TOTAL,HM REVENUE & CUSTOMS,CORE-PINV-015577,198020.66,Other Professional Services
Department for Education,DfE Core,16/02/2021,Other Goods & Services,EY AND SCHOOLS STRATEGY TOTAL,HM REVENUE & CUSTOMS,CORE-PINV-015578,2187383.59,Other Professional Services
Department for Education,DfE Core,03/02/2021,Grants expenditure,EY AND SCHOOLS STRATEGY TOTAL,SHEFFIELD HALLAM UNIVERSITY,CUPS0019836,36540.00,Grants to educational establishments or not for profit organisations including other businesses
Department for Education,DfE Core,03/02/2021,Grants expenditure,EY AND SCHOOLS STRATEGY TOTAL,UNIVERSITY OF GREENWICH,CUPS0019840,36630.00,Grants to educational establishments or not for profit organisations including other businesses
Department for Education,DfE Core,03/02/2021,Grants expenditure,EY AND SCHOOLS STRATEGY TOTAL,UNIVERSITY OF PORTSMOUTH,CUPS0019842,41020.00,Grants to educational establishments or not for profit organisations including other businesses
Department for Education,DfE Core,03/02/2021,Grants expenditure,EY AND SCHOOLS STRATEGY TOTAL,UNIVERSITY OF SUSSEX,CUPS0019844,29160.00,Grants to educational establishments or not for profit organisations including other businesses
Department for Education,DfE Core,03/02/2021,Grants expenditure,EY AND SCHOOLS STRATEGY TOTAL,MIDDLESEX UNIVERSITY,CUPS0019847,27720.00,Grants to educational establishments or not for profit organisations including other businesses
Department for Education,DfE Core,03/02/2021,Grants expenditure,EY AND SCHOOLS STRATEGY TOTAL,University of Bedfordshire,CUPS0019848,28590.00,Grants to educational establishments or not for profit organisations including other businesses
Department for Education,DfE Core,03/02/2021,Grants expenditure,EY AND SCHOOLS STRATEGY TOTAL,ESSEX PRY SCHOOLS TRAINING GROUP,CUPS0019850,49963.33,Grants to educational establishments or not for profit organisations including other businesses
Department for Education,DfE Core,03/02/2021,Grants expenditure,EY AND SCHOOLS STRATEGY TOTAL,E-QUALITAS PROFESSIONAL SERVICES LIMITED,CUPS0019851,120508.34,Grants to educational establishments or not for profit organisations including other businesses
Department for Education,DfE Core,03/02/2021,Grants expenditure,EY AND SCHOOLS STRATEGY TOTAL,ASHTON-ON-MERSEY SCHOOL,CUPS0019926,561100.00,Grants to educational establishments or not for profit organisations including other businesses
Department for Education,DfE Core,05/02/2021,Learning & Development,EY AND SCHOOLS STRATEGY TOTAL,EDUCATION DEVELOPMENT TRUST,CORE-PINV-015064,93901.00,Training & Development costs
Department for Education,DfE Core,26/02/2021,Grants expenditure,EY AND SCHOOLS STRATEGY TOTAL,THE NATIONAL LITERACY TRUST,CORE-MAIN-015060,261409.00,Grants to educational establishments or not for profit organisations including other businesses
Department for Education,DfE Core,26/02/2021,Professional Services Consultancy and Contingent Labour,EY AND SCHOOLS STRATEGY TOTAL,MINISTRY OF JUSTICE,CORE-PINV-014693,74919.66,Costs related to temporary workers
Department for Education,DfE Core,05/02/2021,Other Goods & Services,TEACHING WORKFORCE TOTAL,TELEPERFORMANCE LTD,CORE-PINV-015028,76276.32,Other Professional Services
Department for Education,DfE Core,11/02/2021,Consultancy,SYSTEM CAPACITY LEADERSHIP AND GOVERNANCE TOTAL,THE GOVERNMENT LEGAL DEPARTMENT,CORE-PINV-015383,29260.00,"Advisory services including fees, travel and expenses"
Department for Education,DfE Core,05/02/2021,Other Goods & Services,TEACHING WORKFORCE TOTAL,TELEPERFORMANCE LTD,CORE-PINV-015026,502464.17,Other Professional Services
Department for Education,DfE Core,22/02/2021,"Marketing, Media and Comms",TEACHING WORKFORCE TOTAL,OMD GROUP TA MANNING GOTTLIEB OMD LTD,CORE-PINV-015960,29.29,"Publicity, advertising, media advertising campaigns (excluding recruitment adverts)"
Department for Education,DfE Core,22/02/2021,"Marketing, Media and Comms",TEACHING WORKFORCE TOTAL,OMD GROUP TA MANNING GOTTLIEB OMD LTD,CORE-PINV-015960,29585.39,"Publicity, advertising, media advertising campaigns (excluding recruitment adverts)"
Department for Education,DfE Core,01/02/2021,"Marketing, Media and Comms",TEACHING WORKFORCE TOTAL,OMD GROUP TA MANNING GOTTLIEB OMD LTD,CORE-PINV-014185,153.06,"Publicity, advertising, media advertising campaigns (excluding recruitment adverts)"
Department for Education,DfE Core,01/02/2021,"Marketing, Media and Comms",TEACHING WORKFORCE TOTAL,OMD GROUP TA MANNING GOTTLIEB OMD LTD,CORE-PINV-014185,154593.45,"Publicity, advertising, media advertising campaigns (excluding recruitment adverts)"
Department for Education,DfE Core,02/02/2021,"Marketing, Media and Comms",TEACHING WORKFORCE TOTAL,OMD GROUP TA MANNING GOTTLIEB OMD LTD,CORE-PINV-014731,55.67,"Publicity, advertising, media advertising campaigns (excluding recruitment adverts)"
Department for Education,DfE Core,02/02/2021,"Marketing, Media and Comms",TEACHING WORKFORCE TOTAL,OMD GROUP TA MANNING GOTTLIEB OMD LTD,CORE-PINV-014731,56428.89,"Publicity, advertising, media advertising campaigns (excluding recruitment adverts)"
Department for Education,DfE Core,08/02/2021,"Marketing, Media and Comms",TEACHING WORKFORCE TOTAL,OMD GROUP TA MANNING GOTTLIEB OMD LTD,CORE-PINV-015082,84.35,"Publicity, advertising, media advertising campaigns (excluding recruitment adverts)"
Department for Education,DfE Core,08/02/2021,"Marketing, Media and Comms",TEACHING WORKFORCE TOTAL,OMD GROUP TA MANNING GOTTLIEB OMD LTD,CORE-PINV-015082,85233.00,"Publicity, advertising, media advertising campaigns (excluding recruitment adverts)"
Department for Education,DfE Core,11/02/2021,"Marketing, Media and Comms",TEACHING WORKFORCE TOTAL,OMD GROUP TA MANNING GOTTLIEB OMD LTD,CORE-PINV-008257,149939.45,"Publicity, advertising, media advertising campaigns (excluding recruitment adverts)"
Department for Education,DfE Core,11/02/2021,"Marketing, Media and Comms",TEACHING WORKFORCE TOTAL,OMD GROUP TA MANNING GOTTLIEB OMD LTD,CORE-PINV-008257,148.24,"Publicity, advertising, media advertising campaigns (excluding recruitment adverts)"
Department for Education,DfE Core,22/02/2021,"Marketing, Media and Comms",TEACHING WORKFORCE TOTAL,OMD GROUP TA MANNING GOTTLIEB OMD LTD,CORE-PINV-015953,81.73,"Publicity, advertising, media advertising campaigns (excluding recruitment adverts)"
Department for Education,DfE Core,22/02/2021,"Marketing, Media and Comms",TEACHING WORKFORCE TOTAL,OMD GROUP TA MANNING GOTTLIEB OMD LTD,CORE-PINV-015953,82584.75,"Publicity, advertising, media advertising campaigns (excluding recruitment adverts)"
Department for Education,DfE Core,22/02/2021,"Marketing, Media and Comms",TEACHING WORKFORCE TOTAL,OMD GROUP TA MANNING GOTTLIEB OMD LTD,CORE-PINV-015956,38.53,"Publicity, advertising, media advertising campaigns (excluding recruitment adverts)"
Department for Education,DfE Core,22/02/2021,"Marketing, Media and Comms",TEACHING WORKFORCE TOTAL,OMD GROUP TA MANNING GOTTLIEB OMD LTD,CORE-PINV-015956,38925.94,"Publicity, advertising, media advertising campaigns (excluding recruitment adverts)"
Department for Education,DfE Core,22/02/2021,"Marketing, Media and Comms",TEACHING WORKFORCE TOTAL,OMD GROUP TA MANNING GOTTLIEB OMD LTD,CORE-PINV-015959,239.82,"Publicity, advertising, media advertising campaigns (excluding recruitment adverts)"
Department for Education,DfE Core,22/02/2021,"Marketing, Media and Comms",TEACHING WORKFORCE TOTAL,OMD GROUP TA MANNING GOTTLIEB OMD LTD,CORE-PINV-015959,245370.26,"Publicity, advertising, media advertising campaigns (excluding recruitment adverts)"
Department for Education,DfE Core,25/02/2021,"Marketing, Media and Comms",TEACHING WORKFORCE TOTAL,OMD GROUP TA MANNING GOTTLIEB OMD LTD,CORE-PINV-016201,57.57,"Publicity, advertising, media advertising campaigns (excluding recruitment adverts)"
Department for Education,DfE Core,25/02/2021,"Marketing, Media and Comms",TEACHING WORKFORCE TOTAL,OMD GROUP TA MANNING GOTTLIEB OMD LTD,CORE-PINV-016201,59379.35,"Publicity, advertising, media advertising campaigns (excluding recruitment adverts)"
Department for Education,DfE Core,09/02/2021,"Marketing, Media and Comms",TEACHING WORKFORCE TOTAL,HAVAS WORLDWIDE LONDON LTD,CORE-PINV-015132,29492.10,"Publicity, advertising, media advertising campaigns (excluding recruitment adverts)"
Department for Education,DfE Core,05/02/2021,"Marketing, Media and Comms",TEACHING WORKFORCE TOTAL,Kindred Agency Limited,CORE-PINV-015065,26260.00,"Publicity, advertising, media advertising campaigns (excluding recruitment adverts)"
Department for Education,DfE Core,12/02/2021,IS/IT,TEACHING WORKFORCE TOTAL,Digi2al Ltd,CORE-PINV-015223,42405.00,Software Development
Department for Education,DfE Core,16/02/2021,IS/IT,TEACHING WORKFORCE TOTAL,FARSIGHT CONSULTING LIMITED,CORE-PINV-015585,25500.00,Software Development
Department for Education,DfE Core,25/02/2021,"Marketing, Media and Comms",TEACHING WORKFORCE TOTAL,OMD GROUP TA MANNING GOTTLIEB OMD LTD,CORE-PINV-016194,52.99,"Publicity, advertising, media advertising campaigns (excluding recruitment adverts)"
Department for Education,DfE Core,25/02/2021,"Marketing, Media and Comms",TEACHING WORKFORCE TOTAL,OMD GROUP TA MANNING GOTTLIEB OMD LTD,CORE-PINV-016194,53666.96,"Publicity, advertising, media advertising campaigns (excluding recruitment adverts)"
Department for Education,DfE Core,04/02/2021,IS/IT,TEACHING WORKFORCE TOTAL,HESA SERVICES LTD,CORE-PINV-014955,36094.25,IS/IT Systems Operations
Department for Education,DfE Core,26/02/2021,Grants expenditure,TEACHING WORKFORCE TOTAL,Poole Grammar School ,CORE-MAIN-015069,41980.00,"Grants paid to organisations including agencies, arms length bodies and educational establishments"
Department for Education,DfE Core,26/02/2021,Grants expenditure,TEACHING WORKFORCE TOTAL,BISHOP CHALLONER CATHOLIC COLLEGE,CORE-MAIN-015070,94400.00,Grants to local authorities
Department for Education,DfE Core,16/02/2021,Professional Services,TEACHING WORKFORCE TOTAL,COGNITION EDUCATION,CORE-PINV-015605,118351.29,EDUCATIONAL SERVICES
Department for Education,DfE Core,05/02/2021,Other Goods & Services,TEACHING WORKFORCE TOTAL,TELEPERFORMANCE LTD,CORE-PINV-015030,27141.48,Other Professional Services
Department for Education,DfE Core,01/02/2021,Professional Services,TEACHING WORKFORCE TOTAL,THE BRILLIANT CLUB,CORE-PINV-014710,167569.54,EDUCATIONAL SERVICES
Department for Education,DfE Core,23/02/2021,Other Goods & Services,TEACHING WORKFORCE TOTAL,P2P EDUCATION LTD,CORE-PINV-015992,57000.00,Other Professional Services
Department for Education,DfE Core,24/02/2021,Professional Services,TEACHING WORKFORCE TOTAL,TEACH FIRST,CORE-PINV-015901,863066.86,EDUCATIONAL SERVICES
Department for Education,DfE Core,24/02/2021,Professional Services,TEACHING WORKFORCE TOTAL,TEACH FIRST,CORE-PINV-015902,971484.72,EDUCATIONAL SERVICES
Department for Education,DfE Core,03/02/2021,Other Goods & Services,SYSTEM CAPACITY LEADERSHIP AND GOVERNANCE TOTAL,AMBITION INSTITUTE,CORE-PINV-014824,77210.87,Programme Expenditure
Department for Education,DfE Core,03/02/2021,Professional Services,SYSTEM CAPACITY LEADERSHIP AND GOVERNANCE TOTAL,AMBITION INSTITUTE,CORE-PINV-014895,495401.00,EDUCATIONAL SERVICES
Department for Education,DfE Core,04/02/2021,Other Goods & Services,SYSTEM CAPACITY LEADERSHIP AND GOVERNANCE TOTAL,EDUCATION DEVELOPMENT TRUST,CORE-PINV-014948,35003.96,Programme Expenditure
Department for Education,DfE Core,04/02/2021,Other Goods & Services,SYSTEM CAPACITY LEADERSHIP AND GOVERNANCE TOTAL,TEACH FIRST,CORE-PINV-014974,60964.36,Programme Expenditure
Department for Education,DfE Core,04/02/2021,Professional Services,SYSTEM CAPACITY LEADERSHIP AND GOVERNANCE TOTAL,TEACH FIRST,CORE-PINV-014977,506785.00,EDUCATIONAL SERVICES
Department for Education,DfE Core,03/02/2021,Other Goods & Services,SYSTEM CAPACITY LEADERSHIP AND GOVERNANCE TOTAL,UCL CONSULTANTS LTD,CORE-PINV-014798,60650.05,Programme Expenditure
Department for Education,DfE Core,19/02/2021,Professional Services,SYSTEM CAPACITY LEADERSHIP AND GOVERNANCE TOTAL,EDUCATION DEVELOPMENT TRUST,CORE-PINV-015893,158031.43,EDUCATIONAL SERVICES
Department for Education,DfE Core,26/02/2021,Professional Services,SYSTEM CAPACITY LEADERSHIP AND GOVERNANCE TOTAL,EDUCATION DEVELOPMENT TRUST,CORE-PINV-016320,36086.16,EDUCATIONAL SERVICES
Department for Education,DfE Core,03/02/2021,Grants expenditure,SYSTEM CAPACITY LEADERSHIP AND GOVERNANCE TOTAL,EVOLVE TEACHING SCHOOL ALLIANCE LTD,CORE-MAIN-013407,26666.00,"Grants paid to organisations including agencies, arms length bodies and educational establishments"
Department for Education,DfE Core,03/02/2021,Grants expenditure,SYSTEM CAPACITY LEADERSHIP AND GOVERNANCE TOTAL,Bentley Wood High School,CORE-MAIN-013408,26666.00,"Grants paid to organisations including agencies, arms length bodies and educational establishments"
Department for Education,DfE Core,03/02/2021,Grants expenditure,SYSTEM CAPACITY LEADERSHIP AND GOVERNANCE TOTAL,Exceed Academies Trust,CORE-MAIN-013409,26666.00,"Grants paid to organisations including agencies, arms length bodies and educational establishments"
Department for Education,DfE Core,03/02/2021,Grants expenditure,SYSTEM CAPACITY LEADERSHIP AND GOVERNANCE TOTAL,EVERTON NURSERY SCHOOL & FAMILY CENTRE,CORE-MAIN-013410,26666.00,Grants to local authorities
Department for Education,DfE Core,03/02/2021,Grants expenditure,SYSTEM CAPACITY LEADERSHIP AND GOVERNANCE TOTAL,HILLMORTON PRIMARY SCHOOL WCC AC,CORE-MAIN-013412,26666.00,Grants to local authorities
Department for Education,DfE Core,03/02/2021,Grants expenditure,SYSTEM CAPACITY LEADERSHIP AND GOVERNANCE TOTAL,Ladywood School,CORE-MAIN-013413,26666.00,"Grants paid to organisations including agencies, arms length bodies and educational establishments"
Department for Education,DfE Core,03/02/2021,Grants expenditure,SYSTEM CAPACITY LEADERSHIP AND GOVERNANCE TOTAL,LOSTOCK HALL COMMUNITY PRIMARY SCHOOL NLE ACCOUNT,CORE-MAIN-013414,26666.00,Grants to local authorities
Department for Education,DfE Core,03/02/2021,Grants expenditure,SYSTEM CAPACITY LEADERSHIP AND GOVERNANCE TOTAL,Loxford School Trust Limited,CORE-MAIN-013415,26666.00,"Grants paid to organisations including agencies, arms length bodies and educational establishments"
Department for Education,DfE Core,03/02/2021,Grants expenditure,SYSTEM CAPACITY LEADERSHIP AND GOVERNANCE TOTAL,LUDWICK NURSERY SCHOOL,CORE-MAIN-013416,26666.00,Grants to local authorities
Department for Education,DfE Core,03/02/2021,Grants expenditure,SYSTEM CAPACITY LEADERSHIP AND GOVERNANCE TOTAL,PEN GREEN TEACHING SCHOOL ALLIANCE,CORE-MAIN-013417,26666.00,Grants to local authorities
Department for Education,DfE Core,03/02/2021,Grants expenditure,SYSTEM CAPACITY LEADERSHIP AND GOVERNANCE TOTAL,Piper Hill High School,CORE-MAIN-013418,26666.00,"Grants paid to organisations including agencies, arms length bodies and educational establishments"
Department for Education,DfE Core,03/02/2021,Grants expenditure,SYSTEM CAPACITY LEADERSHIP AND GOVERNANCE TOTAL,Prince Henry's High school,CORE-MAIN-013420,26666.00,"Grants paid to organisations including agencies, arms length bodies and educational establishments"
Department for Education,DfE Core,03/02/2021,Grants expenditure,SYSTEM CAPACITY LEADERSHIP AND GOVERNANCE TOTAL,The Priory Learning Trust,CORE-MAIN-013421,26666.00,"Grants paid to organisations including agencies, arms length bodies and educational establishments"
Department for Education,DfE Core,03/02/2021,Grants expenditure,SYSTEM CAPACITY LEADERSHIP AND GOVERNANCE TOTAL,Southgate School ,CORE-MAIN-013424,27166.00,"Grants paid to organisations including agencies, arms length bodies and educational establishments"
Department for Education,DfE Core,03/02/2021,Grants expenditure,SYSTEM CAPACITY LEADERSHIP AND GOVERNANCE TOTAL,Our Lady Immaculate Catholic Academies Trust,CORE-MAIN-013427,27666.00,"Grants paid to organisations including agencies, arms length bodies and educational establishments"
Department for Education,DfE Core,03/02/2021,Grants expenditure,SYSTEM CAPACITY LEADERSHIP AND GOVERNANCE TOTAL,The Compton School,CORE-MAIN-013431,26666.00,"Grants paid to organisations including agencies, arms length bodies and educational establishments"
Department for Education,DfE Core,03/02/2021,Grants expenditure,SYSTEM CAPACITY LEADERSHIP AND GOVERNANCE TOTAL,VALENTINES HIGH SCHOOL,CORE-MAIN-013436,26666.00,Grants to local authorities
Department for Education,DfE Core,03/02/2021,Grants expenditure,SYSTEM CAPACITY LEADERSHIP AND GOVERNANCE TOTAL,WADE DEACON HIGH SCHOOL,CORE-MAIN-013437,26666.00,"Grants paid to organisations including agencies, arms length bodies and educational establishments"
Department for Education,DfE Core,03/02/2021,Grants expenditure,SYSTEM CAPACITY LEADERSHIP AND GOVERNANCE TOTAL,CHESHIRE WEST & CHESTER COUNCIL,CORE-MAIN-013443,26666.00,Grants to local authorities
Department for Education,DfE Core,03/02/2021,Grants expenditure,SYSTEM CAPACITY LEADERSHIP AND GOVERNANCE TOTAL,Cotswold Beacon Academy Trust,CORE-MAIN-013446,26666.00,"Grants paid to organisations including agencies, arms length bodies and educational establishments"
Department for Education,DfE Core,03/02/2021,Grants expenditure,SYSTEM CAPACITY LEADERSHIP AND GOVERNANCE TOTAL,Sneinton St Stephen's CofE Primary School,CORE-MAIN-013455,26666.00,"Grants paid to organisations including agencies, arms length bodies and educational establishments"
Department for Education,DfE Core,03/02/2021,Grants expenditure,SYSTEM CAPACITY LEADERSHIP AND GOVERNANCE TOTAL,Twynham School TS,CORE-MAIN-013471,26666.00,"Grants paid to organisations including agencies, arms length bodies and educational establishments"
Department for Education,DfE Core,03/02/2021,Grants expenditure,SYSTEM CAPACITY LEADERSHIP AND GOVERNANCE TOTAL,WOODLANDS COMMUNITY PRIMARY SCHOOL,CORE-MAIN-013475,26666.00,Grants to local authorities
Department for Education,DfE Core,26/02/2021,Grants expenditure,SYSTEM CAPACITY LEADERSHIP AND GOVERNANCE TOTAL,All Hallows Catholic College,CORE-MAIN-015073,26666.00,"Grants paid to organisations including agencies, arms length bodies and educational establishments"
Department for Education,DfE Core,26/02/2021,Grants expenditure,SYSTEM CAPACITY LEADERSHIP AND GOVERNANCE TOTAL,ALL SAINTS RC SCHOOL,CORE-MAIN-015075,25166.00,Grants to local authorities
Department for Education,DfE Core,26/02/2021,Grants expenditure,SYSTEM CAPACITY LEADERSHIP AND GOVERNANCE TOTAL,Central RSA Academies Trust,CORE-MAIN-015077,26666.00,"Grants paid to organisations including agencies, arms length bodies and educational establishments"
Department for Education,DfE Core,26/02/2021,Grants expenditure,SYSTEM CAPACITY LEADERSHIP AND GOVERNANCE TOTAL,Balcarras School,CORE-MAIN-015078,26666.00,"Grants paid to organisations including agencies, arms length bodies and educational establishments"
Department for Education,DfE Core,26/02/2021,Grants expenditure,SYSTEM CAPACITY LEADERSHIP AND GOVERNANCE TOTAL,BARONS COURT PRIMARY SCHOOL & NURSERY,CORE-MAIN-015079,26666.00,Grants to local authorities
Department for Education,DfE Core,26/02/2021,Grants expenditure,SYSTEM CAPACITY LEADERSHIP AND GOVERNANCE TOTAL,BARROW CEVC PRIMARY SCHOOL,CORE-MAIN-015080,26666.00,Grants to local authorities
Department for Education,DfE Core,26/02/2021,Grants expenditure,SYSTEM CAPACITY LEADERSHIP AND GOVERNANCE TOTAL,Bedonwell Infant and Nursery School,CORE-MAIN-015081,26541.00,"Grants paid to organisations including agencies, arms length bodies and educational establishments"
Department for Education,DfE Core,26/02/2021,Grants expenditure,SYSTEM CAPACITY LEADERSHIP AND GOVERNANCE TOTAL,Belleville Primary School,CORE-MAIN-015083,26166.00,"Grants paid to organisations including agencies, arms length bodies and educational establishments"
Department for Education,DfE Core,26/02/2021,Grants expenditure,SYSTEM CAPACITY LEADERSHIP AND GOVERNANCE TOTAL,Bishop Rawstorne Church of England Academy ,CORE-MAIN-015084,25166.00,"Grants paid to organisations including agencies, arms length bodies and educational establishments"
Department for Education,DfE Core,26/02/2021,Grants expenditure,SYSTEM CAPACITY LEADERSHIP AND GOVERNANCE TOTAL,Keystone Academy Trust,CORE-MAIN-015086,26266.00,"Grants paid to organisations including agencies, arms length bodies and educational establishments"
Department for Education,DfE Core,26/02/2021,Grants expenditure,SYSTEM CAPACITY LEADERSHIP AND GOVERNANCE TOTAL,Bridgewater High School,CORE-MAIN-015089,25166.00,"Grants paid to organisations including agencies, arms length bodies and educational establishments"
Department for Education,DfE Core,26/02/2021,Grants expenditure,SYSTEM CAPACITY LEADERSHIP AND GOVERNANCE TOTAL,BROMPTON ON SWALE C OF E PRIMARY SCHOOL,CORE-MAIN-015090,26666.00,Grants to local authorities
Department for Education,DfE Core,26/02/2021,Grants expenditure,SYSTEM CAPACITY LEADERSHIP AND GOVERNANCE TOTAL,Brookburn Community School,CORE-MAIN-015091,26666.00,"Grants paid to organisations including agencies, arms length bodies and educational establishments"
Department for Education,DfE Core,26/02/2021,Grants expenditure,SYSTEM CAPACITY LEADERSHIP AND GOVERNANCE TOTAL,BROUGHTON BUSINESS & ENTERPRISE COLLEGE,CORE-MAIN-015092,26666.00,Grants to local authorities
Department for Education,DfE Core,26/02/2021,Grants expenditure,SYSTEM CAPACITY LEADERSHIP AND GOVERNANCE TOTAL,BYGROVE PRIMARY SCHOOL,CORE-MAIN-015093,26666.00,"Grants paid to organisations including agencies, arms length bodies and educational establishments"
Department for Education,DfE Core,26/02/2021,Grants expenditure,SYSTEM CAPACITY LEADERSHIP AND GOVERNANCE TOTAL,Carmel College,CORE-MAIN-015094,26666.00,"Grants paid to organisations including agencies, arms length bodies and educational establishments"
Department for Education,DfE Core,26/02/2021,Grants expenditure,SYSTEM CAPACITY LEADERSHIP AND GOVERNANCE TOTAL,CASTLEBAR SCHOOL,CORE-MAIN-015096,26666.00,Grants to local authorities
Department for Education,DfE Core,26/02/2021,Grants expenditure,SYSTEM CAPACITY LEADERSHIP AND GOVERNANCE TOTAL,Catmose College,CORE-MAIN-015097,26666.00,"Grants paid to organisations including agencies, arms length bodies and educational establishments"
Department for Education,DfE Core,26/02/2021,Grants expenditure,SYSTEM CAPACITY LEADERSHIP AND GOVERNANCE TOTAL,CHALLNEY HIGH SCHOOL FOR BOYS,CORE-MAIN-015098,26466.00,"Grants paid to organisations including agencies, arms length bodies and educational establishments"
Department for Education,DfE Core,26/02/2021,Grants expenditure,SYSTEM CAPACITY LEADERSHIP AND GOVERNANCE TOTAL,Chepping View Primary Academy,CORE-MAIN-015099,25666.00,"Grants paid to organisations including agencies, arms length bodies and educational establishments"
Department for Education,DfE Core,26/02/2021,Grants expenditure,SYSTEM CAPACITY LEADERSHIP AND GOVERNANCE TOTAL,Learn Academies Trust,CORE-MAIN-015100,26666.00,"Grants paid to organisations including agencies, arms length bodies and educational establishments"
Department for Education,DfE Core,26/02/2021,Grants expenditure,SYSTEM CAPACITY LEADERSHIP AND GOVERNANCE TOTAL,CHURCHILL COMMUNITY COLLEGE,CORE-MAIN-015101,25166.00,Grants to local authorities
Department for Education,DfE Core,26/02/2021,Grants expenditure,SYSTEM CAPACITY LEADERSHIP AND GOVERNANCE TOTAL,COMPTON CE PRIMARY SCHOOL BERKSHIRE,CORE-MAIN-015102,26529.00,Grants to local authorities
Department for Education,DfE Core,26/02/2021,Grants expenditure,SYSTEM CAPACITY LEADERSHIP AND GOVERNANCE TOTAL,Cranford Community College,CORE-MAIN-015103,26666.00,"Grants paid to organisations including agencies, arms length bodies and educational establishments"
Department for Education,DfE Core,26/02/2021,Grants expenditure,SYSTEM CAPACITY LEADERSHIP AND GOVERNANCE TOTAL,Dane Court Grammar School,CORE-MAIN-015104,26666.00,"Grants paid to organisations including agencies, arms length bodies and educational establishments"
Department for Education,DfE Core,26/02/2021,Grants expenditure,SYSTEM CAPACITY LEADERSHIP AND GOVERNANCE TOTAL,Davies Lane Primary School,CORE-MAIN-015105,26666.00,"Grants paid to organisations including agencies, arms length bodies and educational establishments"
Department for Education,DfE Core,26/02/2021,Grants expenditure,SYSTEM CAPACITY LEADERSHIP AND GOVERNANCE TOTAL,Debenham High School,CORE-MAIN-015106,26666.00,"Grants paid to organisations including agencies, arms length bodies and educational establishments"
Department for Education,DfE Core,26/02/2021,Grants expenditure,SYSTEM CAPACITY LEADERSHIP AND GOVERNANCE TOTAL,DOBCROFT INFANT SCHOOL,CORE-MAIN-015107,26366.00,Grants to local authorities
Department for Education,DfE Core,26/02/2021,Grants expenditure,SYSTEM CAPACITY LEADERSHIP AND GOVERNANCE TOTAL,DOROTHY STRINGER SCHOOL,CORE-MAIN-015108,26666.00,Grants to local authorities
Department for Education,DfE Core,26/02/2021,Grants expenditure,SYSTEM CAPACITY LEADERSHIP AND GOVERNANCE TOTAL,ELIZABETH GARRETT ANDERSON SCHOOL,CORE-MAIN-015109,26666.00,Grants to local authorities
Department for Education,DfE Core,26/02/2021,Grants expenditure,SYSTEM CAPACITY LEADERSHIP AND GOVERNANCE TOTAL,ELLEN TINKHAM SCHOOL,CORE-MAIN-015110,26166.00,Grants to local authorities
Department for Education,DfE Core,26/02/2021,Grants expenditure,SYSTEM CAPACITY LEADERSHIP AND GOVERNANCE TOTAL,EWELL GROVE INFANT & NURSERY SCHOOL,CORE-MAIN-015112,25166.00,Grants to local authorities
Department for Education,DfE Core,26/02/2021,Grants expenditure,SYSTEM CAPACITY LEADERSHIP AND GOVERNANCE TOTAL,FIVE ACRE WOOD SCHOOL,CORE-MAIN-015114,26166.00,Grants to local authorities
Department for Education,DfE Core,26/02/2021,Grants expenditure,SYSTEM CAPACITY LEADERSHIP AND GOVERNANCE TOTAL,Forest Way School,CORE-MAIN-015115,26666.00,"Grants paid to organisations including agencies, arms length bodies and educational establishments"
Department for Education,DfE Core,26/02/2021,Grants expenditure,SYSTEM CAPACITY LEADERSHIP AND GOVERNANCE TOTAL,Fosse Way School,CORE-MAIN-015116,25416.00,"Grants paid to organisations including agencies, arms length bodies and educational establishments"
Department for Education,DfE Core,26/02/2021,Grants expenditure,SYSTEM CAPACITY LEADERSHIP AND GOVERNANCE TOTAL,FRANK WISE SCHOOL,CORE-MAIN-015117,26666.00,Grants to local authorities
Department for Education,DfE Core,26/02/2021,Grants expenditure,SYSTEM CAPACITY LEADERSHIP AND GOVERNANCE TOTAL,Bradgate Education Partnership,CORE-MAIN-015118,26666.00,"Grants paid to organisations including agencies, arms length bodies and educational establishments"
Department for Education,DfE Core,26/02/2021,Grants expenditure,SYSTEM CAPACITY LEADERSHIP AND GOVERNANCE TOTAL,Gatley Primary School ,CORE-MAIN-015119,26666.00,"Grants paid to organisations including agencies, arms length bodies and educational establishments"
Department for Education,DfE Core,26/02/2021,Grants expenditure,SYSTEM CAPACITY LEADERSHIP AND GOVERNANCE TOTAL,GEORGE ABBOT ACADEMY,CORE-MAIN-015120,26666.00,"Grants paid to organisations including agencies, arms length bodies and educational establishments"
Department for Education,DfE Core,26/02/2021,Grants expenditure,SYSTEM CAPACITY LEADERSHIP AND GOVERNANCE TOTAL,Gillotts School,CORE-MAIN-015121,26666.00,"Grants paid to organisations including agencies, arms length bodies and educational establishments"
Department for Education,DfE Core,26/02/2021,Grants expenditure,SYSTEM CAPACITY LEADERSHIP AND GOVERNANCE TOTAL,SUTTON SCITT,CORE-MAIN-015122,25966.00,"Grants paid to organisations including agencies, arms length bodies and educational establishments"
Department for Education,DfE Core,26/02/2021,Grants expenditure,SYSTEM CAPACITY LEADERSHIP AND GOVERNANCE TOTAL,The Harmony Trust Ltd,CORE-MAIN-015123,26666.00,"Grants paid to organisations including agencies, arms length bodies and educational establishments"
Department for Education,DfE Core,26/02/2021,Grants expenditure,SYSTEM CAPACITY LEADERSHIP AND GOVERNANCE TOTAL,GREY COURT SCHOOL,CORE-MAIN-015124,26666.00,"Grants paid to organisations including agencies, arms length bodies and educational establishments"
Department for Education,DfE Core,26/02/2021,Grants expenditure,SYSTEM CAPACITY LEADERSHIP AND GOVERNANCE TOTAL,ORWELL MULTI ACADEMY TRUST,CORE-MAIN-015125,26666.00,"Grants paid to organisations including agencies, arms length bodies and educational establishments"
Department for Education,DfE Core,26/02/2021,Grants expenditure,SYSTEM CAPACITY LEADERSHIP AND GOVERNANCE TOTAL,Hall Mead School,CORE-MAIN-015126,25166.00,"Grants paid to organisations including agencies, arms length bodies and educational establishments"
Department for Education,DfE Core,26/02/2021,Grants expenditure,SYSTEM CAPACITY LEADERSHIP AND GOVERNANCE TOTAL,HARRINGTON NURSERY SCHOOL,CORE-MAIN-015127,26666.00,Grants to local authorities
Department for Education,DfE Core,26/02/2021,Grants expenditure,SYSTEM CAPACITY LEADERSHIP AND GOVERNANCE TOTAL,Harris City Academy Crystal Palace,CORE-MAIN-015128,26666.00,"Grants paid to organisations including agencies, arms length bodies and educational establishments"
Department for Education,DfE Core,26/02/2021,Grants expenditure,SYSTEM CAPACITY LEADERSHIP AND GOVERNANCE TOTAL,Hayes School,CORE-MAIN-015129,26666.00,"Grants paid to organisations including agencies, arms length bodies and educational establishments"
Department for Education,DfE Core,26/02/2021,Grants expenditure,SYSTEM CAPACITY LEADERSHIP AND GOVERNANCE TOTAL,HEATHFIELD COMMUNITY SCHOOL,CORE-MAIN-015130,26166.00,Grants to local authorities
Department for Education,DfE Core,26/02/2021,Grants expenditure,SYSTEM CAPACITY LEADERSHIP AND GOVERNANCE TOTAL,HERNE CE INFANT SCHOOL,CORE-MAIN-015131,26666.00,Grants to local authorities
Department for Education,DfE Core,26/02/2021,Grants expenditure,SYSTEM CAPACITY LEADERSHIP AND GOVERNANCE TOTAL,HILLBOROUGH JUNIOR SCHOOL,CORE-MAIN-015134,26491.00,Grants to local authorities
Department for Education,DfE Core,26/02/2021,Grants expenditure,SYSTEM CAPACITY LEADERSHIP AND GOVERNANCE TOTAL,Hitchin Girls' School,CORE-MAIN-015135,26666.00,"Grants paid to organisations including agencies, arms length bodies and educational establishments"
Department for Education,DfE Core,26/02/2021,Grants expenditure,SYSTEM CAPACITY LEADERSHIP AND GOVERNANCE TOTAL,HOLY ROSARY CATHOLIC PRIMARY SCHOOL TS ACCOUNT,CORE-MAIN-015136,26666.00,Grants to local authorities
Department for Education,DfE Core,26/02/2021,Grants expenditure,SYSTEM CAPACITY LEADERSHIP AND GOVERNANCE TOTAL,Ilsham Church of England Academy,CORE-MAIN-015138,26666.00,"Grants paid to organisations including agencies, arms length bodies and educational establishments"
Department for Education,DfE Core,26/02/2021,Grants expenditure,SYSTEM CAPACITY LEADERSHIP AND GOVERNANCE TOTAL,KESWICK HIGH SCHOOL TS ACCOUNT,CORE-MAIN-015139,26666.00,"Grants paid to organisations including agencies, arms length bodies and educational establishments"
Department for Education,DfE Core,26/02/2021,Grants expenditure,SYSTEM CAPACITY LEADERSHIP AND GOVERNANCE TOTAL,Kingsbridge Academy,CORE-MAIN-015140,26666.00,"Grants paid to organisations including agencies, arms length bodies and educational establishments"
Department for Education,DfE Core,26/02/2021,Grants expenditure,SYSTEM CAPACITY LEADERSHIP AND GOVERNANCE TOTAL,KINGSWOOD PRIMARY SCHOOL,CORE-MAIN-015141,26666.00,Grants to local authorities
Department for Education,DfE Core,26/02/2021,Grants expenditure,SYSTEM CAPACITY LEADERSHIP AND GOVERNANCE TOTAL,Langley Grammar School,CORE-MAIN-015142,26666.00,"Grants paid to organisations including agencies, arms length bodies and educational establishments"
Department for Education,DfE Core,26/02/2021,Grants expenditure,SYSTEM CAPACITY LEADERSHIP AND GOVERNANCE TOTAL,LINWOOD SCHOOL,CORE-MAIN-015143,26666.00,Grants to local authorities
Department for Education,DfE Core,26/02/2021,Grants expenditure,SYSTEM CAPACITY LEADERSHIP AND GOVERNANCE TOTAL,Macmillan Academy,CORE-MAIN-015145,26666.00,"Grants paid to organisations including agencies, arms length bodies and educational establishments"
Department for Education,DfE Core,26/02/2021,Grants expenditure,SYSTEM CAPACITY LEADERSHIP AND GOVERNANCE TOTAL,"Hope Learning Trust, York",CORE-MAIN-015147,26166.00,"Grants paid to organisations including agencies, arms length bodies and educational establishments"
Department for Education,DfE Core,26/02/2021,Grants expenditure,SYSTEM CAPACITY LEADERSHIP AND GOVERNANCE TOTAL,MANOR MULTI ACADEMY TRUST,CORE-MAIN-015148,26666.00,"Grants paid to organisations including agencies, arms length bodies and educational establishments"
Department for Education,DfE Core,26/02/2021,Grants expenditure,SYSTEM CAPACITY LEADERSHIP AND GOVERNANCE TOTAL,MARLBROOK PRIMARY SCHOOL,CORE-MAIN-015150,25966.00,Grants to local authorities
Department for Education,DfE Core,26/02/2021,Grants expenditure,SYSTEM CAPACITY LEADERSHIP AND GOVERNANCE TOTAL,ELEVATE MULTI ACADEMY TRUST,CORE-MAIN-015151,26666.00,"Grants paid to organisations including agencies, arms length bodies and educational establishments"
Department for Education,DfE Core,26/02/2021,Grants expenditure,SYSTEM CAPACITY LEADERSHIP AND GOVERNANCE TOTAL,THE MILLAIS ALLIANCE,CORE-MAIN-015152,26666.00,Grants to local authorities
Department for Education,DfE Core,26/02/2021,Grants expenditure,SYSTEM CAPACITY LEADERSHIP AND GOVERNANCE TOTAL,MILLSTEAD PRIMARY SCHOOL,CORE-MAIN-015153,26666.00,Grants to local authorities
Department for Education,DfE Core,26/02/2021,Grants expenditure,SYSTEM CAPACITY LEADERSHIP AND GOVERNANCE TOTAL,Aspire Academy Trust ,CORE-MAIN-015155,26666.00,"Grants paid to organisations including agencies, arms length bodies and educational establishments"
Department for Education,DfE Core,26/02/2021,Grants expenditure,SYSTEM CAPACITY LEADERSHIP AND GOVERNANCE TOTAL,NEW YORK PRIMARY SCHOOL,CORE-MAIN-015156,26666.00,Grants to local authorities
Department for Education,DfE Core,26/02/2021,Grants expenditure,SYSTEM CAPACITY LEADERSHIP AND GOVERNANCE TOTAL,MIDSOMER NORTON SCHOOLS PARTNERSHIP NORTON HILL,CORE-MAIN-015157,26666.00,"Grants paid to organisations including agencies, arms length bodies and educational establishments"
Department for Education,DfE Core,26/02/2021,Grants expenditure,SYSTEM CAPACITY LEADERSHIP AND GOVERNANCE TOTAL,Notre Dame High School,CORE-MAIN-015158,26666.00,"Grants paid to organisations including agencies, arms length bodies and educational establishments"
Department for Education,DfE Core,26/02/2021,Grants expenditure,SYSTEM CAPACITY LEADERSHIP AND GOVERNANCE TOTAL,St John The Baptist Catholic Multi Academy Trust,CORE-MAIN-015159,26666.00,"Grants paid to organisations including agencies, arms length bodies and educational establishments"
Department for Education,DfE Core,26/02/2021,Grants expenditure,SYSTEM CAPACITY LEADERSHIP AND GOVERNANCE TOTAL,Dartmoor Multi Academy Trust,CORE-MAIN-015160,25166.00,"Grants paid to organisations including agencies, arms length bodies and educational establishments"
Department for Education,DfE Core,26/02/2021,Grants expenditure,SYSTEM CAPACITY LEADERSHIP AND GOVERNANCE TOTAL,Oldham Sixth Form College,CORE-MAIN-015161,25916.00,"Grants paid to organisations including agencies, arms length bodies and educational establishments"
Department for Education,DfE Core,26/02/2021,Grants expenditure,SYSTEM CAPACITY LEADERSHIP AND GOVERNANCE TOTAL,ORMISTON VENTURE ACADEMY,CORE-MAIN-015162,26666.00,"Grants paid to organisations including agencies, arms length bodies and educational establishments"
Department for Education,DfE Core,26/02/2021,Grants expenditure,SYSTEM CAPACITY LEADERSHIP AND GOVERNANCE TOTAL,DERBYSHIRE COUNTY COUNCIL,CORE-MAIN-015163,26666.00,Grants to local authorities
Department for Education,DfE Core,26/02/2021,Grants expenditure,SYSTEM CAPACITY LEADERSHIP AND GOVERNANCE TOTAL,WIRRAL METRO BOROUGH COUNCIL,CORE-MAIN-015164,26666.00,Grants to local authorities
Department for Education,DfE Core,26/02/2021,Grants expenditure,SYSTEM CAPACITY LEADERSHIP AND GOVERNANCE TOTAL,Our Lady of Pity Catholic Primary School ,CORE-MAIN-015165,26666.00,"Grants paid to organisations including agencies, arms length bodies and educational establishments"
Department for Education,DfE Core,26/02/2021,Grants expenditure,SYSTEM CAPACITY LEADERSHIP AND GOVERNANCE TOTAL,OUR LADYS BISHOP ETON SCHOOL,CORE-MAIN-015166,26666.00,Grants to local authorities
Department for Education,DfE Core,26/02/2021,Grants expenditure,SYSTEM CAPACITY LEADERSHIP AND GOVERNANCE TOTAL,OUR LADYS CATHOLIC HIGH SCHOOL,CORE-MAIN-015167,26666.00,Grants to local authorities
Department for Education,DfE Core,26/02/2021,Grants expenditure,SYSTEM CAPACITY LEADERSHIP AND GOVERNANCE TOTAL,OUTWOOD GRANGE SERVICES LTD,CORE-MAIN-015168,26666.00,"Grants paid to organisations including agencies, arms length bodies and educational establishments"
Department for Education,DfE Core,26/02/2021,Grants expenditure,SYSTEM CAPACITY LEADERSHIP AND GOVERNANCE TOTAL,The Painsley Catholic Academy,CORE-MAIN-015169,25866.00,"Grants paid to organisations including agencies, arms length bodies and educational establishments"
Department for Education,DfE Core,26/02/2021,Grants expenditure,SYSTEM CAPACITY LEADERSHIP AND GOVERNANCE TOTAL,Ponteland Community Middle School,CORE-MAIN-015171,26666.00,"Grants paid to organisations including agencies, arms length bodies and educational establishments"
Department for Education,DfE Core,26/02/2021,Grants expenditure,SYSTEM CAPACITY LEADERSHIP AND GOVERNANCE TOTAL,Prestolee Primary School ,CORE-MAIN-015172,26666.00,"Grants paid to organisations including agencies, arms length bodies and educational establishments"
Department for Education,DfE Core,26/02/2021,Grants expenditure,SYSTEM CAPACITY LEADERSHIP AND GOVERNANCE TOTAL,QUEEN ELIZABETH'S GRAMMAR SCHOOL,CORE-MAIN-015173,26666.00,"Grants paid to organisations including agencies, arms length bodies and educational establishments"
Department for Education,DfE Core,26/02/2021,Grants expenditure,SYSTEM CAPACITY LEADERSHIP AND GOVERNANCE TOTAL,QUEENSBRIDGE PRIMARY SCHOOL,CORE-MAIN-015174,26666.00,Grants to local authorities
Department for Education,DfE Core,26/02/2021,Grants expenditure,SYSTEM CAPACITY LEADERSHIP AND GOVERNANCE TOTAL,Redborne Upper School and Community College,CORE-MAIN-015175,26666.00,"Grants paid to organisations including agencies, arms length bodies and educational establishments"
Department for Education,DfE Core,26/02/2021,Grants expenditure,SYSTEM CAPACITY LEADERSHIP AND GOVERNANCE TOTAL,Ringwood School Academy,CORE-MAIN-015176,26666.00,"Grants paid to organisations including agencies, arms length bodies and educational establishments"
Department for Education,DfE Core,26/02/2021,Grants expenditure,SYSTEM CAPACITY LEADERSHIP AND GOVERNANCE TOTAL,RIPLEY ST THOMAS CE HIGH SCHOOL,CORE-MAIN-015177,26666.00,"Grants paid to organisations including agencies, arms length bodies and educational establishments"
Department for Education,DfE Core,26/02/2021,Grants expenditure,SYSTEM CAPACITY LEADERSHIP AND GOVERNANCE TOTAL,Bedfordshire Schools Trust Limited,CORE-MAIN-015178,26666.00,"Grants paid to organisations including agencies, arms length bodies and educational establishments"
Department for Education,DfE Core,26/02/2021,Grants expenditure,SYSTEM CAPACITY LEADERSHIP AND GOVERNANCE TOTAL,UNIVERSITY OF BRIGHTON ACADEMIES TRUST,CORE-MAIN-015179,26666.00,"Grants paid to organisations including agencies, arms length bodies and educational establishments"
Department for Education,DfE Core,26/02/2021,Grants expenditure,SYSTEM CAPACITY LEADERSHIP AND GOVERNANCE TOTAL,ROUND DIAMOND PRIMARY SCHOOL,CORE-MAIN-015180,26666.00,Grants to local authorities
Department for Education,DfE Core,26/02/2021,Grants expenditure,SYSTEM CAPACITY LEADERSHIP AND GOVERNANCE TOTAL,Salesian School,CORE-MAIN-015181,26666.00,"Grants paid to organisations including agencies, arms length bodies and educational establishments"
Department for Education,DfE Core,26/02/2021,Grants expenditure,SYSTEM CAPACITY LEADERSHIP AND GOVERNANCE TOTAL,WEST YORKSHIRE TEACHING ALLIANCE,CORE-MAIN-015183,26666.00,"Grants paid to organisations including agencies, arms length bodies and educational establishments"
Department for Education,DfE Core,26/02/2021,Grants expenditure,SYSTEM CAPACITY LEADERSHIP AND GOVERNANCE TOTAL,SIR JONATHAN NORTH COLLEGE,CORE-MAIN-015185,26666.00,"Grants paid to organisations including agencies, arms length bodies and educational establishments"
Department for Education,DfE Core,26/02/2021,Grants expenditure,SYSTEM CAPACITY LEADERSHIP AND GOVERNANCE TOTAL,Sir Robert Geffery's Voluntary Aided Church of Eng,CORE-MAIN-015187,26666.00,"Grants paid to organisations including agencies, arms length bodies and educational establishments"
Department for Education,DfE Core,26/02/2021,Grants expenditure,SYSTEM CAPACITY LEADERSHIP AND GOVERNANCE TOTAL,Sir Thomas Rich's School,CORE-MAIN-015188,26666.00,"Grants paid to organisations including agencies, arms length bodies and educational establishments"
Department for Education,DfE Core,26/02/2021,Grants expenditure,SYSTEM CAPACITY LEADERSHIP AND GOVERNANCE TOTAL,STOWE VALLEY MULTI ACADEMY TRUST,CORE-MAIN-015189,26666.00,"Grants paid to organisations including agencies, arms length bodies and educational establishments"
Department for Education,DfE Core,26/02/2021,Grants expenditure,SYSTEM CAPACITY LEADERSHIP AND GOVERNANCE TOTAL,Spring Common Academy,CORE-MAIN-015190,26541.00,"Grants paid to organisations including agencies, arms length bodies and educational establishments"
Department for Education,DfE Core,26/02/2021,Grants expenditure,SYSTEM CAPACITY LEADERSHIP AND GOVERNANCE TOTAL,St Aidan's Church of England High School,CORE-MAIN-015191,26666.00,"Grants paid to organisations including agencies, arms length bodies and educational establishments"
Department for Education,DfE Core,26/02/2021,Grants expenditure,SYSTEM CAPACITY LEADERSHIP AND GOVERNANCE TOTAL,ST ANDREWS CE PRIMARY SCHOOL,CORE-MAIN-015192,26666.00,Grants to local authorities
Department for Education,DfE Core,26/02/2021,Grants expenditure,SYSTEM CAPACITY LEADERSHIP AND GOVERNANCE TOTAL,ST ANGELAS URSULINE SCHOOL,CORE-MAIN-015193,26666.00,Grants to local authorities
Department for Education,DfE Core,26/02/2021,Grants expenditure,SYSTEM CAPACITY LEADERSHIP AND GOVERNANCE TOTAL,"St Bernard's School, Louth",CORE-MAIN-015194,26666.00,"Grants paid to organisations including agencies, arms length bodies and educational establishments"
Department for Education,DfE Core,26/02/2021,Grants expenditure,SYSTEM CAPACITY LEADERSHIP AND GOVERNANCE TOTAL,The Rivers C of E Multi Academy Trust,CORE-MAIN-015196,26666.00,"Grants paid to organisations including agencies, arms length bodies and educational establishments"
Department for Education,DfE Core,26/02/2021,Grants expenditure,SYSTEM CAPACITY LEADERSHIP AND GOVERNANCE TOTAL,St James the Great RC Primary and Nursery School,CORE-MAIN-015198,26666.00,"Grants paid to organisations including agencies, arms length bodies and educational establishments"
Department for Education,DfE Core,26/02/2021,Grants expenditure,SYSTEM CAPACITY LEADERSHIP AND GOVERNANCE TOTAL,ST JOHN BOSCO CATHOLIC PRIMARY SCHOOL TS ACCOUNT,CORE-MAIN-015200,26666.00,Grants to local authorities
Department for Education,DfE Core,26/02/2021,Grants expenditure,SYSTEM CAPACITY LEADERSHIP AND GOVERNANCE TOTAL,ST JOHN VIANNEY SCHOOL TS,CORE-MAIN-015201,26666.00,Grants to local authorities
Department for Education,DfE Core,26/02/2021,Grants expenditure,SYSTEM CAPACITY LEADERSHIP AND GOVERNANCE TOTAL,Wimborne Academy Trust,CORE-MAIN-015202,26666.00,"Grants paid to organisations including agencies, arms length bodies and educational establishments"
Department for Education,DfE Core,26/02/2021,Grants expenditure,SYSTEM CAPACITY LEADERSHIP AND GOVERNANCE TOTAL,ST JOSEPHS CATHOLIC PRIMARY HAMPSHIRE TS ACCOUNT,CORE-MAIN-015204,26666.00,"Grants paid to organisations including agencies, arms length bodies and educational establishments"
Department for Education,DfE Core,26/02/2021,Grants expenditure,SYSTEM CAPACITY LEADERSHIP AND GOVERNANCE TOTAL,ST MARY'S REDCLIFFE & TEMPLE SCHOOL AMC,CORE-MAIN-015207,26666.00,Grants to local authorities
Department for Education,DfE Core,26/02/2021,Grants expenditure,SYSTEM CAPACITY LEADERSHIP AND GOVERNANCE TOTAL,St Marys College,CORE-MAIN-015209,26666.00,"Grants paid to organisations including agencies, arms length bodies and educational establishments"
Department for Education,DfE Core,26/02/2021,Grants expenditure,SYSTEM CAPACITY LEADERSHIP AND GOVERNANCE TOTAL,ST NICHOLAS CE PRIMARY,CORE-MAIN-015210,26496.85,Grants to local authorities
Department for Education,DfE Core,26/02/2021,Grants expenditure,SYSTEM CAPACITY LEADERSHIP AND GOVERNANCE TOTAL,ST PATRICKS RC HIGH SCHOOL,CORE-MAIN-015211,26666.00,Grants to local authorities
Department for Education,DfE Core,26/02/2021,Grants expenditure,SYSTEM CAPACITY LEADERSHIP AND GOVERNANCE TOTAL,ST PAULS CATHOLIC COLLEGE,CORE-MAIN-015212,25166.00,Grants to local authorities
Department for Education,DfE Core,26/02/2021,Grants expenditure,SYSTEM CAPACITY LEADERSHIP AND GOVERNANCE TOTAL,ST PAULS TEACHING SCHOOL,CORE-MAIN-015213,25866.00,Grants to local authorities
Department for Education,DfE Core,26/02/2021,Grants expenditure,SYSTEM CAPACITY LEADERSHIP AND GOVERNANCE TOTAL,ST RICHARDS CATHOLIC COLLEGE,CORE-MAIN-015215,26095.00,Grants to local authorities
Department for Education,DfE Core,26/02/2021,Grants expenditure,SYSTEM CAPACITY LEADERSHIP AND GOVERNANCE TOTAL,STAG LANE INFANTS & NURSERY SCHOOL,CORE-MAIN-015217,26666.00,Grants to local authorities
Department for Education,DfE Core,26/02/2021,Grants expenditure,SYSTEM CAPACITY LEADERSHIP AND GOVERNANCE TOTAL,TALBOT SPECIALIST SCHOOL TS ACCOUNT,CORE-MAIN-015218,26666.00,Grants to local authorities
Department for Education,DfE Core,26/02/2021,Grants expenditure,SYSTEM CAPACITY LEADERSHIP AND GOVERNANCE TOTAL,The Blue Coat CofE School,CORE-MAIN-015222,26666.00,"Grants paid to organisations including agencies, arms length bodies and educational establishments"
Department for Education,DfE Core,26/02/2021,Grants expenditure,SYSTEM CAPACITY LEADERSHIP AND GOVERNANCE TOTAL,The Bridge School,CORE-MAIN-015223,26666.00,"Grants paid to organisations including agencies, arms length bodies and educational establishments"
Department for Education,DfE Core,26/02/2021,Grants expenditure,SYSTEM CAPACITY LEADERSHIP AND GOVERNANCE TOTAL,THE DALES SCHOOL,CORE-MAIN-015224,25029.40,Grants to local authorities
Department for Education,DfE Core,26/02/2021,Grants expenditure,SYSTEM CAPACITY LEADERSHIP AND GOVERNANCE TOTAL,Ventrus Ltd,CORE-MAIN-015225,25466.00,"Grants paid to organisations including agencies, arms length bodies and educational establishments"
Department for Education,DfE Core,26/02/2021,Grants expenditure,SYSTEM CAPACITY LEADERSHIP AND GOVERNANCE TOTAL,THE FALLIBROOME ACADEMY,CORE-MAIN-015226,26666.00,"Grants paid to organisations including agencies, arms length bodies and educational establishments"
Department for Education,DfE Core,26/02/2021,Grants expenditure,SYSTEM CAPACITY LEADERSHIP AND GOVERNANCE TOTAL,Sherborne Area Schools' Trust,CORE-MAIN-015227,25166.00,"Grants paid to organisations including agencies, arms length bodies and educational establishments"
Department for Education,DfE Core,26/02/2021,Grants expenditure,SYSTEM CAPACITY LEADERSHIP AND GOVERNANCE TOTAL,THE HOLLINS TEACHING SCHOOL,CORE-MAIN-015228,26666.00,Grants to local authorities
Department for Education,DfE Core,26/02/2021,Grants expenditure,SYSTEM CAPACITY LEADERSHIP AND GOVERNANCE TOTAL,THE MILESTONE SCHOOL,CORE-MAIN-015230,26666.00,"Grants paid to organisations including agencies, arms length bodies and educational establishments"
Department for Education,DfE Core,26/02/2021,Grants expenditure,SYSTEM CAPACITY LEADERSHIP AND GOVERNANCE TOTAL,The Polesworth School,CORE-MAIN-015231,25166.00,"Grants paid to organisations including agencies, arms length bodies and educational establishments"
Department for Education,DfE Core,26/02/2021,Grants expenditure,SYSTEM CAPACITY LEADERSHIP AND GOVERNANCE TOTAL,THEALE COFE PRIMARY SCHOOL BCAP ACC,CORE-MAIN-015235,26666.00,Grants to local authorities
Department for Education,DfE Core,26/02/2021,Grants expenditure,SYSTEM CAPACITY LEADERSHIP AND GOVERNANCE TOTAL,Tinsley Meadows Primary School,CORE-MAIN-015237,26666.00,"Grants paid to organisations including agencies, arms length bodies and educational establishments"
Department for Education,DfE Core,26/02/2021,Grants expenditure,SYSTEM CAPACITY LEADERSHIP AND GOVERNANCE TOTAL,Nova Education Trust,CORE-MAIN-015238,26166.00,"Grants paid to organisations including agencies, arms length bodies and educational establishments"
Department for Education,DfE Core,26/02/2021,Grants expenditure,SYSTEM CAPACITY LEADERSHIP AND GOVERNANCE TOTAL,TRAFALGAR INFANT SCHOOL,CORE-MAIN-015239,26666.00,Grants to local authorities
Department for Education,DfE Core,26/02/2021,Grants expenditure,SYSTEM CAPACITY LEADERSHIP AND GOVERNANCE TOTAL,TRURO & PENWITH COLLEGE TS ACCOUNT,CORE-MAIN-015240,26666.00,Grants to local authorities
Department for Education,DfE Core,26/02/2021,Grants expenditure,SYSTEM CAPACITY LEADERSHIP AND GOVERNANCE TOTAL,TRURO NURSERY SCHOOL,CORE-MAIN-015241,26666.00,Grants to local authorities
Department for Education,DfE Core,26/02/2021,Grants expenditure,SYSTEM CAPACITY LEADERSHIP AND GOVERNANCE TOTAL,Tyntesfield Primary School,CORE-MAIN-015242,25166.00,"Grants paid to organisations including agencies, arms length bodies and educational establishments"
Department for Education,DfE Core,26/02/2021,Grants expenditure,SYSTEM CAPACITY LEADERSHIP AND GOVERNANCE TOTAL,West Lakes Academy,CORE-MAIN-015245,26666.00,"Grants paid to organisations including agencies, arms length bodies and educational establishments"
Department for Education,DfE Core,26/02/2021,Grants expenditure,SYSTEM CAPACITY LEADERSHIP AND GOVERNANCE TOTAL,WESTFIELD TECHNOLOGY COLLEGE,CORE-MAIN-015246,26666.00,Grants to local authorities
Department for Education,DfE Core,26/02/2021,Grants expenditure,SYSTEM CAPACITY LEADERSHIP AND GOVERNANCE TOTAL,Weydon School,CORE-MAIN-015247,26666.00,"Grants paid to organisations including agencies, arms length bodies and educational establishments"
Department for Education,DfE Core,26/02/2021,Grants expenditure,SYSTEM CAPACITY LEADERSHIP AND GOVERNANCE TOTAL,Woldgate School & Sixth Form College,CORE-MAIN-015249,26666.00,"Grants paid to organisations including agencies, arms length bodies and educational establishments"
Department for Education,DfE Core,26/02/2021,Grants expenditure,SYSTEM CAPACITY LEADERSHIP AND GOVERNANCE TOTAL,Wycombe High School,CORE-MAIN-015250,26666.00,"Grants paid to organisations including agencies, arms length bodies and educational establishments"
Department for Education,DfE Core,26/02/2021,Grants expenditure,SYSTEM CAPACITY LEADERSHIP AND GOVERNANCE TOTAL,St Clement Danes School,CORE-MAIN-015251,26666.00,"Grants paid to organisations including agencies, arms length bodies and educational establishments"
Department for Education,DfE Core,26/02/2021,Grants expenditure,SYSTEM CAPACITY LEADERSHIP AND GOVERNANCE TOTAL,St Edward's Catholic Primary School ,CORE-MAIN-015252,26666.00,"Grants paid to organisations including agencies, arms length bodies and educational establishments"
Department for Education,DfE Core,26/02/2021,Grants expenditure,SYSTEM CAPACITY LEADERSHIP AND GOVERNANCE TOTAL,Newlands Spring Primary School TS,CORE-MAIN-015253,26666.00,"Grants paid to organisations including agencies, arms length bodies and educational establishments"
Department for Education,DfE Core,26/02/2021,Grants expenditure,SYSTEM CAPACITY LEADERSHIP AND GOVERNANCE TOTAL,OLDWAY PRIMARY SCHOOL,CORE-MAIN-015254,25916.00,"Grants paid to organisations including agencies, arms length bodies and educational establishments"
Department for Education,DfE Core,26/02/2021,Grants expenditure,SYSTEM CAPACITY LEADERSHIP AND GOVERNANCE TOTAL,ST ANTHONYS ROMAN CATHOLIC TS,CORE-MAIN-015255,26666.00,Grants to local authorities
Department for Education,DfE Core,26/02/2021,Grants expenditure,SYSTEM CAPACITY LEADERSHIP AND GOVERNANCE TOTAL,Swavesey Village College,CORE-MAIN-015256,26666.00,"Grants paid to organisations including agencies, arms length bodies and educational establishments"
Department for Education,DfE Core,26/02/2021,Grants expenditure,SYSTEM CAPACITY LEADERSHIP AND GOVERNANCE TOTAL,Latchmere School,CORE-MAIN-015257,26666.00,"Grants paid to organisations including agencies, arms length bodies and educational establishments"
Department for Education,DfE Core,26/02/2021,Grants expenditure,SYSTEM CAPACITY LEADERSHIP AND GOVERNANCE TOTAL,Flying High Trust,CORE-MAIN-015258,26666.00,"Grants paid to organisations including agencies, arms length bodies and educational establishments"
Department for Education,DfE Core,26/02/2021,Grants expenditure,SYSTEM CAPACITY LEADERSHIP AND GOVERNANCE TOTAL,Prince Rock Primary School TS,CORE-MAIN-015259,26666.00,"Grants paid to organisations including agencies, arms length bodies and educational establishments"
Department for Education,DfE Core,26/02/2021,Grants expenditure,SYSTEM CAPACITY LEADERSHIP AND GOVERNANCE TOTAL,Star Academies,CORE-MAIN-015260,26666.00,"Grants paid to organisations including agencies, arms length bodies and educational establishments"
Department for Education,DfE Core,26/02/2021,Grants expenditure,SYSTEM CAPACITY LEADERSHIP AND GOVERNANCE TOTAL,LEEDS CITY COUNCIL DCSF,CORE-MAIN-015262,51832.00,Grants to local authorities
Department for Education,DfE Core,26/02/2021,Grants expenditure,SYSTEM CAPACITY LEADERSHIP AND GOVERNANCE TOTAL,HAMPSHIRE COUNTY COUNCIL,CORE-MAIN-015263,53332.00,Grants to local authorities
Department for Education,DfE Core,26/02/2021,Grants expenditure,SYSTEM CAPACITY LEADERSHIP AND GOVERNANCE TOTAL,Walkergate Community School,CORE-MAIN-015265,26666.00,"Grants paid to organisations including agencies, arms length bodies and educational establishments"
Department for Education,DfE Core,26/02/2021,Grants expenditure,SYSTEM CAPACITY LEADERSHIP AND GOVERNANCE TOTAL,Beacon Academy,CORE-MAIN-015270,26666.00,"Grants paid to organisations including agencies, arms length bodies and educational establishments"
Department for Education,DfE Core,26/02/2021,Grants expenditure,SYSTEM CAPACITY LEADERSHIP AND GOVERNANCE TOTAL,WANDLE TEACHING SCHOOL ALLIANCE,CORE-MAIN-015272,26666.00,"Grants paid to organisations including agencies, arms length bodies and educational establishments"
Department for Education,DfE Core,26/02/2021,Grants expenditure,SYSTEM CAPACITY LEADERSHIP AND GOVERNANCE TOTAL,Darrick Wood School,CORE-MAIN-015273,25324.33,"Grants paid to organisations including agencies, arms length bodies and educational establishments"
Department for Education,DfE Core,26/02/2021,Grants expenditure,SYSTEM CAPACITY LEADERSHIP AND GOVERNANCE TOTAL,Dunraven School,CORE-MAIN-015275,26366.00,"Grants paid to organisations including agencies, arms length bodies and educational establishments"
Department for Education,DfE Core,26/02/2021,Grants expenditure,SYSTEM CAPACITY LEADERSHIP AND GOVERNANCE TOTAL,Kings Academy Trust,CORE-MAIN-015279,26666.00,"Grants paid to organisations including agencies, arms length bodies and educational establishments"
Department for Education,DfE Core,26/02/2021,Grants expenditure,SYSTEM CAPACITY LEADERSHIP AND GOVERNANCE TOTAL,Lunesdale Learning Trust,CORE-MAIN-015281,26666.00,"Grants paid to organisations including agencies, arms length bodies and educational establishments"
Department for Education,DfE Core,26/02/2021,Grants expenditure,SYSTEM CAPACITY LEADERSHIP AND GOVERNANCE TOTAL,Springwell Special Academy,CORE-MAIN-015284,26666.00,"Grants paid to organisations including agencies, arms length bodies and educational establishments"
Department for Education,DfE Core,26/02/2021,Grants expenditure,SYSTEM CAPACITY LEADERSHIP AND GOVERNANCE TOTAL,The Spencer Academies Trust,CORE-MAIN-015285,25166.00,"Grants paid to organisations including agencies, arms length bodies and educational establishments"
Department for Education,DfE Core,26/02/2021,Grants expenditure,SYSTEM CAPACITY LEADERSHIP AND GOVERNANCE TOTAL,TAPTON SCHOOL TS,CORE-MAIN-015287,26117.00,"Grants paid to organisations including agencies, arms length bodies and educational establishments"
Department for Education,DfE Core,26/02/2021,Grants expenditure,SYSTEM CAPACITY LEADERSHIP AND GOVERNANCE TOTAL,The Priory Academy LSST,CORE-MAIN-015288,26166.00,"Grants paid to organisations including agencies, arms length bodies and educational establishments"
Department for Education,DfE Core,26/02/2021,Grants expenditure,SYSTEM CAPACITY LEADERSHIP AND GOVERNANCE TOTAL,Uffculme Academy Trust,CORE-MAIN-015289,26166.00,"Grants paid to organisations including agencies, arms length bodies and educational establishments"
Department for Education,DfE Core,26/02/2021,Grants expenditure,SYSTEM CAPACITY LEADERSHIP AND GOVERNANCE TOTAL,Wath Church of England Primary School,CORE-MAIN-015290,26666.00,"Grants paid to organisations including agencies, arms length bodies and educational establishments"
Department for Education,DfE Core,26/02/2021,Grants expenditure,SYSTEM CAPACITY LEADERSHIP AND GOVERNANCE TOTAL,CORNERSTONE ACADEMY TRUST,CORE-MAIN-015292,25166.00,"Grants paid to organisations including agencies, arms length bodies and educational establishments"
Department for Education,DfE Core,26/02/2021,Grants expenditure,SYSTEM CAPACITY LEADERSHIP AND GOVERNANCE TOTAL,Eynsham Partnership Academy,CORE-MAIN-015293,26666.00,"Grants paid to organisations including agencies, arms length bodies and educational establishments"
Department for Education,DfE Core,26/02/2021,Grants expenditure,SYSTEM CAPACITY LEADERSHIP AND GOVERNANCE TOTAL,NORTHERN STAR ACADEMIES TRUST,CORE-MAIN-015294,26666.00,"Grants paid to organisations including agencies, arms length bodies and educational establishments"
Department for Education,DfE Core,26/02/2021,Grants expenditure,SYSTEM CAPACITY LEADERSHIP AND GOVERNANCE TOTAL,Cornwall Education Learning Trust,CORE-MAIN-015295,26666.00,"Grants paid to organisations including agencies, arms length bodies and educational establishments"
Department for Education,DfE Core,26/02/2021,Grants expenditure,SYSTEM CAPACITY LEADERSHIP AND GOVERNANCE TOTAL,The Diamond Learning Partnership Trust,CORE-MAIN-015296,26666.00,"Grants paid to organisations including agencies, arms length bodies and educational establishments"
Department for Education,DfE Core,26/02/2021,Grants expenditure,SYSTEM CAPACITY LEADERSHIP AND GOVERNANCE TOTAL,THE GALLERY TRUST,CORE-MAIN-015297,26666.00,"Grants paid to organisations including agencies, arms length bodies and educational establishments"
Department for Education,DfE Core,26/02/2021,Grants expenditure,SYSTEM CAPACITY LEADERSHIP AND GOVERNANCE TOTAL,Shires Multi Academy Trust,CORE-MAIN-015298,26666.00,"Grants paid to organisations including agencies, arms length bodies and educational establishments"
Department for Education,DfE Core,26/02/2021,Grants expenditure,SYSTEM CAPACITY LEADERSHIP AND GOVERNANCE TOTAL,NEW WAVE FEDERATION,CORE-MAIN-015300,26666.00,Grants to local authorities
Department for Education,DfE Core,26/02/2021,Grants expenditure,SYSTEM CAPACITY LEADERSHIP AND GOVERNANCE TOTAL,Altrincham Grammar School for Girls,CORE-MAIN-015301,26666.00,"Grants paid to organisations including agencies, arms length bodies and educational establishments"
Department for Education,DfE Core,26/02/2021,Grants expenditure,SYSTEM CAPACITY LEADERSHIP AND GOVERNANCE TOTAL,Batley Girls High School,CORE-MAIN-015302,27166.00,"Grants paid to organisations including agencies, arms length bodies and educational establishments"
Department for Education,DfE Core,26/02/2021,Grants expenditure,SYSTEM CAPACITY LEADERSHIP AND GOVERNANCE TOTAL,Bottisham Village College,CORE-MAIN-015303,26666.00,"Grants paid to organisations including agencies, arms length bodies and educational establishments"
Department for Education,DfE Core,26/02/2021,Grants expenditure,SYSTEM CAPACITY LEADERSHIP AND GOVERNANCE TOTAL,Brooke Weston Academy,CORE-MAIN-015304,26666.00,"Grants paid to organisations including agencies, arms length bodies and educational establishments"
Department for Education,DfE Core,26/02/2021,Grants expenditure,SYSTEM CAPACITY LEADERSHIP AND GOVERNANCE TOTAL,Caludon Castle School,CORE-MAIN-015305,26666.00,"Grants paid to organisations including agencies, arms length bodies and educational establishments"
Department for Education,DfE Core,26/02/2021,Grants expenditure,SYSTEM CAPACITY LEADERSHIP AND GOVERNANCE TOTAL,Holmes Chapel Comprehensive School,CORE-MAIN-015307,26666.00,"Grants paid to organisations including agencies, arms length bodies and educational establishments"
Department for Education,DfE Core,26/02/2021,Grants expenditure,SYSTEM CAPACITY LEADERSHIP AND GOVERNANCE TOTAL,Hoyland Common Primary School ,CORE-MAIN-015308,26666.00,"Grants paid to organisations including agencies, arms length bodies and educational establishments"
Department for Education,DfE Core,26/02/2021,Grants expenditure,SYSTEM CAPACITY LEADERSHIP AND GOVERNANCE TOTAL,Hungerhill School,CORE-MAIN-015309,26416.00,"Grants paid to organisations including agencies, arms length bodies and educational establishments"
Department for Education,DfE Core,26/02/2021,Grants expenditure,SYSTEM CAPACITY LEADERSHIP AND GOVERNANCE TOTAL,Kesgrave High School,CORE-MAIN-015310,26666.00,"Grants paid to organisations including agencies, arms length bodies and educational establishments"
Department for Education,DfE Core,26/02/2021,Grants expenditure,SYSTEM CAPACITY LEADERSHIP AND GOVERNANCE TOTAL,Kingfisher Special School,CORE-MAIN-015311,26666.00,"Grants paid to organisations including agencies, arms length bodies and educational establishments"
Department for Education,DfE Core,26/02/2021,Grants expenditure,SYSTEM CAPACITY LEADERSHIP AND GOVERNANCE TOTAL,LORETO GRAMMAR SCHOOL,CORE-MAIN-015312,26666.00,"Grants paid to organisations including agencies, arms length bodies and educational establishments"
Department for Education,DfE Core,26/02/2021,Grants expenditure,SYSTEM CAPACITY LEADERSHIP AND GOVERNANCE TOTAL,Lyons Hall School,CORE-MAIN-015313,26666.00,"Grants paid to organisations including agencies, arms length bodies and educational establishments"
Department for Education,DfE Core,26/02/2021,Grants expenditure,SYSTEM CAPACITY LEADERSHIP AND GOVERNANCE TOTAL,Malmesbury School,CORE-MAIN-015314,26666.00,"Grants paid to organisations including agencies, arms length bodies and educational establishments"
Department for Education,DfE Core,26/02/2021,Grants expenditure,SYSTEM CAPACITY LEADERSHIP AND GOVERNANCE TOTAL,SACRED HEART CATHOLIC HIGH SCHOOL,CORE-MAIN-015315,26666.00,"Grants paid to organisations including agencies, arms length bodies and educational establishments"
Department for Education,DfE Core,26/02/2021,Grants expenditure,SYSTEM CAPACITY LEADERSHIP AND GOVERNANCE TOTAL,Sir Christopher Hatton School,CORE-MAIN-015317,26666.00,"Grants paid to organisations including agencies, arms length bodies and educational establishments"
Department for Education,DfE Core,26/02/2021,Grants expenditure,SYSTEM CAPACITY LEADERSHIP AND GOVERNANCE TOTAL,Southfields Academy,CORE-MAIN-015318,26666.00,"Grants paid to organisations including agencies, arms length bodies and educational establishments"
Department for Education,DfE Core,26/02/2021,Grants expenditure,SYSTEM CAPACITY LEADERSHIP AND GOVERNANCE TOTAL,The Crypt School,CORE-MAIN-015319,26666.00,"Grants paid to organisations including agencies, arms length bodies and educational establishments"
Department for Education,DfE Core,26/02/2021,Grants expenditure,SYSTEM CAPACITY LEADERSHIP AND GOVERNANCE TOTAL,The Hertfordshire & Essex High School and Science ,CORE-MAIN-015320,26666.00,"Grants paid to organisations including agencies, arms length bodies and educational establishments"
Department for Education,DfE Core,26/02/2021,Grants expenditure,SYSTEM CAPACITY LEADERSHIP AND GOVERNANCE TOTAL,Valley Invicta Academies Trust,CORE-MAIN-015321,26666.00,"Grants paid to organisations including agencies, arms length bodies and educational establishments"
Department for Education,DfE Core,26/02/2021,Grants expenditure,SYSTEM CAPACITY LEADERSHIP AND GOVERNANCE TOTAL,St John's Church of England Primary School,CORE-MAIN-015322,26666.00,"Grants paid to organisations including agencies, arms length bodies and educational establishments"
Department for Education,DfE Core,26/02/2021,Grants expenditure,SYSTEM CAPACITY LEADERSHIP AND GOVERNANCE TOTAL,St Margaret Clitherow Catholic Academy Trust,CORE-MAIN-015323,26666.00,"Grants paid to organisations including agencies, arms length bodies and educational establishments"
Department for Education,DfE Core,26/02/2021,Grants expenditure,SYSTEM CAPACITY LEADERSHIP AND GOVERNANCE TOTAL,HAYBRIDGE HIGH SCHOOL & SIXTH FORM TS ACCOUNT,CORE-MAIN-015325,26666.00,"Grants paid to organisations including agencies, arms length bodies and educational establishments"
Department for Education,DfE Core,26/02/2021,Grants expenditure,SYSTEM CAPACITY LEADERSHIP AND GOVERNANCE TOTAL,LARK RISE ACADEMY TS,CORE-MAIN-015326,26666.00,"Grants paid to organisations including agencies, arms length bodies and educational establishments"
Department for Education,DfE Core,26/02/2021,Grants expenditure,SYSTEM CAPACITY LEADERSHIP AND GOVERNANCE TOTAL,Nunthorpe Academy TS,CORE-MAIN-015327,26666.00,"Grants paid to organisations including agencies, arms length bodies and educational establishments"
Department for Education,DfE Core,26/02/2021,Grants expenditure,SYSTEM CAPACITY LEADERSHIP AND GOVERNANCE TOTAL,Redhill Academy TS,CORE-MAIN-015328,26666.00,"Grants paid to organisations including agencies, arms length bodies and educational establishments"
Department for Education,DfE Core,26/02/2021,Grants expenditure,SYSTEM CAPACITY LEADERSHIP AND GOVERNANCE TOTAL,ASHTON ON MERSEY SCHOOL TS,CORE-MAIN-015330,26666.00,"Grants paid to organisations including agencies, arms length bodies and educational establishments"
Department for Education,DfE Core,01/02/2021,Learning & Development,School Safeguarding and Pastoral Care ,THE ANNA FREUD CENTRE,CORE-PINV-014708,115811.42,Training & Development costs
Department for Education,DfE Core,11/02/2021,Grants expenditure,Covid Response and Schools Recovery,ARK ST ALBAN'S ACADEMY,CORE-MAIN-013562,33362.50,Grants to educational establishments or not for profit organisations including other businesses
Department for Education,DfE Core,25/02/2021,Other Goods & Services,ASSESSMENT AND CURRICULUM AND GENERAL QUALIFICATIONS,UNIVERSITY OF YORK,CORE-PINV-015898,63834.00,Other Professional Services
Department for Education,DfE Core,16/02/2021,Professional Services,SCHOOL QUALITY AND SAFEGUARDING TOTAL,NATIONAL GOVERNANCE ASSOCIATION,CORE-PINV-015552,118300.00,EDUCATIONAL SERVICES
Department for Education,DfE Core,18/02/2021,Professional Services,SCHOOL QUALITY AND SAFEGUARDING TOTAL,GOVERN ED LTD,CORE-PINV-015841,48500.00,EDUCATIONAL SERVICES
Department for Education,DfE Core,19/02/2021,Other Goods & Services,SCHOOL QUALITY AND SAFEGUARDING TOTAL,EDUCATION AND EMPLOYERS TASKFORCE,CORE-PINV-015892,79167.00,Other Professional Services
Department for Education,DfE Core,26/02/2021,Grants expenditure,SCHOOL QUALITY AND SAFEGUARDING TOTAL,Buckinghamshire Council,CORE-MAIN-015355,25833.00,Grants to local authorities
Department for Education,DfE Core,26/02/2021,Grants expenditure,SCHOOL QUALITY AND SAFEGUARDING TOTAL,CAMBRIDGESHIRE COUNTY COUNCIL,CORE-MAIN-015358,55867.00,Grants to local authorities
Department for Education,DfE Core,26/02/2021,Grants expenditure,SCHOOL QUALITY AND SAFEGUARDING TOTAL,CHESHIRE WEST & CHESTER COUNCIL,CORE-MAIN-015362,28217.00,Grants to local authorities
Department for Education,DfE Core,26/02/2021,Grants expenditure,SCHOOL QUALITY AND SAFEGUARDING TOTAL,CORNWALL COUNCIL,CORE-MAIN-015363,69983.00,Grants to local authorities
Department for Education,DfE Core,26/02/2021,Grants expenditure,SCHOOL QUALITY AND SAFEGUARDING TOTAL,CUMBRIA COUNTY COUNCIL,CORE-MAIN-015366,32883.00,Grants to local authorities
Department for Education,DfE Core,26/02/2021,Grants expenditure,SCHOOL QUALITY AND SAFEGUARDING TOTAL,DERBYSHIRE COUNTY COUNCIL,CORE-MAIN-015369,97400.00,Grants to local authorities
Department for Education,DfE Core,26/02/2021,Grants expenditure,SCHOOL QUALITY AND SAFEGUARDING TOTAL,DEVON COUNTY COUNCIL,CORE-MAIN-015370,54508.00,Grants to local authorities
Department for Education,DfE Core,26/02/2021,Grants expenditure,SCHOOL QUALITY AND SAFEGUARDING TOTAL,DORSET COUNCIL,CORE-MAIN-015372,61675.00,Grants to local authorities
Department for Education,DfE Core,26/02/2021,Grants expenditure,SCHOOL QUALITY AND SAFEGUARDING TOTAL,DURHAM COUNTY COUNCIL,CORE-MAIN-015374,116517.00,Grants to local authorities
Department for Education,DfE Core,26/02/2021,Grants expenditure,SCHOOL QUALITY AND SAFEGUARDING TOTAL,EAST SUSSEX COUNTY COUNCIL,CORE-MAIN-015377,58375.00,Grants to local authorities
Department for Education,DfE Core,26/02/2021,Grants expenditure,SCHOOL QUALITY AND SAFEGUARDING TOTAL,ESSEX COUNTY COUNCIL,CORE-MAIN-015379,78283.00,Grants to local authorities
Department for Education,DfE Core,26/02/2021,Grants expenditure,SCHOOL QUALITY AND SAFEGUARDING TOTAL,Gloucestershire County Council,CORE-MAIN-015381,49500.00,Grants to local authorities
Department for Education,DfE Core,26/02/2021,Grants expenditure,SCHOOL QUALITY AND SAFEGUARDING TOTAL,HAMPSHIRE COUNTY COUNCIL,CORE-MAIN-015386,52342.00,Grants to local authorities
Department for Education,DfE Core,26/02/2021,Grants expenditure,SCHOOL QUALITY AND SAFEGUARDING TOTAL,KENT COUNTY COUNCIL,CORE-MAIN-015398,164083.00,Grants to local authorities
Department for Education,DfE Core,26/02/2021,Grants expenditure,SCHOOL QUALITY AND SAFEGUARDING TOTAL,LANCASHIRE COUNTY COUNCIL,CORE-MAIN-015404,87617.00,Grants to local authorities
Department for Education,DfE Core,26/02/2021,Grants expenditure,SCHOOL QUALITY AND SAFEGUARDING TOTAL,LEICESTERSHIRE COUNTY COUNCIL,CORE-MAIN-015407,52908.00,Grants to local authorities
Department for Education,DfE Core,26/02/2021,Grants expenditure,SCHOOL QUALITY AND SAFEGUARDING TOTAL,LINCOLNSHIRE COUNTY COUNCIL,CORE-MAIN-015409,81133.00,Grants to local authorities
Department for Education,DfE Core,26/02/2021,Grants expenditure,SCHOOL QUALITY AND SAFEGUARDING TOTAL,NORFOLK COUNTY COUNCIL,CORE-MAIN-015419,84092.00,Grants to local authorities
Department for Education,DfE Core,26/02/2021,Grants expenditure,SCHOOL QUALITY AND SAFEGUARDING TOTAL,NORTH YORKSHIRE COUNTY COUNCIL,CORE-MAIN-015424,40967.00,Grants to local authorities
Department for Education,DfE Core,26/02/2021,Grants expenditure,SCHOOL QUALITY AND SAFEGUARDING TOTAL,NORTHAMPTONSHIRE COUNTY COUNCIL,CORE-MAIN-015425,35275.00,Grants to local authorities
Department for Education,DfE Core,26/02/2021,Grants expenditure,SCHOOL QUALITY AND SAFEGUARDING TOTAL,NORTHUMBERLAND COUNTY COUNCIL,CORE-MAIN-015426,28108.00,Grants to local authorities
Department for Education,DfE Core,26/02/2021,Grants expenditure,SCHOOL QUALITY AND SAFEGUARDING TOTAL,NOTTINGHAMSHIRE COUNTY COUNCIL,CORE-MAIN-015428,53367.00,Grants to local authorities
Department for Education,DfE Core,26/02/2021,Grants expenditure,SCHOOL QUALITY AND SAFEGUARDING TOTAL,Oxfordshire County Council,CORE-MAIN-015430,37892.00,Grants to local authorities
Department for Education,DfE Core,26/02/2021,Grants expenditure,SCHOOL QUALITY AND SAFEGUARDING TOTAL,SOMERSET COUNTY COUNCIL,CORE-MAIN-015447,57233.00,Grants to local authorities
Department for Education,DfE Core,26/02/2021,Grants expenditure,SCHOOL QUALITY AND SAFEGUARDING TOTAL,Staffordshire County Council,CORE-MAIN-015453,37433.00,Grants to local authorities
Department for Education,DfE Core,26/02/2021,Grants expenditure,SCHOOL QUALITY AND SAFEGUARDING TOTAL,SUFFOLK COUNTY COUNCIL,CORE-MAIN-015457,61558.00,Grants to local authorities
Department for Education,DfE Core,26/02/2021,Grants expenditure,SCHOOL QUALITY AND SAFEGUARDING TOTAL,Wakefield City Council,CORE-MAIN-015468,27875.00,Grants to local authorities
Department for Education,DfE Core,26/02/2021,Grants expenditure,SCHOOL QUALITY AND SAFEGUARDING TOTAL,WARWICKSHIRE COUNTY COUNCIL,CORE-MAIN-015473,29242.00,Grants to local authorities
Department for Education,DfE Core,26/02/2021,Grants expenditure,SCHOOL QUALITY AND SAFEGUARDING TOTAL,West Sussex County Council,CORE-MAIN-015475,40283.00,Grants to local authorities
Department for Education,DfE Core,26/02/2021,Grants expenditure,SCHOOL QUALITY AND SAFEGUARDING TOTAL,WILTSHIRE COUNTY COUNCIL,CORE-MAIN-015478,36750.00,Grants to local authorities
Department for Education,DfE Core,26/02/2021,Grants expenditure,SCHOOL QUALITY AND SAFEGUARDING TOTAL,WORCESTERSHIRE COUNTY COUNCIL,CORE-MAIN-015483,35733.00,Grants to local authorities
Department for Education,DfE Core,26/02/2021,Grants expenditure,ACADEMIES DELIVERY DIRECTORATE,THE POPE FRANCIS CATHOLIC MULTI ACADEMY COMPANY,CORE-MAIN-015487,80000.00,Capital grants paid to a private sector organisation
Department for Education,DfE Core,26/02/2021,Grants expenditure,ACADEMIES DELIVERY DIRECTORATE,Outwood Grange Academies Trust,CORE-MAIN-015488,40000.00,Capital grants paid to a private sector organisation
Department for Education,DfE Core,26/02/2021,Grants expenditure,ACADEMIES DELIVERY DIRECTORATE,Diocese of Southwell and Nottingham MAT,CORE-MAIN-015489,120000.00,Capital grants paid to a private sector organisation
Department for Education,DfE Core,26/02/2021,Grants expenditure,ACADEMIES DELIVERY DIRECTORATE,The Spencer Academies Trust,CORE-MAIN-015490,40000.00,Capital grants paid to a private sector organisation
Department for Education,DfE Core,26/02/2021,Grants expenditure,ACADEMIES DELIVERY DIRECTORATE,NEWCASTLE EAST MIXED MULTI ACADEMY TRUST,CORE-MAIN-015491,80000.00,Capital grants paid to a private sector organisation
Department for Education,DfE Core,26/02/2021,Grants expenditure,ACADEMIES DELIVERY DIRECTORATE,Scalby School TS,CORE-MAIN-015492,80000.00,Capital grants paid to a private sector organisation
Department for Education,DfE Core,11/02/2021,Grants expenditure,FREE SCHOOL DIRECTORATE,Barton Court Grammar School ,CORE-MAIN-013563,76783.00,"Grants paid to organisations including agencies, arms length bodies and educational establishments"
Department for Education,DfE Core,11/02/2021,Grants expenditure,FREE SCHOOL DIRECTORATE,VENN ACADEMY TRUST,CORE-MAIN-013564,56974.75,"Grants paid to organisations including agencies, arms length bodies and educational establishments"
Department for Education,DfE Core,11/02/2021,Grants expenditure,FREE SCHOOL DIRECTORATE,Market Field School,CORE-MAIN-013565,64000.00,"Grants paid to organisations including agencies, arms length bodies and educational establishments"
Department for Education,DfE Core,11/02/2021,Grants expenditure,FREE SCHOOL DIRECTORATE,LIFT Partnership,CORE-MAIN-013566,60000.00,"Grants paid to organisations including agencies, arms length bodies and educational establishments"
Department for Education,DfE Core,11/02/2021,Grants expenditure,FREE SCHOOL DIRECTORATE,Launceston College,CORE-MAIN-013567,47500.00,"Grants paid to organisations including agencies, arms length bodies and educational establishments"
Department for Education,DfE Core,11/02/2021,Grants expenditure,FREE SCHOOL DIRECTORATE,Avanti Schools Trust,CORE-MAIN-013568,25000.00,"Grants paid to organisations including agencies, arms length bodies and educational establishments"
Department for Education,DfE Core,11/02/2021,Grants expenditure,FREE SCHOOL DIRECTORATE,PRESTON HEDGES ACADEMY TRUST,CORE-MAIN-013569,100000.00,"Grants paid to organisations including agencies, arms length bodies and educational establishments"
Department for Education,DfE Core,11/02/2021,Grants expenditure,FREE SCHOOL DIRECTORATE,Bungay High School,CORE-MAIN-013570,25000.00,"Grants paid to organisations including agencies, arms length bodies and educational establishments"
Department for Education,DfE Core,11/02/2021,Grants expenditure,FREE SCHOOL DIRECTORATE,North Star Academy Trust,CORE-MAIN-013571,30000.00,"Grants paid to organisations including agencies, arms length bodies and educational establishments"
Department for Education,DfE Core,11/02/2021,Grants expenditure,FREE SCHOOL DIRECTORATE,Special Partnership Trust,CORE-MAIN-013572,30000.00,"Grants paid to organisations including agencies, arms length bodies and educational establishments"
Department for Education,DfE Core,11/02/2021,Grants expenditure,FREE SCHOOL DIRECTORATE,ARK Schools,CORE-MAIN-013573,146881.00,"Grants paid to organisations including agencies, arms length bodies and educational establishments"
Department for Education,DfE Core,26/02/2021,Grants expenditure,FREE SCHOOL DIRECTORATE,"Trinity Academy, Halifax",CORE-MAIN-015493,25000.00,"Grants paid to organisations including agencies, arms length bodies and educational establishments"
Department for Education,DfE Core,26/02/2021,Grants expenditure,FREE SCHOOL DIRECTORATE,Thrive Education Partnership,CORE-MAIN-015494,25000.00,"Grants paid to organisations including agencies, arms length bodies and educational establishments"
Department for Education,DfE Core,26/02/2021,Grants expenditure,FREE SCHOOL DIRECTORATE,GOSFORTH FEDERATED ACADEMIES LTD,CORE-MAIN-015495,135000.00,"Grants paid to organisations including agencies, arms length bodies and educational establishments"
Department for Education,DfE Core,26/02/2021,Grants expenditure,FREE SCHOOL DIRECTORATE,Big Education Trust,CORE-MAIN-015496,60000.00,"Grants paid to organisations including agencies, arms length bodies and educational establishments"
Department for Education,DfE Core,26/02/2021,Grants expenditure,FREE SCHOOL DIRECTORATE,THE EDEN ACADEMY,CORE-MAIN-015497,120000.00,"Grants paid to organisations including agencies, arms length bodies and educational establishments"
Department for Education,DfE Core,26/02/2021,Grants expenditure,FREE SCHOOL DIRECTORATE,ORWELL MULTI ACADEMY TRUST,CORE-MAIN-015498,25000.00,"Grants paid to organisations including agencies, arms length bodies and educational establishments"
Department for Education,DfE Core,11/02/2021,Grants expenditure,ACADEMIES AND REGIONAL DELIVERY TOTAL,BLACKWELL FIRST SCHOOL,CORE-MAIN-013575,49460.00,"Grants paid to organisations including agencies, arms length bodies and educational establishments"
Department for Education,DfE Core,11/02/2021,Grants expenditure,ACADEMIES AND REGIONAL DELIVERY TOTAL,St Teresa's Catholic Primary School ,CORE-MAIN-013576,75795.00,"Grants paid to organisations including agencies, arms length bodies and educational establishments"
Department for Education,DfE Core,26/02/2021,Grants expenditure,ACADEMIES AND REGIONAL DELIVERY TOTAL,THE BLACK PEAR TRUST,CORE-MAIN-015499,70225.00,"Grants paid to organisations including agencies, arms length bodies and educational establishments"
Department for Education,DfE Core,26/02/2021,Grants expenditure,ACADEMIES AND REGIONAL DELIVERY TOTAL,The Rivers C of E Multi Academy Trust,CORE-MAIN-015500,95920.00,"Grants paid to organisations including agencies, arms length bodies and educational establishments"
Department for Education,DfE Core,11/02/2021,Grants expenditure,ACADEMIES AND REGIONAL DELIVERY TOTAL,Mrs Ethelston's CofE Primary Academy,CORE-MAIN-013577,25000.00,"Grants paid to organisations including agencies, arms length bodies and educational establishments"
Department for Education,DfE Core,11/02/2021,Grants expenditure,ACADEMIES AND REGIONAL DELIVERY TOTAL,LEARNING ACADEMY PARTNERSHIP,CORE-MAIN-013578,25000.00,"Grants paid to organisations including agencies, arms length bodies and educational establishments"
Department for Education,DfE Core,11/02/2021,Grants expenditure,ACADEMIES AND REGIONAL DELIVERY TOTAL,ARDEN FOREST C OF E MULTI ACADEMY TRUST,CORE-MAIN-013582,50000.00,"Grants paid to organisations including agencies, arms length bodies and educational establishments"
Department for Education,DfE Core,11/02/2021,Grants expenditure,ACADEMIES AND REGIONAL DELIVERY TOTAL,Fields Multi Academy Trust,CORE-MAIN-013583,25000.00,"Grants paid to organisations including agencies, arms length bodies and educational establishments"
Department for Education,DfE Core,11/02/2021,Grants expenditure,ACADEMIES AND REGIONAL DELIVERY TOTAL,Monks Coppenhall Academy,CORE-MAIN-013584,25000.00,"Grants paid to organisations including agencies, arms length bodies and educational establishments"
Department for Education,DfE Core,26/02/2021,Grants expenditure,ACADEMIES AND REGIONAL DELIVERY TOTAL,ARDEN FOREST C OF E MULTI ACADEMY TRUST,CORE-MAIN-015502,25000.00,"Grants paid to organisations including agencies, arms length bodies and educational establishments"
Department for Education,DfE Core,26/02/2021,Grants expenditure,ACADEMIES AND REGIONAL DELIVERY TOTAL,Courthouse Green Primary School,CORE-MAIN-015503,25000.00,"Grants paid to organisations including agencies, arms length bodies and educational establishments"
Department for Education,DfE Core,26/02/2021,Grants expenditure,ACADEMIES AND REGIONAL DELIVERY TOTAL,Sidney Stringer Academy,CORE-MAIN-015504,70000.00,"Grants paid to organisations including agencies, arms length bodies and educational establishments"
Department for Education,DfE Core,26/02/2021,Grants expenditure,ACADEMIES AND REGIONAL DELIVERY TOTAL,The Rivers C of E Multi Academy Trust,CORE-MAIN-015505,70000.00,"Grants paid to organisations including agencies, arms length bodies and educational establishments"
Department for Education,DfE Core,11/02/2021,Grants expenditure,ACADEMIES AND REGIONAL DELIVERY TOTAL,Statham CP School,CORE-MAIN-013585,25000.00,"Grants paid to organisations including agencies, arms length bodies and educational establishments"
Department for Education,DfE Core,26/02/2021,Grants expenditure,ACADEMIES AND REGIONAL DELIVERY TOTAL,Thelwall Infant School,CORE-MAIN-015506,25000.00,"Grants paid to organisations including agencies, arms length bodies and educational establishments"
Department for Education,DfE Core,26/02/2021,Grants expenditure,ACADEMIES AND REGIONAL DELIVERY TOTAL,Ravenbank Primary School,CORE-MAIN-015507,25000.00,"Grants paid to organisations including agencies, arms length bodies and educational establishments"
Department for Education,DfE Core,26/02/2021,Grants expenditure,ACADEMIES AND REGIONAL DELIVERY TOTAL,Oughtrington Community Primary School,CORE-MAIN-015508,25000.00,"Grants paid to organisations including agencies, arms length bodies and educational establishments"
Department for Education,DfE Core,11/02/2021,Grants expenditure,ACADEMIES AND REGIONAL DELIVERY TOTAL,The Rowan Learning Trust,CORE-MAIN-013586,40000.00,"Grants paid to organisations including agencies, arms length bodies and educational establishments"
Department for Education,DfE Core,11/02/2021,Grants expenditure,ACADEMIES AND REGIONAL DELIVERY TOTAL,ETHOS ACADEMY TRUST,CORE-MAIN-013587,80000.00,"Grants paid to organisations including agencies, arms length bodies and educational establishments"
Department for Education,DfE Core,11/02/2021,Grants expenditure,ACADEMIES AND REGIONAL DELIVERY TOTAL,Werneth School,CORE-MAIN-013588,115000.00,"Grants paid to organisations including agencies, arms length bodies and educational establishments"
Department for Education,DfE Core,26/02/2021,Grants expenditure,ACADEMIES AND REGIONAL DELIVERY TOTAL,Omega Multi Academy Trust,CORE-MAIN-015509,80000.00,"Grants paid to organisations including agencies, arms length bodies and educational establishments"
Department for Education,DfE Core,11/02/2021,Grants expenditure,ACADEMIES AND REGIONAL DELIVERY TOTAL,Outwood Grange Academies Trust,CORE-MAIN-013589,110000.00,"Grants paid to organisations including agencies, arms length bodies and educational establishments"
Department for Education,DfE Core,11/02/2021,Grants expenditure,ACADEMIES AND REGIONAL DELIVERY TOTAL,St Wilfrid's RC College,CORE-MAIN-013590,25000.00,"Grants paid to organisations including agencies, arms length bodies and educational establishments"
Department for Education,DfE Core,11/02/2021,Grants expenditure,ACADEMIES AND REGIONAL DELIVERY TOTAL,The Diocese of Canterbury Academies Trust,CORE-MAIN-013591,25000.00,"Grants paid to organisations including agencies, arms length bodies and educational establishments"
Department for Education,DfE Core,08/02/2021,IS/IT,FUNDING AND ANALYSIS TOTAL,OLIVE JAR DIGITAL LTD,CORE-PINV-015079,87200.00,Software Development
Department for Education,DfE Core,26/02/2021,IS/IT,Academies Regional Delivery Group,FUJITSU SERVICES LTD,CORE-PINV-014968,114224.00,Software Development
Department for Education,DfE Core,11/02/2021,Grants expenditure,EARLY YEARS AND SCHOOLS GROUP,NORTHERN SAINTS CATHOLIC EDUCATION TRUST,CORE-MAIN-013593,61600.00,"Grants paid to organisations including agencies, arms length bodies and educational establishments"
Department for Education,DfE Core,11/02/2021,Grants expenditure,EARLY YEARS AND SCHOOLS GROUP,HETTON SCHOOL,CORE-MAIN-013597,53188.00,"Grants paid to organisations including agencies, arms length bodies and educational establishments"
Department for Education,DfE Core,26/02/2021,Grants expenditure,EARLY YEARS AND SCHOOLS GROUP,Biddick Academy,CORE-MAIN-015511,28910.00,"Grants paid to organisations including agencies, arms length bodies and educational establishments"
Department for Education,DfE Core,26/02/2021,Grants expenditure,EARLY YEARS AND SCHOOLS GROUP,Excelsior Academy,CORE-MAIN-015514,29675.00,"Grants paid to organisations including agencies, arms length bodies and educational establishments"
Department for Education,DfE Core,26/02/2021,Grants expenditure,EARLY YEARS AND SCHOOLS GROUP,Laurence Jackson School,CORE-MAIN-015515,31250.00,"Grants paid to organisations including agencies, arms length bodies and educational establishments"
Department for Education,DfE Core,26/02/2021,Grants expenditure,EARLY YEARS AND SCHOOLS GROUP,DURHAM COMMUNITY BUSINESS COLLEGE,CORE-MAIN-015516,45025.00,"Grants paid to organisations including agencies, arms length bodies and educational establishments"
Department for Education,DfE Core,26/02/2021,Grants expenditure,EARLY YEARS AND SCHOOLS GROUP,Thornaby Academy,CORE-MAIN-015517,52018.48,"Grants paid to organisations including agencies, arms length bodies and educational establishments"
Department for Education,DfE Core,03/02/2021,Grants expenditure,SYSTEM CAPACITY LEADERSHIP AND GOVERNANCE TOTAL,ST JOHN VIANNEY SCHOOL TS,CORE-MAIN-002389,83000.00,Grants to educational establishments or not for profit organisations including other businesses
Department for Education,DfE Core,03/02/2021,Grants expenditure,SYSTEM CAPACITY LEADERSHIP AND GOVERNANCE TOTAL,ST JOHN VIANNEY SCHOOL TS,CORE-MAIN-010742,108100.00,Grants to educational establishments or not for profit organisations including other businesses
Department for Education,DfE Core,11/02/2021,Learning & Development,FUNDING AND ANALYSIS TOTAL,Entrust Support Services Limited,CORE-PINV-015412,33511.85,Training & Development costs
Department for Education,DfE Core,11/02/2021,Grants expenditure,EARLY YEARS AND SCHOOLS GROUP,Falcon Education Academies Trust,CORE-MAIN-013598,204624.00,Grants to educational establishments or not for profit organisations including other businesses
Department for Education,DfE Core,15/02/2021,IS/IT,TEACHING WORKFORCE TOTAL,FARSIGHT CONSULTING LIMITED,CORE-PINV-015147,25337.50,Software Development
Department for Education,DfE Core,15/02/2021,IS/IT,TEACHING WORKFORCE TOTAL,FARSIGHT CONSULTING LIMITED,CORE-PINV-015254,48240.00,Software Development
Department for Education,DfE Core,15/02/2021,IS/IT,TEACHING WORKFORCE TOTAL,UCAS,CORE-PINV-014961,24500.00,IS/IT Systems Operations
Department for Education,DfE Core,15/02/2021,Other Goods & Services,TEACHING WORKFORCE TOTAL,UCAS,CORE-PINV-014962,149910.50,Other Professional Services
Department for Education,DfE Core,04/02/2021,Other Goods & Services,EY AND SCHOOLS STRATEGY TOTAL,PHS GROUP PLC,CORE-PINV-014940,631431.60,Other Professional Services
Department for Education,DfE Core,04/02/2021,Other Goods & Services,EY AND SCHOOLS STRATEGY TOTAL,PHS GROUP PLC,CORE-PINV-014940,56019.02,Other Professional Services
Department for Education,DfE Core,04/02/2021,Office Costs,EY AND SCHOOLS STRATEGY TOTAL,PHS GROUP PLC,CORE-PINV-014987,55900.62,Document Storage
Department for Education,DfE Core,03/02/2021,Grants expenditure,EARLY YEARS AND SCHOOLS GROUP,NEW SCHOOLS NETWORK,CORE-MAIN-013476,101556.18,Grants to educational establishments or not for profit organisations including other businesses
Department for Education,DfE Core,26/02/2021,Grants expenditure,EARLY YEARS AND SCHOOLS GROUP,NEW SCHOOLS NETWORK,CORE-MAIN-015518,103401.62,Grants to educational establishments or not for profit organisations including other businesses
Department for Education,DfE Core,26/02/2021,Grants expenditure,EARLY YEARS AND SCHOOLS GROUP,Imperial College London Maths School,CORE-MAIN-015519,30000.00,"Grants paid to organisations including agencies, arms length bodies and educational establishments"
Department for Education,DfE Core,03/02/2021,Grants expenditure,TEACHING WORKFORCE TOTAL,Paddington Academy,CUPS0019400,85293.00,Grants to educational establishments or not for profit organisations including other businesses
Department for Education,DfE Core,03/02/2021,Grants expenditure,TEACHING WORKFORCE TOTAL,ENFIELD LONDON BOROUGH COUNCIL,CUPS0019403,31050.00,Grants to educational establishments or not for profit organisations including other businesses
Department for Education,DfE Core,03/02/2021,Grants expenditure,TEACHING WORKFORCE TOTAL,Spires Academy,CUPS0019412,78012.00,Grants to educational establishments or not for profit organisations including other businesses
Department for Education,DfE Core,03/02/2021,Grants expenditure,TEACHING WORKFORCE TOTAL,Harris Primary Academy Crystal Palace ,CUPS0019413,90297.00,Grants to educational establishments or not for profit organisations including other businesses
Department for Education,DfE Core,03/02/2021,Grants expenditure,TEACHING WORKFORCE TOTAL,ARK Academy ,CUPS0019415,190908.00,Grants to educational establishments or not for profit organisations including other businesses
Department for Education,DfE Core,03/02/2021,Grants expenditure,TEACHING WORKFORCE TOTAL,Glyn School,CUPS0019450,26710.00,Grants to educational establishments or not for profit organisations including other businesses
Department for Education,DfE Core,03/02/2021,Grants expenditure,TEACHING WORKFORCE TOTAL,Toot Hill School,CUPS0019469,27720.00,Grants to educational establishments or not for profit organisations including other businesses
Department for Education,DfE Core,03/02/2021,Grants expenditure,TEACHING WORKFORCE TOTAL,South Farnham School ,CUPS0019471,36463.21,Grants to educational establishments or not for profit organisations including other businesses
Department for Education,DfE Core,03/02/2021,Grants expenditure,TEACHING WORKFORCE TOTAL,Bishop Ramsey Church of England School,CUPS0019493,29752.68,Grants to educational establishments or not for profit organisations including other businesses
Department for Education,DfE Core,03/02/2021,Grants expenditure,TEACHING WORKFORCE TOTAL,The Cherwell School ,CUPS0019518,32760.00,Grants to educational establishments or not for profit organisations including other businesses
Department for Education,DfE Core,03/02/2021,Grants expenditure,TEACHING WORKFORCE TOTAL,ST GEORGE'S CATHOLIC SCHOOL,CUPS0019551,32832.00,Grants to educational establishments or not for profit organisations including other businesses
Department for Education,DfE Core,03/02/2021,Grants expenditure,TEACHING WORKFORCE TOTAL,THE CARDINAL VAUGHAN MEMORIAL RC SCHOOL,CUPS0019582,31464.00,Grants to educational establishments or not for profit organisations including other businesses
Department for Education,DfE Core,03/02/2021,Grants expenditure,TEACHING WORKFORCE TOTAL,Greenfield E-ACT Primary Academy,CUPS0019638,29160.00,Grants to educational establishments or not for profit organisations including other businesses
Department for Education,DfE Core,03/02/2021,Grants expenditure,TEACHING WORKFORCE TOTAL,UNIVERSITY OF NORTHUMBRIA AT NEWCASTLE,CUPS0019639,25857.00,Grants to educational establishments or not for profit organisations including other businesses
Department for Education,DfE Core,03/02/2021,Grants expenditure,TEACHING WORKFORCE TOTAL,Alpha Trust,CUPS0019640,113460.00,Grants to educational establishments or not for profit organisations including other businesses
Department for Education,DfE Core,03/02/2021,Grants expenditure,TEACHING WORKFORCE TOTAL,NOTTINGHAM TRENT UNIVERSITY,CUPS0019642,278410.00,Grants to educational establishments or not for profit organisations including other businesses
Department for Education,DfE Core,03/02/2021,Grants expenditure,TEACHING WORKFORCE TOTAL,UNIVERSITY OF BRISTOL,CUPS0019643,382250.00,Grants to educational establishments or not for profit organisations including other businesses
Department for Education,DfE Core,03/02/2021,Grants expenditure,TEACHING WORKFORCE TOTAL,UNIVERSITY OF EAST LONDON,CUPS0019644,362120.00,Grants to educational establishments or not for profit organisations including other businesses
Department for Education,DfE Core,03/02/2021,Grants expenditure,TEACHING WORKFORCE TOTAL,UNIVERSITY OF HERTFORDSHIRE,CUPS0019645,353760.00,Grants to educational establishments or not for profit organisations including other businesses
Department for Education,DfE Core,03/02/2021,Grants expenditure,TEACHING WORKFORCE TOTAL,THE UNIVERSITY OF MANCHESTER,CUPS0019646,554290.00,Grants to educational establishments or not for profit organisations including other businesses
Department for Education,DfE Core,03/02/2021,Grants expenditure,TEACHING WORKFORCE TOTAL,York St John University,CUPS0019647,59850.00,Grants to educational establishments or not for profit organisations including other businesses
Department for Education,DfE Core,03/02/2021,Grants expenditure,TEACHING WORKFORCE TOTAL,MIDDLESEX UNIVERSITY,CUPS0019648,143460.00,Grants to educational establishments or not for profit organisations including other businesses
Department for Education,DfE Core,03/02/2021,Grants expenditure,TEACHING WORKFORCE TOTAL,NORTH ESSEX TEACHER TRAINING,CUPS0019649,51210.00,Grants to educational establishments or not for profit organisations including other businesses
Department for Education,DfE Core,03/02/2021,Grants expenditure,TEACHING WORKFORCE TOTAL,LEARNING INSTITUTE SOUTH WEST SCITT,CUPS0019651,25020.00,Grants to educational establishments or not for profit organisations including other businesses
Department for Education,DfE Core,03/02/2021,Grants expenditure,TEACHING WORKFORCE TOTAL,THE ARTHUR TERRY SCHOOL SCITT,CUPS0019653,63090.00,Grants to educational establishments or not for profit organisations including other businesses
Department for Education,DfE Core,03/02/2021,Grants expenditure,TEACHING WORKFORCE TOTAL,LEICESTERSHIRE SECONDARY SCITT,CUPS0019654,114300.00,Grants to educational establishments or not for profit organisations including other businesses
Department for Education,DfE Core,03/02/2021,Grants expenditure,TEACHING WORKFORCE TOTAL,EDUCATION MANAGEMENT DIRECT LTD,CUPS0019655,33030.00,Grants to educational establishments or not for profit organisations including other businesses
Department for Education,DfE Core,03/02/2021,Grants expenditure,TEACHING WORKFORCE TOTAL,THE HAVERING TEACHER TRAINING PARTNERSHIP,CUPS0019656,57960.00,Grants to educational establishments or not for profit organisations including other businesses
Department for Education,DfE Core,03/02/2021,Grants expenditure,TEACHING WORKFORCE TOTAL,POOLE SECONDARY SCHOOLS,CUPS0019657,42480.00,Grants to educational establishments or not for profit organisations including other businesses
Department for Education,DfE Core,03/02/2021,Grants expenditure,TEACHING WORKFORCE TOTAL,MID SOMERSET CONSORTIUM FOR TEACHER TRAINING,CUPS0019658,54180.00,Grants to educational establishments or not for profit organisations including other businesses
Department for Education,DfE Core,03/02/2021,Grants expenditure,TEACHING WORKFORCE TOTAL,Summit Learning Trust,CUPS0019659,30150.00,Grants to educational establishments or not for profit organisations including other businesses
Department for Education,DfE Core,03/02/2021,Grants expenditure,TEACHING WORKFORCE TOTAL,Dove House School,CUPS0019660,36990.00,Grants to educational establishments or not for profit organisations including other businesses
Department for Education,DfE Core,03/02/2021,Grants expenditure,TEACHING WORKFORCE TOTAL,ARK Schools,CUPS0019661,236830.00,Grants to educational establishments or not for profit organisations including other businesses
Department for Education,DfE Core,03/02/2021,Grants expenditure,TEACHING WORKFORCE TOTAL,THORNDEN SCHOOL,CUPS0019662,38880.00,Grants to educational establishments or not for profit organisations including other businesses
Department for Education,DfE Core,03/02/2021,Grants expenditure,TEACHING WORKFORCE TOTAL,DENBIGH ALLIANCE,CUPS0019663,40878.00,Grants to educational establishments or not for profit organisations including other businesses
Department for Education,DfE Core,03/02/2021,Grants expenditure,TEACHING WORKFORCE TOTAL,TRAIN TO TEACH AT SURREY & HANTS,CUPS0019664,71280.00,Grants to educational establishments or not for profit organisations including other businesses
Department for Education,DfE Core,03/02/2021,Grants expenditure,TEACHING WORKFORCE TOTAL,BRADFORD BIRTH TO 19 SCITT,CUPS0019665,31770.00,Grants to educational establishments or not for profit organisations including other businesses
Department for Education,DfE Core,03/02/2021,Grants expenditure,TEACHING WORKFORCE TOTAL,SUTTON PARK SCITT,CUPS0019666,73890.00,Grants to educational establishments or not for profit organisations including other businesses
Department for Education,DfE Core,03/02/2021,Grants expenditure,TEACHING WORKFORCE TOTAL,LINCOLNSHIRE TEACHING SCHOOL ALLIANCE,CUPS0019667,79290.00,Grants to educational establishments or not for profit organisations including other businesses
Department for Education,DfE Core,03/02/2021,Grants expenditure,TEACHING WORKFORCE TOTAL,Star Academies,CUPS0019669,72180.00,Grants to educational establishments or not for profit organisations including other businesses
Department for Education,DfE Core,03/02/2021,Grants expenditure,TEACHING WORKFORCE TOTAL,HAYBRIDGE ALLIANCE SCITT,CUPS0019671,95160.00,Grants to educational establishments or not for profit organisations including other businesses
Department for Education,DfE Core,03/02/2021,Grants expenditure,TEACHING WORKFORCE TOTAL,SACRED HEART NEWCASTLE SCITT,CUPS0019672,75420.00,Grants to educational establishments or not for profit organisations including other businesses
Department for Education,DfE Core,03/02/2021,Grants expenditure,TEACHING WORKFORCE TOTAL,BATH SPA UNIVERSITY,CUPS0019673,297000.00,Grants to educational establishments or not for profit organisations including other businesses
Department for Education,DfE Core,03/02/2021,Grants expenditure,TEACHING WORKFORCE TOTAL,BISHOP GROSSETESTE UNIVERSITY,CUPS0019674,220880.00,Grants to educational establishments or not for profit organisations including other businesses
Department for Education,DfE Core,03/02/2021,Grants expenditure,TEACHING WORKFORCE TOTAL,UNIVERSITY OF ST MARK & ST JOHN,CUPS0019675,145673.00,Grants to educational establishments or not for profit organisations including other businesses
Department for Education,DfE Core,03/02/2021,Grants expenditure,TEACHING WORKFORCE TOTAL,GOLDSMITH COLLEGE,CUPS0019676,383900.00,Grants to educational establishments or not for profit organisations including other businesses
Department for Education,DfE Core,03/02/2021,Grants expenditure,TEACHING WORKFORCE TOTAL,THE UNIVERSITY OF WINCHESTER,CUPS0019677,140690.00,Grants to educational establishments or not for profit organisations including other businesses
Department for Education,DfE Core,03/02/2021,Grants expenditure,TEACHING WORKFORCE TOTAL,KINGS COLLEGE GUILDFORD,CUPS0019678,457600.00,Grants to educational establishments or not for profit organisations including other businesses
Department for Education,DfE Core,03/02/2021,Grants expenditure,TEACHING WORKFORCE TOTAL,Kingston University Higher Education Corporation,CUPS0019679,149160.00,Grants to educational establishments or not for profit organisations including other businesses
Department for Education,DfE Core,03/02/2021,Grants expenditure,TEACHING WORKFORCE TOTAL,LEEDS BECKETT UNIVERSITY,CUPS0019680,200640.00,Grants to educational establishments or not for profit organisations including other businesses
Department for Education,DfE Core,03/02/2021,Grants expenditure,TEACHING WORKFORCE TOTAL,LIVERPOOL JOHN MOORES UNIVERSITY,CUPS0019681,332860.00,Grants to educational establishments or not for profit organisations including other businesses
Department for Education,DfE Core,03/02/2021,Grants expenditure,TEACHING WORKFORCE TOTAL,MANCHESTER METRO UNIVERSITY,CUPS0019682,771300.00,Grants to educational establishments or not for profit organisations including other businesses
Department for Education,DfE Core,03/02/2021,Grants expenditure,TEACHING WORKFORCE TOTAL,OXFORD BROOKES UNIVERSITY,CUPS0019683,43740.00,Grants to educational establishments or not for profit organisations including other businesses
Department for Education,DfE Core,03/02/2021,Grants expenditure,TEACHING WORKFORCE TOTAL,SHEFFIELD HALLAM UNIVERSITY,CUPS0019684,636200.00,Grants to educational establishments or not for profit organisations including other businesses
Department for Education,DfE Core,03/02/2021,Grants expenditure,TEACHING WORKFORCE TOTAL,THE UNIVERSITY OF CUMBRIA,CUPS0019685,402930.00,Grants to educational establishments or not for profit organisations including other businesses
Department for Education,DfE Core,03/02/2021,Grants expenditure,TEACHING WORKFORCE TOTAL,THE UNIVERSITY OF CHICHESTER,CUPS0019686,147950.00,Grants to educational establishments or not for profit organisations including other businesses
Department for Education,DfE Core,03/02/2021,Grants expenditure,TEACHING WORKFORCE TOTAL,UNIVERSITY OF EAST ANGLIA,CUPS0019687,286770.00,Grants to educational establishments or not for profit organisations including other businesses
Department for Education,DfE Core,03/02/2021,Grants expenditure,TEACHING WORKFORCE TOTAL,UNIVERSITY OF EXETER,CUPS0019688,414260.00,Grants to educational establishments or not for profit organisations including other businesses
Department for Education,DfE Core,03/02/2021,Grants expenditure,TEACHING WORKFORCE TOTAL,UNIVERSITY OF GLOUCESTERSHIRE,CUPS0019689,99900.00,Grants to educational establishments or not for profit organisations including other businesses
Department for Education,DfE Core,03/02/2021,Grants expenditure,TEACHING WORKFORCE TOTAL,UNIVERSITY OF GREENWICH,CUPS0019690,233900.00,Grants to educational establishments or not for profit organisations including other businesses
Department for Education,DfE Core,03/02/2021,Grants expenditure,TEACHING WORKFORCE TOTAL,UNIVERSITY OF HUDDERSFIELD,CUPS0019691,390380.00,Grants to educational establishments or not for profit organisations including other businesses
Department for Education,DfE Core,03/02/2021,Grants expenditure,TEACHING WORKFORCE TOTAL,UNIVERSITY OF HULL,CUPS0019692,169180.00,Grants to educational establishments or not for profit organisations including other businesses
Department for Education,DfE Core,03/02/2021,Grants expenditure,TEACHING WORKFORCE TOTAL,UNIVERSITY OF LEICESTER,CUPS0019693,249040.00,Grants to educational establishments or not for profit organisations including other businesses
Department for Education,DfE Core,03/02/2021,Grants expenditure,TEACHING WORKFORCE TOTAL,The University of Nottingham,CUPS0019694,454080.00,Grants to educational establishments or not for profit organisations including other businesses
Department for Education,DfE Core,03/02/2021,Grants expenditure,TEACHING WORKFORCE TOTAL,UNIVERSITY OF OXFORD,CUPS0019695,381370.00,Grants to educational establishments or not for profit organisations including other businesses
Department for Education,DfE Core,03/02/2021,Grants expenditure,TEACHING WORKFORCE TOTAL,UNIVERSITY OF PLYMOUTH,CUPS0019696,159610.00,Grants to educational establishments or not for profit organisations including other businesses
Department for Education,DfE Core,03/02/2021,Grants expenditure,TEACHING WORKFORCE TOTAL,UNIVERSITY OF PORTSMOUTH,CUPS0019697,307780.00,Grants to educational establishments or not for profit organisations including other businesses
Department for Education,DfE Core,03/02/2021,Grants expenditure,TEACHING WORKFORCE TOTAL,University of Reading,CUPS0019698,564850.00,Grants to educational establishments or not for profit organisations including other businesses
Department for Education,DfE Core,03/02/2021,Grants expenditure,TEACHING WORKFORCE TOTAL,The University of Sheffield,CUPS0019699,245850.00,Grants to educational establishments or not for profit organisations including other businesses
Department for Education,DfE Core,03/02/2021,Grants expenditure,TEACHING WORKFORCE TOTAL,UNIVERSITY OF SUNDERLAND,CUPS0019700,527230.00,Grants to educational establishments or not for profit organisations including other businesses
Department for Education,DfE Core,03/02/2021,Grants expenditure,TEACHING WORKFORCE TOTAL,UNIVERSITY OF ROEHAMPTON,CUPS0019701,541480.00,Grants to educational establishments or not for profit organisations including other businesses
Department for Education,DfE Core,03/02/2021,Grants expenditure,TEACHING WORKFORCE TOTAL,UNIVERSITY OF SUSSEX,CUPS0019702,385660.00,Grants to educational establishments or not for profit organisations including other businesses
Department for Education,DfE Core,03/02/2021,Grants expenditure,TEACHING WORKFORCE TOTAL,University of Warwick,CUPS0019703,580250.00,Grants to educational establishments or not for profit organisations including other businesses
Department for Education,DfE Core,03/02/2021,Grants expenditure,TEACHING WORKFORCE TOTAL,UNIVERSITY OF WOLVERHAMPTON,CUPS0019704,325380.00,Grants to educational establishments or not for profit organisations including other businesses
Department for Education,DfE Core,03/02/2021,Grants expenditure,TEACHING WORKFORCE TOTAL,UNIVERSITY OF YORK,CUPS0019705,343310.00,Grants to educational establishments or not for profit organisations including other businesses
Department for Education,DfE Core,03/02/2021,Grants expenditure,TEACHING WORKFORCE TOTAL,UNIVERSITY OF NEWCASTLE UPON TYNE,CUPS0019706,255640.00,Grants to educational establishments or not for profit organisations including other businesses
Department for Education,DfE Core,03/02/2021,Grants expenditure,TEACHING WORKFORCE TOTAL,University of Bedfordshire,CUPS0019707,197460.00,Grants to educational establishments or not for profit organisations including other businesses
Department for Education,DfE Core,03/02/2021,Grants expenditure,TEACHING WORKFORCE TOTAL,BROMLEY SCHOOLS COLLEGIATE,CUPS0019709,54180.00,Grants to educational establishments or not for profit organisations including other businesses
Department for Education,DfE Core,03/02/2021,Grants expenditure,TEACHING WORKFORCE TOTAL,CHILTERN TRAINING GROUP,CUPS0019710,76950.00,Grants to educational establishments or not for profit organisations including other businesses
Department for Education,DfE Core,03/02/2021,Grants expenditure,TEACHING WORKFORCE TOTAL,GLOUCESTERSHIRE INITIAL TEACHER EDUCATION PARTNERSHIP,CUPS0019711,123390.00,Grants to educational establishments or not for profit organisations including other businesses
Department for Education,DfE Core,03/02/2021,Grants expenditure,TEACHING WORKFORCE TOTAL,Kent & Medway Training,CUPS0019712,208620.00,Grants to educational establishments or not for profit organisations including other businesses
Department for Education,DfE Core,03/02/2021,Grants expenditure,TEACHING WORKFORCE TOTAL,MID ESSEX INITIAL TEACHER TRAINING,CUPS0019714,76500.00,Grants to educational establishments or not for profit organisations including other businesses
Department for Education,DfE Core,03/02/2021,Grants expenditure,TEACHING WORKFORCE TOTAL,SOUTH WEST TEACHER TRAINING,CUPS0019715,54780.00,Grants to educational establishments or not for profit organisations including other businesses
Department for Education,DfE Core,03/02/2021,Grants expenditure,TEACHING WORKFORCE TOTAL,THAMES PRIMARY CONSORTIUM,CUPS0019716,31140.00,Grants to educational establishments or not for profit organisations including other businesses
Department for Education,DfE Core,03/02/2021,Grants expenditure,TEACHING WORKFORCE TOTAL,DURHAM SECONDARY APPLIED SCITT,CUPS0019718,93735.00,Grants to educational establishments or not for profit organisations including other businesses
Department for Education,DfE Core,03/02/2021,Grants expenditure,TEACHING WORKFORCE TOTAL,BOURNEMOUTH POOLE & DORSET EAST SECONDARY,CUPS0019719,69210.00,Grants to educational establishments or not for profit organisations including other businesses
Department for Education,DfE Core,03/02/2021,Grants expenditure,TEACHING WORKFORCE TOTAL,DONCASTER METRO BOROUGH COUNCIL,CUPS0019720,30060.00,Grants to educational establishments or not for profit organisations including other businesses
Department for Education,DfE Core,03/02/2021,Grants expenditure,TEACHING WORKFORCE TOTAL,NORWICH CITY COLLEGE OF FURTHER & HE,CUPS0019724,48600.00,Grants to educational establishments or not for profit organisations including other businesses
Department for Education,DfE Core,03/02/2021,Grants expenditure,TEACHING WORKFORCE TOTAL,ROYAL BOROUGH OF WINDSOR & MAIDENHEAD,CUPS0019725,26280.00,Grants to educational establishments or not for profit organisations including other businesses
Department for Education,DfE Core,03/02/2021,Grants expenditure,TEACHING WORKFORCE TOTAL,Comberton Village College ,CUPS0019726,123030.00,Grants to educational establishments or not for profit organisations including other businesses
Department for Education,DfE Core,03/02/2021,Grants expenditure,TEACHING WORKFORCE TOTAL,Arthur Mellows Village College,CUPS0019727,25380.00,Grants to educational establishments or not for profit organisations including other businesses
Department for Education,DfE Core,03/02/2021,Grants expenditure,TEACHING WORKFORCE TOTAL,INSPIRING LEADERS TEACHER TRAINING,CUPS0019728,26910.00,Grants to educational establishments or not for profit organisations including other businesses
Department for Education,DfE Core,03/02/2021,Grants expenditure,TEACHING WORKFORCE TOTAL,Skipton Girls' High School ,CUPS0019729,31770.00,Grants to educational establishments or not for profit organisations including other businesses
Department for Education,DfE Core,03/02/2021,Grants expenditure,TEACHING WORKFORCE TOTAL,The Morley Academy,CUPS0019730,349470.00,Grants to educational establishments or not for profit organisations including other businesses
Department for Education,DfE Core,03/02/2021,Grants expenditure,TEACHING WORKFORCE TOTAL,THE JOHN TAYLOR SCITT,CUPS0019731,56790.00,Grants to educational establishments or not for profit organisations including other businesses
Department for Education,DfE Core,03/02/2021,Grants expenditure,TEACHING WORKFORCE TOTAL,THE CHERWELL SCHOOL TS ACCOUNT,CUPS0019732,83160.00,Grants to educational establishments or not for profit organisations including other businesses
Department for Education,DfE Core,03/02/2021,Grants expenditure,TEACHING WORKFORCE TOTAL,Cabot Learning Federation,CUPS0019733,79470.00,Grants to educational establishments or not for profit organisations including other businesses
Department for Education,DfE Core,03/02/2021,Grants expenditure,TEACHING WORKFORCE TOTAL,PARTNERSHIP LONDON SCITT,CUPS0019734,55710.00,Grants to educational establishments or not for profit organisations including other businesses
Department for Education,DfE Core,03/02/2021,Grants expenditure,TEACHING WORKFORCE TOTAL,YORKSHIRE AND HUMBER TEACHER TRAINING,CUPS0019735,83520.00,Grants to educational establishments or not for profit organisations including other businesses
Department for Education,DfE Core,03/02/2021,Grants expenditure,TEACHING WORKFORCE TOTAL,RED KITE TEACHER TRAINING,CUPS0019736,126270.00,Grants to educational establishments or not for profit organisations including other businesses
Department for Education,DfE Core,03/02/2021,Grants expenditure,TEACHING WORKFORCE TOTAL,HIBERNIA COLLEGE UK,CUPS0019737,294800.00,Grants to educational establishments or not for profit organisations including other businesses
Department for Education,DfE Core,03/02/2021,Grants expenditure,TEACHING WORKFORCE TOTAL,BRUNEL UNIVERSITY,CUPS0019738,315040.00,Grants to educational establishments or not for profit organisations including other businesses
Department for Education,DfE Core,03/02/2021,Grants expenditure,TEACHING WORKFORCE TOTAL,CANTERBURY CHRIST CHURCH UNIVERSITY,CUPS0019739,480200.00,Grants to educational establishments or not for profit organisations including other businesses
Department for Education,DfE Core,03/02/2021,Grants expenditure,TEACHING WORKFORCE TOTAL,UNIVERSITY OF CHESTER,CUPS0019740,459200.00,Grants to educational establishments or not for profit organisations including other businesses
Department for Education,DfE Core,03/02/2021,Grants expenditure,TEACHING WORKFORCE TOTAL,EDGE HILL UNIVERSITY,CUPS0019741,451400.00,Grants to educational establishments or not for profit organisations including other businesses
Department for Education,DfE Core,03/02/2021,Grants expenditure,TEACHING WORKFORCE TOTAL,LIVERPOOL HOPE UNIVERSITY,CUPS0019742,469100.00,Grants to educational establishments or not for profit organisations including other businesses
Department for Education,DfE Core,03/02/2021,Grants expenditure,TEACHING WORKFORCE TOTAL,LONDON METRO UNIVERSITY,CUPS0019743,221760.00,Grants to educational establishments or not for profit organisations including other businesses
Department for Education,DfE Core,03/02/2021,Grants expenditure,TEACHING WORKFORCE TOTAL,LOUGHBOROUGH UNIVERSITY,CUPS0019744,49320.00,Grants to educational establishments or not for profit organisations including other businesses
Department for Education,DfE Core,03/02/2021,Grants expenditure,TEACHING WORKFORCE TOTAL,NEWMAN COLLEGE,CUPS0019745,291500.00,Grants to educational establishments or not for profit organisations including other businesses
Department for Education,DfE Core,03/02/2021,Grants expenditure,TEACHING WORKFORCE TOTAL,ST MARYS UNIVERSITY COLLEGE,CUPS0019746,424200.00,Grants to educational establishments or not for profit organisations including other businesses
Department for Education,DfE Core,03/02/2021,Grants expenditure,TEACHING WORKFORCE TOTAL,STAFFORDSHIRE UNIVERSITY,CUPS0019747,96570.00,Grants to educational establishments or not for profit organisations including other businesses
Department for Education,DfE Core,03/02/2021,Grants expenditure,TEACHING WORKFORCE TOTAL,LEEDS TRINITY UNIVERSITY COLLEGE,CUPS0019748,370700.00,Grants to educational establishments or not for profit organisations including other businesses
Department for Education,DfE Core,03/02/2021,Grants expenditure,TEACHING WORKFORCE TOTAL,UNIVERSITY OF WORCESTER,CUPS0019749,333960.00,Grants to educational establishments or not for profit organisations including other businesses
Department for Education,DfE Core,03/02/2021,Grants expenditure,TEACHING WORKFORCE TOTAL,UNIVERSITY OF BIRMINGHAM,CUPS0019750,338690.00,Grants to educational establishments or not for profit organisations including other businesses
Department for Education,DfE Core,03/02/2021,Grants expenditure,TEACHING WORKFORCE TOTAL,UNIVERSITY OF BRIGHTON,CUPS0019751,371030.00,Grants to educational establishments or not for profit organisations including other businesses
Department for Education,DfE Core,03/02/2021,Grants expenditure,TEACHING WORKFORCE TOTAL,UNIVERSITY OF CAMBRIDGE,CUPS0019752,407770.00,Grants to educational establishments or not for profit organisations including other businesses
Department for Education,DfE Core,03/02/2021,Grants expenditure,TEACHING WORKFORCE TOTAL,Birmingham City University,CUPS0019753,521840.00,Grants to educational establishments or not for profit organisations including other businesses
Department for Education,DfE Core,03/02/2021,Grants expenditure,TEACHING WORKFORCE TOTAL,UNIVERSITY OF DERBY,CUPS0019754,154220.00,Grants to educational establishments or not for profit organisations including other businesses
Department for Education,DfE Core,03/02/2021,Grants expenditure,TEACHING WORKFORCE TOTAL,UNIVERSITY OF DURHAM,CUPS0019755,287100.00,Grants to educational establishments or not for profit organisations including other businesses
Department for Education,DfE Core,03/02/2021,Grants expenditure,TEACHING WORKFORCE TOTAL,University of Southampton,CUPS0019756,354500.00,Grants to educational establishments or not for profit organisations including other businesses
Department for Education,DfE Core,03/02/2021,Grants expenditure,TEACHING WORKFORCE TOTAL,UNIVERSITY OF THE WEST OF ENGLAND BRISTOL,CUPS0019757,346430.00,Grants to educational establishments or not for profit organisations including other businesses
Department for Education,DfE Core,03/02/2021,Grants expenditure,TEACHING WORKFORCE TOTAL,UCL INSTITUTE OF EDUCATION,CUPS0019758,962020.00,Grants to educational establishments or not for profit organisations including other businesses
Department for Education,DfE Core,03/02/2021,Grants expenditure,TEACHING WORKFORCE TOTAL,Compass Education Trust Ltd,CUPS0019759,58230.00,Grants to educational establishments or not for profit organisations including other businesses
Department for Education,DfE Core,03/02/2021,Grants expenditure,TEACHING WORKFORCE TOTAL,CORNWALL SCITT,CUPS0019760,79636.50,Grants to educational establishments or not for profit organisations including other businesses
Department for Education,DfE Core,03/02/2021,Grants expenditure,TEACHING WORKFORCE TOTAL,CUMBRIA PRIMARY TEACHER TRAINING,CUPS0019761,28152.00,Grants to educational establishments or not for profit organisations including other businesses
Department for Education,DfE Core,03/02/2021,Grants expenditure,TEACHING WORKFORCE TOTAL,GRAND UNION TRAINING PARTNERSHIP,CUPS0019762,60480.00,Grants to educational establishments or not for profit organisations including other businesses
Department for Education,DfE Core,03/02/2021,Grants expenditure,TEACHING WORKFORCE TOTAL,NORTH BEDS SCITT CONSORTIUM,CUPS0019763,55320.00,Grants to educational establishments or not for profit organisations including other businesses
Department for Education,DfE Core,03/02/2021,Grants expenditure,TEACHING WORKFORCE TOTAL,NORTHAMPTON TEACHER TRAINING,CUPS0019764,32850.00,Grants to educational establishments or not for profit organisations including other businesses
Department for Education,DfE Core,03/02/2021,Grants expenditure,TEACHING WORKFORCE TOTAL,PILGRIM SCITT,CUPS0019765,32850.00,Grants to educational establishments or not for profit organisations including other businesses
Department for Education,DfE Core,03/02/2021,Grants expenditure,TEACHING WORKFORCE TOTAL,SUFFOLK COUNTY COUNCIL#DCSF,CUPS0019766,92250.00,Grants to educational establishments or not for profit organisations including other businesses
Department for Education,DfE Core,03/02/2021,Grants expenditure,TEACHING WORKFORCE TOTAL,TITAN PARTNERSHIP LTD,CUPS0019767,38250.00,Grants to educational establishments or not for profit organisations including other businesses
Department for Education,DfE Core,03/02/2021,Grants expenditure,TEACHING WORKFORCE TOTAL,BRADFORD COLLEGE,CUPS0019768,113670.00,Grants to educational establishments or not for profit organisations including other businesses
Department for Education,DfE Core,03/02/2021,Grants expenditure,TEACHING WORKFORCE TOTAL,LEEDS CITY COUNCIL#DCSF,CUPS0019769,61380.00,Grants to educational establishments or not for profit organisations including other businesses
Department for Education,DfE Core,03/02/2021,Grants expenditure,TEACHING WORKFORCE TOTAL,The Kemnal Academies Trust,CUPS0019770,69750.00,Grants to educational establishments or not for profit organisations including other businesses
Department for Education,DfE Core,03/02/2021,Grants expenditure,TEACHING WORKFORCE TOTAL,GEORGE ABBOT ACADEMY,CUPS0019771,62760.00,Grants to educational establishments or not for profit organisations including other businesses
Department for Education,DfE Core,03/02/2021,Grants expenditure,TEACHING WORKFORCE TOTAL,CARMEL TEACHER TRAINING PARTNERSHIP,CUPS0019772,89280.00,Grants to educational establishments or not for profit organisations including other businesses
Department for Education,DfE Core,03/02/2021,Grants expenditure,TEACHING WORKFORCE TOTAL,"Tudor Grange Academy, Solihull",CUPS0019773,26370.00,Grants to educational establishments or not for profit organisations including other businesses
Department for Education,DfE Core,03/02/2021,Grants expenditure,TEACHING WORKFORCE TOTAL,E-QUALITAS PROFESSIONAL SERVICES LIMITED,CUPS0019774,30510.00,Grants to educational establishments or not for profit organisations including other businesses
Department for Education,DfE Core,03/02/2021,Grants expenditure,TEACHING WORKFORCE TOTAL,Thamesmead School,CUPS0019775,40860.00,Grants to educational establishments or not for profit organisations including other businesses
Department for Education,DfE Core,03/02/2021,Grants expenditure,TEACHING WORKFORCE TOTAL,KING EDWARD VI ACADEMY TRUST BIRMINGHAM,CUPS0019777,51750.00,Grants to educational establishments or not for profit organisations including other businesses
Department for Education,DfE Core,03/02/2021,Grants expenditure,TEACHING WORKFORCE TOTAL,ESSEX COUNTY COUNCIL,CUPS0019778,62370.00,Grants to educational establishments or not for profit organisations including other businesses
Department for Education,DfE Core,03/02/2021,Grants expenditure,TEACHING WORKFORCE TOTAL,GEORGE SPENCER TRAINING SCHOOL,CUPS0019779,39690.00,Grants to educational establishments or not for profit organisations including other businesses
Department for Education,DfE Core,03/02/2021,Grants expenditure,TEACHING WORKFORCE TOTAL,THE CAMBRIDGE PARTNERSHIP,CUPS0019780,48240.00,Grants to educational establishments or not for profit organisations including other businesses
Department for Education,DfE Core,03/02/2021,Grants expenditure,TEACHING WORKFORCE TOTAL,St Joseph's College,CUPS0019782,36540.00,Grants to educational establishments or not for profit organisations including other businesses
Department for Education,DfE Core,03/02/2021,Grants expenditure,TEACHING WORKFORCE TOTAL,SHOTTON HALL SCITT,CUPS0019783,99090.00,Grants to educational establishments or not for profit organisations including other businesses
Department for Education,DfE Core,03/02/2021,Grants expenditure,TEACHING WORKFORCE TOTAL,THE KIRKLEES PARTNERSHIP,CUPS0019784,33750.00,Grants to educational establishments or not for profit organisations including other businesses
Department for Education,DfE Core,03/02/2021,Grants expenditure,TEACHING WORKFORCE TOTAL,CFBT THE DEEPINGS SCITT,CUPS0019785,29880.00,Grants to educational establishments or not for profit organisations including other businesses
Department for Education,DfE Core,03/02/2021,Grants expenditure,TEACHING WORKFORCE TOTAL,EAST MIDLANDS TEACHER TRAINING PARTNERSHIP,CUPS0019786,36000.00,Grants to educational establishments or not for profit organisations including other businesses
Department for Education,DfE Core,03/02/2021,Grants expenditure,TEACHING WORKFORCE TOTAL,Tarleton Academy,CUPS0019788,64020.00,Grants to educational establishments or not for profit organisations including other businesses
Department for Education,DfE Core,03/02/2021,Grants expenditure,TEACHING WORKFORCE TOTAL,Royal Latin School,CUPS0019789,46620.00,Grants to educational establishments or not for profit organisations including other businesses
Department for Education,DfE Core,03/02/2021,Grants expenditure,TEACHING WORKFORCE TOTAL,HARRIS CITY ACADEMY,CUPS0019790,175680.00,Grants to educational establishments or not for profit organisations including other businesses
Department for Education,DfE Core,03/02/2021,Grants expenditure,TEACHING WORKFORCE TOTAL,Wildern School,CUPS0019791,65355.00,Grants to educational establishments or not for profit organisations including other businesses
Department for Education,DfE Core,03/02/2021,Grants expenditure,TEACHING WORKFORCE TOTAL,Pimlico Academy,CUPS0019792,42300.00,Grants to educational establishments or not for profit organisations including other businesses
Department for Education,DfE Core,03/02/2021,Grants expenditure,TEACHING WORKFORCE TOTAL,ST GEORGES ACADEMY SCITT,CUPS0019794,33660.00,Grants to educational establishments or not for profit organisations including other businesses
Department for Education,DfE Core,03/02/2021,Grants expenditure,TEACHING WORKFORCE TOTAL,ASHTON-ON-MERSEY SCHOOL,CUPS0019795,38880.00,Grants to educational establishments or not for profit organisations including other businesses
Department for Education,DfE Core,03/02/2021,Grants expenditure,TEACHING WORKFORCE TOTAL,The Compton School,CUPS0019796,31860.00,Grants to educational establishments or not for profit organisations including other businesses
Department for Education,DfE Core,03/02/2021,Grants expenditure,TEACHING WORKFORCE TOTAL,The Bluecoat Academy,CUPS0019797,47520.00,Grants to educational establishments or not for profit organisations including other businesses
Department for Education,DfE Core,03/02/2021,Grants expenditure,TEACHING WORKFORCE TOTAL,Notre Dame High School,CUPS0019798,88570.00,Grants to educational establishments or not for profit organisations including other businesses
